Service Area,Service Division,Expense Type,Expense Code,Detailed Expense Type,Payment Date,Transaction Number,Amount Exc VAT,Supplier Name
Regeneration and Local Services,Technical Services CM0300,Supplies and Services,304221,Equipment and Materials,02/09/2019,3633894-28675253,"1,938.92",AGGREGATE INDUSTRIES UK LTD.
Regeneration and Local Services,Technical Services CM0300,Supplies and Services,304221,Equipment and Materials,02/09/2019,3633894-28675254,"1,182.18",AGGREGATE INDUSTRIES UK LTD.
Regeneration and Local Services,Technical Services CM0300,Supplies and Services,304221,Equipment and Materials,02/09/2019,3633894-28675257,"1,685.60",AGGREGATE INDUSTRIES UK LTD.
Regeneration and Local Services,Technical Services CM0300,Supplies and Services,304221,Equipment and Materials,02/09/2019,3633894-28675259,"9,822.54",AGGREGATE INDUSTRIES UK LTD.
Regeneration and Local Services,Technical Services CM0300,Supplies and Services,304221,Equipment and Materials,02/09/2019,3633894-28675260,"1,194.38",AGGREGATE INDUSTRIES UK LTD.
Regeneration and Local Services,Technical Services CM0300,Supplies and Services,304221,Equipment and Materials,02/09/2019,3633894-28676258,849.66,AGGREGATE INDUSTRIES UK LTD.
Regeneration and Local Services,Technical Services CM0300,Supplies and Services,304221,Equipment and Materials,02/09/2019,3633894-28681571,972.20,AGGREGATE INDUSTRIES UK LTD.
Resources BK0010,Legal & Democratic Services,Supplies and Services,338102,Services,02/09/2019,3633898-0000033966,925.00,ALERE FORENSICS.
Regeneration and Local Services,Culture Sport and Tourism,Supplies and Services,384199,Miscellaneous Expenses,02/09/2019,3633900-7060,"1,361.60",ALROSE PRODUCTIONS LTD.
Regeneration and Local Services,Environmental Services,Supplies and Services,304337,Equipment and Materials,02/09/2019,3633901-EXHIBITION23RD-31STJULY,620.52,ANDY BECK IMAGES.
Regeneration and Local Services,Technical Services CM0300,Third Party Payments 4THIRD,430100,Rendered by Private Contractors,02/09/2019,3633908-19033725,"33,041.73",ATKINS GLOBAL.
Regeneration and Local Services,Corporate Property and Land,Supplies and Services,304221,Equipment and Materials,02/09/2019,3633910-264168,"1,207.27",AVIRE LTD.
Adult and Health Services,Public Health CC0450,Third Party Payments 4THIRD,460803,Contract Payments,02/09/2019,3633912-1985,"6,832.00",BIONICAL SOLUTIONS LTD.
Regeneration and Local Services,Technical Services CM0300,Supplies and Services,304221,Equipment and Materials,02/09/2019,3633917-INV251571,"2,704.00",BROXAP LTD.
Children and Young Peoples Services,Head of Education and Skills,Third Party Payments 4THIRD,440999,Other third party payments E440,02/09/2019,3633918-DCCALS/BI/004,"1,251.12",BUSINESS IMPROVEMENT LTD T/A SKILLS ACADEMY GROUP.
Children and Young Peoples Services,Head of Early Help Inclusion & Vulnerable Children.,Supplies and Services,342033,Computers and Communications,02/09/2019,3633920-5871,"16,612.00",CAREWORKS (IRELAND) LTD.
Regeneration and Local Services,Environmental Services,Supplies and Services,304259,Equipment and Materials,02/09/2019,3633921-406637,"1,168.00",CARRS BILLINGTON AGRICULTURE.
Regeneration and Local Services,Technical Services CM0300,Stock A926,926004,Stock,02/09/2019,3633929-400018957,"9,232.74",CLEVELAND POTASH LTD T/A ICL FERTILIZERS.
Regeneration and Local Services,Culture Sport and Tourism,Third Party Payments 4THIRD,430100,Rendered by Private Contractors,02/09/2019,3633930-INV04161,881.40,COMPETITION LINE UK LTD T/A LIFESTYLE FITNESS.
Regeneration and Local Services,Culture Sport and Tourism,Third Party Payments 4THIRD,430100,Rendered by Private Contractors,02/09/2019,3633930-INV04162,761.15,COMPETITION LINE UK LTD T/A LIFESTYLE FITNESS.
Children and Young Peoples Services,Head of Early Help Inclusion & Vulnerable Children.,Supplies and Services,384899,Miscellaneous Expenses,02/09/2019,3633935-THK041,"2,260.00",COUNTY DURHAM FURNITURE HELP SCHEME (CDFHS).
Regeneration and Local Services,Environmental Services,Supplies and Services,304221,Equipment and Materials,02/09/2019,3633937-INV0138277,"3,763.29",CROMWELL POLYTHENE LTD.
Regeneration and Local Services,Environmental Services,Supplies and Services,338066,Services,02/09/2019,3633938-192013,"4,500.00",CUMBRIA ACTION FOR SUSTAINABILITY.
Regeneration and Local Services,Environmental Services,Supplies and Services,338066,Services,02/09/2019,3633938-192014,"1,250.00",CUMBRIA ACTION FOR SUSTAINABILITY.
Resources BK0010,Legal & Democratic Services,Supplies and Services,338042,Services,02/09/2019,3633940-337593/INVKL36,"1,600.00",DERE STREET BARRISTERS.
Resources BK0010,Legal & Democratic Services,Supplies and Services,338042,Services,02/09/2019,3633940-339693/INVPM265,"7,550.00",DERE STREET BARRISTERS.
Resources BK0010,Legal & Democratic Services,Supplies and Services,338042,Services,02/09/2019,3633940-348415/INVVCH90,"1,500.00",DERE STREET BARRISTERS.
Resources BK0010,Legal & Democratic Services,Supplies and Services,338042,Services,02/09/2019,3633940-349404/INVCMC268,750.00,DERE STREET BARRISTERS.
Regeneration and Local Services,Corporate Property and Land,Third Party Payments 4THIRD,430100,Rendered by Private Contractors,02/09/2019,3633942-26019,"8,885.00",DORTEK LTD.
Regeneration and Local Services,Technical Services CM0300,Third Party Payments 4THIRD,430100,Rendered by Private Contractors,02/09/2019,3633946-9885,810.00,DUNELM GEOTECHNICAL & ENVIRONMENTAL LTD.
Regeneration and Local Services,Environmental Services,Third Party Payments 4THIRD,430100,Rendered by Private Contractors,02/09/2019,3633950-INV-591,"1,200.00",ECO ENTERPRISES LTD.
Regeneration and Local Services,Corporate Property and Land,Supplies and Services,304221,Equipment and Materials,02/09/2019,3633951-059-249041,790.32,EDMUNDSON ELECTRICAL LTD.
Regeneration and Local Services,Corporate Property and Land,Supplies and Services,304221,Equipment and Materials,02/09/2019,3633951-059-249121,676.09,EDMUNDSON ELECTRICAL LTD.
Transformation and Partnerships,Business Support,Supplies and Services,304245,Equipment and Materials,02/09/2019,3633954-630624,"2,350.00",ENCORE ENVELOPES LTD.
Transformation and Partnerships,Central CJ0550,Supplies and Services,338099,Services,02/09/2019,3633958-176-075,"1,200.00",FAT MEDIA LTD.
Transformation and Partnerships,Central CJ0550,Supplies and Services,338099,Services,02/09/2019,3633958-176-076,512.00,FAT MEDIA LTD.
Transformation and Partnerships,Central CJ0550,Supplies and Services,338099,Services,02/09/2019,3633958-176-077,855.00,FAT MEDIA LTD.
Regeneration and Local Services,Culture Sport and Tourism,Supplies and Services,384956,Miscellaneous Expenses,02/09/2019,3633967-SUP0007099,"4,728.45",GLADSTONE MRM LTD.
Regeneration and Local Services,Technical Services CM0300,Stock A926,926900,Stock in hand-Inventory system,02/09/2019,3633968-06/015418,849.90,GREENHAM TRADING LTD.
Children and Young Peoples Services,Head of Education and Skills,Third Party Payments 4THIRD,440999,Other third party payments E440,02/09/2019,3633982-INV195,"11,755.92",IMPACT NORTH EAST CIC.
Children and Young Peoples Services,Head of Education and Skills,Third Party Payments 4THIRD,440999,Other third party payments E440,02/09/2019,3633982-INV196,"2,121.28",IMPACT NORTH EAST CIC.
Resources BK0010,Digital and Customer Services,Supplies and Services,304303,Equipment and Materials,02/09/2019,3633983-4489458,"4,636.00",INSIGHT DIRECT (UK) LTD.
Regeneration and Local Services,Technical Services CM0300,Stock A926,926900,Stock in hand-Inventory system,02/09/2019,3633984-696495,"2,520.00",INSTARMAC GROUP PLC.
Children and Young Peoples Services,Head of Childrens Social Care,Third Party Payments 4THIRD,486020,Service level agreements E486,02/09/2019,3633986-0011,"1,112.71",INTEGRATING CHILDREN.
Children and Young Peoples Services,Head of Childrens Social Care,Third Party Payments 4THIRD,486020,Service level agreements E486,02/09/2019,3633986-0012,"1,471.46",INTEGRATING CHILDREN.
Children and Young Peoples Services,Head of Childrens Social Care,Third Party Payments 4THIRD,486020,Service level agreements E486,02/09/2019,3633986-0013,"1,133.69",INTEGRATING CHILDREN.
Children and Young Peoples Services,Head of Childrens Social Care,Third Party Payments 4THIRD,486020,Service level agreements E486,02/09/2019,3633986-0014,"1,708.44",INTEGRATING CHILDREN.
Children and Young Peoples Services,Head of Childrens Social Care,Third Party Payments 4THIRD,486020,Service level agreements E486,02/09/2019,3633986-0015,"1,055.31",INTEGRATING CHILDREN.
Children and Young Peoples Services,Head of Childrens Social Care,Third Party Payments 4THIRD,486020,Service level agreements E486,02/09/2019,3633986-0016,"1,016.31",INTEGRATING CHILDREN.
Children and Young Peoples Services,Head of Childrens Social Care,Third Party Payments 4THIRD,486020,Service level agreements E486,02/09/2019,3633986-0017,953.21,INTEGRATING CHILDREN.
Children and Young Peoples Services,Head of Childrens Social Care,Third Party Payments 4THIRD,486020,Service level agreements E486,02/09/2019,3633986-0018,"1,144.21",INTEGRATING CHILDREN.
Children and Young Peoples Services,Head of Childrens Social Care,Third Party Payments 4THIRD,486020,Service level agreements E486,02/09/2019,3633986-004,823.99,INTEGRATING CHILDREN.
Children and Young Peoples Services,Head of Childrens Social Care,Third Party Payments 4THIRD,486020,Service level agreements E486,02/09/2019,3633986-005,788.87,INTEGRATING CHILDREN.
Children and Young Peoples Services,Head of Childrens Social Care,Third Party Payments 4THIRD,486020,Service level agreements E486,02/09/2019,3633986-006,802.92,INTEGRATING CHILDREN.
Children and Young Peoples Services,Head of Childrens Social Care,Third Party Payments 4THIRD,486020,Service level agreements E486,02/09/2019,3633986-007,"1,046.81",INTEGRATING CHILDREN.
Regeneration and Local Services,Culture Sport and Tourism,Supplies and Services,336005,Advertising E336,02/09/2019,3633989-13346,"3,873.67",ISAPPHIRE LTD.
Regeneration and Local Services,Technical Services CM0300,Third Party Payments 4THIRD,430100,Rendered by Private Contractors,02/09/2019,3633992-23207,"14,457.69",JACK COUPE & SONS LTD T/A COUPE LINE.
Regeneration and Local Services,Technical Services CM0300,Stock A926,926900,Stock in hand-Inventory system,02/09/2019,3633994-9362,588.00,JG UNIFORMS.
Regeneration and Local Services,Technical Services CM0300,Stock A926,926900,Stock in hand-Inventory system,02/09/2019,3633994-9363,722.50,JG UNIFORMS.
Regeneration and Local Services,Technical Services CM0300,Supplies and Services,336005,Advertising E336,02/09/2019,3633997-102592,900.00,JPI MEDIA PUBLISHING LTD T/A SHEFFIELD NEWSPAPERS.
Regeneration and Local Services,Technical Services CM0300,Stock A926,926900,Stock in hand-Inventory system,02/09/2019,3633999-BII296790,"1,086.40",JT DOVE LTD.
Regeneration and Local Services,Culture Sport and Tourism,Supplies and Services,338047,Services,02/09/2019,3634003-357,"1,000.00",KATIE DOHERTY (MUSICIAN).
Regeneration and Local Services,Environmental Services,Stock A926,926900,Stock in hand-Inventory system,02/09/2019,3634005-SI02-0238263,756.00,KILLGERM CHEMICALS LTD.
Regeneration and Local Services,Technical Services CM0300,Construction work A908,908105,Construction work,02/09/2019,3634015-93469,575.00,LUCION ENVIRONMENTAL LLP LTD.
Regeneration and Local Services,Environmental Services,Cap Exp on Grants & Other Financial Assistance (REFCUS),918501,Exp assets not owned by authority,02/09/2019,3634017-1132,"40,032.00",MARSDEN AES LTD.
Adult and Health Services,Commissioning inc Supporting People,Third Party Payments 4THIRD,479111,Purchase of Care,02/09/2019,3634020-555/06961,"15,053.00",MENTAL HEALTH MATTERS.
Regeneration and Local Services,Culture Sport and Tourism,Supplies and Services,338066,Services,02/09/2019,3634028-1911,"1,500.00",NEWCASTLE GATESHEAD INITIATIVE.
Regeneration and Local Services,Corporate Property and Land,Supplies and Services,384199,Miscellaneous Expenses,02/09/2019,3634034-DI20325325,697.92,NORTHERN POWERGRID (NORTHEAST) LTD.
Regeneration and Local Services,Culture Sport and Tourism,Supplies and Services,304259,Equipment and Materials,02/09/2019,3634035-58857,802.00,NORTHWEST RADIO COMMUNICATIONS LTD.
Dedicated Schools Grant BG0015,DSG High Needs Block,Third Party Payments 4THIRD,410037,Rendered by Other Local Authorities,02/09/2019,3634037-INV-0274,"2,385.00",NUDGE EDUCATION LTD.
Regeneration and Local Services,Environmental Services,Transport,215022,Running Costs of Vehicles,02/09/2019,3634038-453069,555.55,OIL NRG LTD.
Transformation and Partnerships,Partnerships & Community Engagement Div.,Supplies and Services,384086,Miscellaneous Expenses,02/09/2019,3634043-VOUCHERHENS0419,848.00,PELTON FELL COMMUNITY PARTNERSHIP.
Transformation and Partnerships,Business Support,Supplies and Services,332029,Printing Stationery and Gen Off Exps,02/09/2019,3634045-675463,"2,828.00",POTTS PRINTERS LTD.
Regeneration and Local Services,Technical Services CM0300,Third Party Payments 4THIRD,430100,Rendered by Private Contractors,02/09/2019,3634049-11987,"1,113.60",QUANTUM POWER CONNECTIONS LTD.
Dedicated Schools Grant BG0015,DSG High Needs Block,Supplies and Services,304259,Equipment and Materials,02/09/2019,3634051-260118,"2,431.00",R82 UK LTD.
Children and Young Peoples Services,Head of Education and Skills,Transfer Payments,510027,School Children,02/09/2019,3634052-ACPUNSHON1/4/19-31/8/19,"1,307.28",RAINBOW NURSERY LTD (MIDDLESTONE MOOR).
Children and Young Peoples Services,Head of Education and Skills,Transfer Payments,510027,School Children,02/09/2019,3634052-BJACKSON1/4/19-31/8/19,653.64,RAINBOW NURSERY LTD (MIDDLESTONE MOOR).
Children and Young Peoples Services,Head of Education and Skills,Transfer Payments,510027,School Children,02/09/2019,3634052-BSTEPHENSON1/4/19-31/8/19,"1,305.72",RAINBOW NURSERY LTD (MIDDLESTONE MOOR).
Children and Young Peoples Services,Head of Education and Skills,Transfer Payments,510027,School Children,02/09/2019,3634052-CSPARK1/4/19-31/8/19,"1,307.28",RAINBOW NURSERY LTD (MIDDLESTONE MOOR).
Regeneration and Local Services,Environmental Services,Supplies and Services,304221,Equipment and Materials,02/09/2019,3634054-RSIN0310818,530.00,RIGBY TAYLOR LTD.
Children and Young Peoples Services,Head of Childrens Social Care,Third Party Payments 4THIRD,440038,Other third party payments E440,02/09/2019,3634056-1475,"1,964.75",ROC SOLID LTD.
Children and Young Peoples Services,Head of Childrens Social Care,Third Party Payments 4THIRD,440038,Other third party payments E440,02/09/2019,3634056-1480,"1,964.75",ROC SOLID LTD.
Children and Young Peoples Services,Head of Childrens Social Care,Third Party Payments 4THIRD,440038,Other third party payments E440,02/09/2019,3634056-1486,"1,166.12",ROC SOLID LTD.
Children and Young Peoples Services,Head of Childrens Social Care,Third Party Payments 4THIRD,440038,Other third party payments E440,02/09/2019,3634056-1492,"1,964.75",ROC SOLID LTD.
Children and Young Peoples Services,Head of Childrens Social Care,Third Party Payments 4THIRD,440038,Other third party payments E440,02/09/2019,3634056-1495,"2,481.83",ROC SOLID LTD.
Children and Young Peoples Services,Head of Childrens Social Care,Third Party Payments 4THIRD,440038,Other third party payments E440,02/09/2019,3634056-1496,"2,481.83",ROC SOLID LTD.
Children and Young Peoples Services,Head of Childrens Social Care,Third Party Payments 4THIRD,440038,Other third party payments E440,02/09/2019,3634056-1498,"2,582.37",ROC SOLID LTD.
Regeneration and Local Services,Corporate Property and Land,Supplies and Services,304221,Equipment and Materials,02/09/2019,3634063-6997,"6,641.58",SEAS (NE) LTD.
Regeneration and Local Services,Environmental Services,Supplies and Services,304221,Equipment and Materials,02/09/2019,3634066-CD970730404,"3,285.60",SHERRIFF AMENITY.
Regeneration and Local Services,Technical Services CM0300,Supplies and Services,304221,Equipment and Materials,02/09/2019,3634067-80027,"2,111.68",SIMMONSIGNS LTD.
Regeneration and Local Services,Environmental Services,Supplies and Services,304999,Equipment and Materials,02/09/2019,3634069-8028,976.24,SPIRAFIX LTD.
Children and Young Peoples Services,Head of Early Help Inclusion & Vulnerable Children.,Supplies and Services,338078,Services,02/09/2019,3634074-14564,"2,536.02",STEADFAST SECURITY SOLUTIONS LTD.
Regeneration and Local Services,Environmental Services,Supplies and Services,384700,Miscellaneous Expenses,02/09/2019,3634075-17,"2,400.00",STEVEN LIPSCOMBE.
Regeneration and Local Services,Technical Services CM0300,Supplies and Services,304221,Equipment and Materials,02/09/2019,3634083-9040575127,781.60,TARMAC TRADING LTD.
Regeneration and Local Services,Technical Services CM0300,Supplies and Services,304221,Equipment and Materials,02/09/2019,3634083-9040582305,921.62,TARMAC TRADING LTD.
Regeneration and Local Services,Technical Services CM0300,Supplies and Services,304221,Equipment and Materials,02/09/2019,3634083-9040589839,"1,173.39",TARMAC TRADING LTD.
Regeneration and Local Services,Technical Services CM0300,Stock A926,926900,Stock in hand-Inventory system,02/09/2019,3634091-NSIN00018621,"1,586.80",THOMAS OWEN & SONS (NEWCASTLE) LTD.
Regeneration and Local Services,Environmental Services,Supplies and Services,304221,Equipment and Materials,02/09/2019,3634091-NSIN00018623,643.40,THOMAS OWEN & SONS (NEWCASTLE) LTD.
Regeneration and Local Services,Environmental Services,Supplies and Services,304221,Equipment and Materials,02/09/2019,3634095-3276AKG841,592.81,TRAVIS PERKINS TRADING CO LTD.
Children and Young Peoples Services,Head of Education and Skills,Supplies and Services,384199,Miscellaneous Expenses,02/09/2019,3634099-8543,"1,095.00",UK ASSOCIATION FOR MUSIC EDUCATION (MUSIC MARK).
Regeneration and Local Services,Business Durham CL0850,Supplies and Services,338066,Services,02/09/2019,3634102-46744,"19,860.00",UNW LLP.
Regeneration and Local Services,Technical Services CM0300,Third Party Payments 4THIRD,430100,Rendered by Private Contractors,02/09/2019,3634103-INV053650,"7,215.30",URBIS SCHREDER LTD.
Regeneration and Local Services,Business Durham CL0850,Supplies and Services,352001,Conference Expenses,02/09/2019,3634107-INV00095568,"2,310.00",VISTAGE INTERNATIONAL (UK) LTD.
Regeneration and Local Services,Development and Housing,Supplies and Services,384437,Miscellaneous Expenses,02/09/2019,3634112-UOTR4558127,950.87,WESTERN UNION BUSINESS SOLUTIONS.
Regeneration and Local Services,Technical Services CM0300,Construction work A908,908105,Construction work,02/09/2019,3634113-520695,625.42,WILLIAM SMITH GROUP 1832.
Regeneration and Local Services,Environmental Services,Third Party Payments 4THIRD,430100,Rendered by Private Contractors,03/09/2019,3634889-2856,"4,320.00",A & J GUTHRIE.
Adult and Health Services,Head of Adults,Third Party Payments 4THIRD,470101,Purchase of Care,03/09/2019,3635069-2568908,"3,977.61",A CHARLES THOMAS (CARE) LTD.
Adult and Health Services,Head of Adults,Third Party Payments 4THIRD,470101,Purchase of Care,03/09/2019,3635069-2568909,592.41,A CHARLES THOMAS (CARE) LTD.
Adult and Health Services,Head of Adults,Third Party Payments 4THIRD,470101,Purchase of Care,03/09/2019,3635069-2568910,"2,369.64",A CHARLES THOMAS (CARE) LTD.
Adult and Health Services,Head of Adults,Third Party Payments 4THIRD,470101,Purchase of Care,03/09/2019,3635069-2568911,"2,369.64",A CHARLES THOMAS (CARE) LTD.
Adult and Health Services,Head of Adults,Third Party Payments 4THIRD,470101,Purchase of Care,03/09/2019,3635069-2568912,"7,024.29",A CHARLES THOMAS (CARE) LTD.
Adult and Health Services,Head of Adults,Third Party Payments 4THIRD,470101,Purchase of Care,03/09/2019,3635069-2568913,"2,369.64",A CHARLES THOMAS (CARE) LTD.
Adult and Health Services,Head of Adults,Third Party Payments 4THIRD,470101,Purchase of Care,03/09/2019,3635069-2568914,"3,639.09",A CHARLES THOMAS (CARE) LTD.
Adult and Health Services,Head of Adults,Third Party Payments 4THIRD,470101,Purchase of Care,03/09/2019,3635069-2568915,"2,369.64",A CHARLES THOMAS (CARE) LTD.
Adult and Health Services,Head of Adults,Third Party Payments 4THIRD,470101,Purchase of Care,03/09/2019,3635069-2568916,"2,369.64",A CHARLES THOMAS (CARE) LTD.
Adult and Health Services,Head of Adults,Third Party Payments 4THIRD,470101,Purchase of Care,03/09/2019,3635069-2568917,"1,354.08",A CHARLES THOMAS (CARE) LTD.
Adult and Health Services,Head of Adults,Third Party Payments 4THIRD,470101,Purchase of Care,03/09/2019,3635069-2568918,"2,369.64",A CHARLES THOMAS (CARE) LTD.
Adult and Health Services,Head of Adults,Third Party Payments 4THIRD,470101,Purchase of Care,03/09/2019,3635069-2568919,"2,369.64",A CHARLES THOMAS (CARE) LTD.
Adult and Health Services,Head of Adults,Third Party Payments 4THIRD,470101,Purchase of Care,03/09/2019,3635069-2568920,"2,369.64",A CHARLES THOMAS (CARE) LTD.
Adult and Health Services,Head of Adults,Third Party Payments 4THIRD,470101,Purchase of Care,03/09/2019,3635069-2568921,"2,369.64",A CHARLES THOMAS (CARE) LTD.
Adult and Health Services,Head of Adults,Third Party Payments 4THIRD,470101,Purchase of Care,03/09/2019,3635069-2568922,"2,369.64",A CHARLES THOMAS (CARE) LTD.
Adult and Health Services,Head of Adults,Third Party Payments 4THIRD,470101,Purchase of Care,03/09/2019,3635069-2568923,"2,369.64",A CHARLES THOMAS (CARE) LTD.
Adult and Health Services,Head of Adults,Third Party Payments 4THIRD,470101,Purchase of Care,03/09/2019,3635069-2568924,"2,657.20",A CHARLES THOMAS (CARE) LTD.
Adult and Health Services,Head of Adults,Third Party Payments 4THIRD,470101,Purchase of Care,03/09/2019,3635069-2568925,"2,369.64",A CHARLES THOMAS (CARE) LTD.
Adult and Health Services,Head of Adults,Third Party Payments 4THIRD,470101,Purchase of Care,03/09/2019,3635069-2568926,"2,369.64",A CHARLES THOMAS (CARE) LTD.
Adult and Health Services,Head of Adults,Third Party Payments 4THIRD,470101,Purchase of Care,03/09/2019,3635069-2568927,"2,369.64",A CHARLES THOMAS (CARE) LTD.
Adult and Health Services,Head of Adults,Third Party Payments 4THIRD,470101,Purchase of Care,03/09/2019,3635069-2568928,"2,369.64",A CHARLES THOMAS (CARE) LTD.
Adult and Health Services,Head of Adults,Third Party Payments 4THIRD,470101,Purchase of Care,03/09/2019,3635069-2568929,"2,369.64",A CHARLES THOMAS (CARE) LTD.
Adult and Health Services,Head of Adults,Third Party Payments 4THIRD,470101,Purchase of Care,03/09/2019,3635069-2568930,"2,369.64",A CHARLES THOMAS (CARE) LTD.
Adult and Health Services,Head of Adults,Third Party Payments 4THIRD,470101,Purchase of Care,03/09/2019,3635069-2568931,"2,369.64",A CHARLES THOMAS (CARE) LTD.
Adult and Health Services,Head of Adults,Third Party Payments 4THIRD,470101,Purchase of Care,03/09/2019,3635069-2568932,"2,369.64",A CHARLES THOMAS (CARE) LTD.
Children and Young Peoples Services,Head of Childrens Social Care,Third Party Payments 4THIRD,425040,Rendered by Voluntary Organisations,03/09/2019,3635070-PIG_28501,"4,454.40",A1 FOSTER CARE LTD.
Children and Young Peoples Services,Head of Childrens Social Care,Third Party Payments 4THIRD,425040,Rendered by Voluntary Organisations,03/09/2019,3635071-PIG_27665,"33,450.04",ACORN CARE (NE) LTD.
Children and Young Peoples Services,Head of Childrens Social Care,Third Party Payments 4THIRD,425021,Rendered by Voluntary Organisations,03/09/2019,3634892-1908/07,"13,285.71",ACORN CARE (UK) LTD T/A ACORN RESIDENTIAL SERVICES.
Children and Young Peoples Services,Head of Childrens Social Care,Third Party Payments 4THIRD,425040,Rendered by Voluntary Organisations,03/09/2019,3635072-PIG_28500,"13,455.36",ACORN HOUSE (FOSTERING SERVICES) LTD.
Regeneration and Local Services,Technical Services CM0300,Supplies and Services,304221,Equipment and Materials,03/09/2019,3634895-28459917,568.52,AGGREGATE INDUSTRIES UK LTD.
Regeneration and Local Services,Technical Services CM0300,Supplies and Services,304221,Equipment and Materials,03/09/2019,3634895-28459918,"2,944.08",AGGREGATE INDUSTRIES UK LTD.
Regeneration and Local Services,Technical Services CM0300,Supplies and Services,304221,Equipment and Materials,03/09/2019,3634895-28536965,694.80,AGGREGATE INDUSTRIES UK LTD.
Adult and Health Services,Head of Adults,Third Party Payments 4THIRD,470101,Purchase of Care,03/09/2019,3635073-2565579,"2,436.89",AKARI CARE LTD.
Adult and Health Services,Head of Adults,Third Party Payments 4THIRD,470101,Purchase of Care,03/09/2019,3635073-2570472,"2,185.28",AKARI CARE LTD.
Adult and Health Services,Head of Adults,Third Party Payments 4THIRD,474101,Purchase of Care,03/09/2019,3635074-2572171,"2,527.92",AKARI CARE LTD.
Adult and Health Services,Head of Adults,Third Party Payments 4THIRD,474101,Purchase of Care,03/09/2019,3635075-2570444,"1,082.00",AKARI CARE LTD.
Adult and Health Services,Head of Adults,Third Party Payments 4THIRD,474101,Purchase of Care,03/09/2019,3635075-2570445,840.00,AKARI CARE LTD.
Adult and Health Services,Head of Adults,Third Party Payments 4THIRD,474101,Purchase of Care,03/09/2019,3635075-2570447,"1,082.00",AKARI CARE LTD.
Adult and Health Services,Head of Adults,Third Party Payments 4THIRD,470101,Purchase of Care,03/09/2019,3635075-2570449,"1,052.00",AKARI CARE LTD.
Adult and Health Services,Head of Adults,Third Party Payments 4THIRD,470101,Purchase of Care,03/09/2019,3635076-2570133,507.78,AKARI CARE LTD.
Adult and Health Services,Head of Adults,Third Party Payments 4THIRD,470101,Purchase of Care,03/09/2019,3635076-2570134,"2,369.64",AKARI CARE LTD.
Adult and Health Services,Head of Adults,Third Party Payments 4THIRD,470101,Purchase of Care,03/09/2019,3635076-2570135,"2,369.64",AKARI CARE LTD.
Adult and Health Services,Head of Adults,Third Party Payments 4THIRD,470101,Purchase of Care,03/09/2019,3635076-2570136,"2,369.64",AKARI CARE LTD.
Adult and Health Services,Head of Adults,Third Party Payments 4THIRD,471101,Purchase of Care,03/09/2019,3635076-2570137,"2,457.00",AKARI CARE LTD.
Adult and Health Services,Head of Adults,Third Party Payments 4THIRD,471101,Purchase of Care,03/09/2019,3635076-2570138,"2,457.00",AKARI CARE LTD.
Adult and Health Services,Head of Adults,Third Party Payments 4THIRD,471101,Purchase of Care,03/09/2019,3635076-2570139,"2,457.00",AKARI CARE LTD.
Adult and Health Services,Head of Adults,Third Party Payments 4THIRD,470101,Purchase of Care,03/09/2019,3635076-2570140,"2,369.64",AKARI CARE LTD.
Adult and Health Services,Head of Adults,Third Party Payments 4THIRD,470101,Purchase of Care,03/09/2019,3635076-2570141,846.30,AKARI CARE LTD.
Adult and Health Services,Head of Adults,Third Party Payments 4THIRD,471101,Purchase of Care,03/09/2019,3635076-2570142,"2,457.00",AKARI CARE LTD.
Adult and Health Services,Head of Adults,Third Party Payments 4THIRD,471101,Purchase of Care,03/09/2019,3635076-2570143,"2,457.00",AKARI CARE LTD.
Adult and Health Services,Head of Adults,Third Party Payments 4THIRD,470101,Purchase of Care,03/09/2019,3635076-2570144,"2,369.64",AKARI CARE LTD.
Adult and Health Services,Head of Adults,Third Party Payments 4THIRD,470101,Purchase of Care,03/09/2019,3635076-2570145,"1,184.82",AKARI CARE LTD.
Adult and Health Services,Head of Adults,Third Party Payments 4THIRD,471101,Purchase of Care,03/09/2019,3635076-2570146,"2,457.00",AKARI CARE LTD.
Adult and Health Services,Head of Adults,Third Party Payments 4THIRD,470101,Purchase of Care,03/09/2019,3635076-2570147,"2,369.64",AKARI CARE LTD.
Adult and Health Services,Head of Adults,Third Party Payments 4THIRD,470101,Purchase of Care,03/09/2019,3635076-2570148,"2,369.64",AKARI CARE LTD.
Adult and Health Services,Head of Adults,Third Party Payments 4THIRD,470101,Purchase of Care,03/09/2019,3635076-2570149,"2,369.64",AKARI CARE LTD.
Adult and Health Services,Head of Adults,Third Party Payments 4THIRD,471101,Purchase of Care,03/09/2019,3635076-2570150,"2,457.00",AKARI CARE LTD.
Adult and Health Services,Head of Adults,Third Party Payments 4THIRD,470101,Purchase of Care,03/09/2019,3635076-2570151,"2,369.64",AKARI CARE LTD.
Adult and Health Services,Head of Adults,Third Party Payments 4THIRD,471101,Purchase of Care,03/09/2019,3635076-2570152,"2,457.00",AKARI CARE LTD.
Adult and Health Services,Head of Adults,Third Party Payments 4THIRD,471101,Purchase of Care,03/09/2019,3635076-2570153,"4,299.75",AKARI CARE LTD.
Adult and Health Services,Head of Adults,Third Party Payments 4THIRD,470101,Purchase of Care,03/09/2019,3635076-2570154,"2,369.64",AKARI CARE LTD.
Adult and Health Services,Head of Adults,Third Party Payments 4THIRD,471101,Purchase of Care,03/09/2019,3635076-2570155,"2,457.00",AKARI CARE LTD.
Adult and Health Services,Head of Adults,Third Party Payments 4THIRD,470101,Purchase of Care,03/09/2019,3635076-2570156,"2,369.64",AKARI CARE LTD.
Adult and Health Services,Head of Adults,Third Party Payments 4THIRD,470101,Purchase of Care,03/09/2019,3635076-2570157,"2,369.64",AKARI CARE LTD.
Adult and Health Services,Head of Adults,Third Party Payments 4THIRD,470101,Purchase of Care,03/09/2019,3635076-2570159,"2,369.64",AKARI CARE LTD.
Adult and Health Services,Head of Adults,Third Party Payments 4THIRD,471101,Purchase of Care,03/09/2019,3635076-2570160,"2,457.00",AKARI CARE LTD.
Adult and Health Services,Head of Adults,Third Party Payments 4THIRD,470101,Purchase of Care,03/09/2019,3635076-2570161,"2,369.64",AKARI CARE LTD.
Adult and Health Services,Head of Adults,Third Party Payments 4THIRD,470101,Purchase of Care,03/09/2019,3635076-2570162,"2,369.64",AKARI CARE LTD.
Adult and Health Services,Head of Adults,Third Party Payments 4THIRD,470101,Purchase of Care,03/09/2019,3635076-2570163,"2,369.64",AKARI CARE LTD.
Adult and Health Services,Head of Adults,Third Party Payments 4THIRD,471101,Purchase of Care,03/09/2019,3635076-2570164,"2,457.00",AKARI CARE LTD.
Adult and Health Services,Head of Adults,Third Party Payments 4THIRD,470101,Purchase of Care,03/09/2019,3635076-2570165,"2,369.64",AKARI CARE LTD.
Adult and Health Services,Head of Adults,Third Party Payments 4THIRD,471101,Purchase of Care,03/09/2019,3635076-2570166,"2,457.00",AKARI CARE LTD.
Adult and Health Services,Head of Adults,Third Party Payments 4THIRD,471101,Purchase of Care,03/09/2019,3635076-2570167,"2,457.00",AKARI CARE LTD.
Adult and Health Services,Head of Adults,Third Party Payments 4THIRD,471101,Purchase of Care,03/09/2019,3635076-2570168,"2,457.00",AKARI CARE LTD.
Adult and Health Services,Head of Adults,Third Party Payments 4THIRD,471101,Purchase of Care,03/09/2019,3635076-2570169,"2,457.00",AKARI CARE LTD.
Adult and Health Services,Head of Adults,Third Party Payments 4THIRD,470101,Purchase of Care,03/09/2019,3635076-2570170,"2,369.64",AKARI CARE LTD.
Adult and Health Services,Head of Adults,Third Party Payments 4THIRD,470101,Purchase of Care,03/09/2019,3635076-2570171,"2,369.64",AKARI CARE LTD.
Adult and Health Services,Head of Adults,Third Party Payments 4THIRD,470101,Purchase of Care,03/09/2019,3635076-2570172,"2,369.64",AKARI CARE LTD.
Adult and Health Services,Head of Adults,Third Party Payments 4THIRD,470101,Purchase of Care,03/09/2019,3635076-2570173,"2,369.64",AKARI CARE LTD.
Adult and Health Services,Head of Adults,Third Party Payments 4THIRD,470101,Purchase of Care,03/09/2019,3635076-2570174,"1,139.48",AKARI CARE LTD.
Adult and Health Services,Head of Adults,Third Party Payments 4THIRD,470101,Purchase of Care,03/09/2019,3635076-2570175,"2,369.64",AKARI CARE LTD.
Adult and Health Services,Head of Adults,Third Party Payments 4THIRD,470101,Purchase of Care,03/09/2019,3635076-2570176,"2,369.64",AKARI CARE LTD.
Adult and Health Services,Head of Adults,Third Party Payments 4THIRD,471101,Purchase of Care,03/09/2019,3635076-2572782,"2,457.00",AKARI CARE LTD.
Adult and Health Services,Head of Adults,Third Party Payments 4THIRD,471101,Purchase of Care,03/09/2019,3635076-2572947,789.75,AKARI CARE LTD.
Adult and Health Services,Head of Adults,Third Party Payments 4THIRD,474101,Purchase of Care,03/09/2019,3635077-2570484,"2,399.20",AKARI CARE LTD.
Adult and Health Services,Head of Adults,Third Party Payments 4THIRD,474101,Purchase of Care,03/09/2019,3635078-2571602,"2,466.24",AKARI CARE LTD.
Adult and Health Services,Head of Adults,Third Party Payments 4THIRD,470101,Purchase of Care,03/09/2019,3635078-2571605,"2,369.64",AKARI CARE LTD.
Adult and Health Services,Head of Adults,Third Party Payments 4THIRD,470101,Purchase of Care,03/09/2019,3635078-2571607,"2,369.64",AKARI CARE LTD.
Adult and Health Services,Head of Adults,Third Party Payments 4THIRD,470101,Purchase of Care,03/09/2019,3635078-2571608,"2,369.64",AKARI CARE LTD.
Adult and Health Services,Head of Adults,Third Party Payments 4THIRD,470101,Purchase of Care,03/09/2019,3635078-2571609,699.89,AKARI CARE LTD.
Adult and Health Services,Head of Adults,Third Party Payments 4THIRD,470101,Purchase of Care,03/09/2019,3635078-2571610,"2,369.64",AKARI CARE LTD.
Adult and Health Services,Head of Adults,Third Party Payments 4THIRD,474101,Purchase of Care,03/09/2019,3635078-2571611,"2,466.24",AKARI CARE LTD.
Adult and Health Services,Head of Adults,Third Party Payments 4THIRD,470101,Purchase of Care,03/09/2019,3635078-2571613,"2,449.64",AKARI CARE LTD.
Adult and Health Services,Head of Adults,Third Party Payments 4THIRD,474101,Purchase of Care,03/09/2019,3635078-2571614,"1,233.12",AKARI CARE LTD.
Adult and Health Services,Head of Adults,Third Party Payments 4THIRD,474101,Purchase of Care,03/09/2019,3635078-2571616,"2,466.24",AKARI CARE LTD.
Adult and Health Services,Head of Adults,Third Party Payments 4THIRD,470101,Purchase of Care,03/09/2019,3635078-2571618,"2,369.64",AKARI CARE LTD.
Adult and Health Services,Head of Adults,Third Party Payments 4THIRD,470101,Purchase of Care,03/09/2019,3635078-2571619,"2,285.01",AKARI CARE LTD.
Adult and Health Services,Head of Adults,Third Party Payments 4THIRD,470101,Purchase of Care,03/09/2019,3635078-2571620,"2,369.64",AKARI CARE LTD.
Adult and Health Services,Head of Adults,Third Party Payments 4THIRD,471101,Purchase of Care,03/09/2019,3635078-2571621,"2,457.00",AKARI CARE LTD.
Adult and Health Services,Head of Adults,Third Party Payments 4THIRD,471101,Purchase of Care,03/09/2019,3635078-2571622,"2,457.00",AKARI CARE LTD.
Adult and Health Services,Head of Adults,Third Party Payments 4THIRD,470101,Purchase of Care,03/09/2019,3635078-2571623,874.87,AKARI CARE LTD.
Adult and Health Services,Head of Adults,Third Party Payments 4THIRD,470101,Purchase of Care,03/09/2019,3635078-2571624,"2,369.64",AKARI CARE LTD.
Adult and Health Services,Head of Adults,Third Party Payments 4THIRD,470101,Purchase of Care,03/09/2019,3635078-2571625,"2,449.64",AKARI CARE LTD.
Adult and Health Services,Head of Adults,Third Party Payments 4THIRD,470101,Purchase of Care,03/09/2019,3635078-2571626,524.92,AKARI CARE LTD.
Adult and Health Services,Head of Adults,Third Party Payments 4THIRD,471101,Purchase of Care,03/09/2019,3635078-2571627,"2,457.00",AKARI CARE LTD.
Adult and Health Services,Head of Adults,Third Party Payments 4THIRD,474101,Purchase of Care,03/09/2019,3635078-2571628,"2,466.24",AKARI CARE LTD.
Adult and Health Services,Head of Adults,Third Party Payments 4THIRD,474101,Purchase of Care,03/09/2019,3635078-2571630,"2,466.24",AKARI CARE LTD.
Adult and Health Services,Head of Adults,Third Party Payments 4THIRD,470101,Purchase of Care,03/09/2019,3635078-2571632,"2,369.64",AKARI CARE LTD.
Adult and Health Services,Head of Adults,Third Party Payments 4THIRD,471101,Purchase of Care,03/09/2019,3635078-2571633,"2,457.00",AKARI CARE LTD.
Adult and Health Services,Head of Adults,Third Party Payments 4THIRD,470101,Purchase of Care,03/09/2019,3635078-2571634,"2,449.64",AKARI CARE LTD.
Adult and Health Services,Head of Adults,Third Party Payments 4THIRD,470101,Purchase of Care,03/09/2019,3635078-2571635,"2,646.78",AKARI CARE LTD.
Adult and Health Services,Head of Adults,Third Party Payments 4THIRD,474101,Purchase of Care,03/09/2019,3635078-2571636,"2,466.24",AKARI CARE LTD.
Adult and Health Services,Head of Adults,Third Party Payments 4THIRD,474101,Purchase of Care,03/09/2019,3635078-2571638,"2,466.24",AKARI CARE LTD.
Adult and Health Services,Head of Adults,Third Party Payments 4THIRD,470101,Purchase of Care,03/09/2019,3635078-2571640,"2,369.64",AKARI CARE LTD.
Adult and Health Services,Head of Adults,Third Party Payments 4THIRD,470101,Purchase of Care,03/09/2019,3635078-2571641,"2,369.64",AKARI CARE LTD.
Adult and Health Services,Head of Adults,Third Party Payments 4THIRD,474101,Purchase of Care,03/09/2019,3635078-2571642,"1,233.12",AKARI CARE LTD.
Adult and Health Services,Head of Adults,Third Party Payments 4THIRD,471101,Purchase of Care,03/09/2019,3635078-2571644,"2,457.00",AKARI CARE LTD.
Adult and Health Services,Head of Adults,Third Party Payments 4THIRD,474101,Purchase of Care,03/09/2019,3635078-2571645,"1,233.12",AKARI CARE LTD.
Adult and Health Services,Head of Adults,Third Party Payments 4THIRD,471101,Purchase of Care,03/09/2019,3635078-2571647,"2,457.00",AKARI CARE LTD.
Adult and Health Services,Head of Adults,Third Party Payments 4THIRD,471101,Purchase of Care,03/09/2019,3635078-2571648,"2,457.00",AKARI CARE LTD.
Adult and Health Services,Head of Adults,Third Party Payments 4THIRD,471101,Purchase of Care,03/09/2019,3635078-2571649,"2,457.00",AKARI CARE LTD.
Adult and Health Services,Head of Adults,Third Party Payments 4THIRD,471101,Purchase of Care,03/09/2019,3635078-2571650,"2,457.00",AKARI CARE LTD.
Adult and Health Services,Head of Adults,Third Party Payments 4THIRD,471101,Purchase of Care,03/09/2019,3635078-2571651,"2,457.00",AKARI CARE LTD.
Adult and Health Services,Head of Adults,Third Party Payments 4THIRD,471101,Purchase of Care,03/09/2019,3635078-2571652,"2,457.00",AKARI CARE LTD.
Adult and Health Services,Head of Adults,Third Party Payments 4THIRD,471101,Purchase of Care,03/09/2019,3635078-2571653,"2,457.00",AKARI CARE LTD.
Adult and Health Services,Head of Adults,Third Party Payments 4THIRD,471101,Purchase of Care,03/09/2019,3635078-2571654,"2,457.00",AKARI CARE LTD.
Adult and Health Services,Head of Adults,Third Party Payments 4THIRD,470101,Purchase of Care,03/09/2019,3635078-2571655,"2,369.64",AKARI CARE LTD.
Adult and Health Services,Head of Adults,Third Party Payments 4THIRD,470101,Purchase of Care,03/09/2019,3635078-2571656,"2,369.64",AKARI CARE LTD.
Adult and Health Services,Head of Adults,Third Party Payments 4THIRD,470101,Purchase of Care,03/09/2019,3635078-2571657,"2,369.64",AKARI CARE LTD.
Adult and Health Services,Head of Adults,Third Party Payments 4THIRD,471101,Purchase of Care,03/09/2019,3635078-2571658,"2,457.00",AKARI CARE LTD.
Adult and Health Services,Head of Adults,Third Party Payments 4THIRD,474101,Purchase of Care,03/09/2019,3635078-2572820,"1,321.20",AKARI CARE LTD.
Adult and Health Services,Head of Adults,Third Party Payments 4THIRD,470101,Purchase of Care,03/09/2019,3635079-2570118,"1,886.12",ALBANY CARE HOMES LTD.
Adult and Health Services,Head of Adults,Third Party Payments 4THIRD,470101,Purchase of Care,03/09/2019,3635079-2570119,683.76,ALBANY CARE HOMES LTD.
Adult and Health Services,Head of Adults,Third Party Payments 4THIRD,474101,Purchase of Care,03/09/2019,3635080-2572379,"3,152.00",ALDBOURNE NURSING HOME LTD.
Adult and Health Services,Head of Adults,Third Party Payments 4THIRD,474101,Purchase of Care,03/09/2019,3635081-2570004,"12,155.04",ALLIANCE CARE (TRENDLEWOOD) LTD.
Adult and Health Services,Head of Adults,Third Party Payments 4THIRD,470101,Purchase of Care,03/09/2019,3635081-2570006,"2,657.20",ALLIANCE CARE (TRENDLEWOOD) LTD.
Adult and Health Services,Head of Adults,Third Party Payments 4THIRD,470101,Purchase of Care,03/09/2019,3635081-2570007,"2,369.64",ALLIANCE CARE (TRENDLEWOOD) LTD.
Adult and Health Services,Head of Adults,Third Party Payments 4THIRD,470102,Purchase of Care,03/09/2019,3635081-2570008,"1,607.97",ALLIANCE CARE (TRENDLEWOOD) LTD.
Adult and Health Services,Head of Adults,Third Party Payments 4THIRD,474101,Purchase of Care,03/09/2019,3635081-2570009,"2,466.24",ALLIANCE CARE (TRENDLEWOOD) LTD.
Adult and Health Services,Head of Adults,Third Party Payments 4THIRD,470101,Purchase of Care,03/09/2019,3635081-2570014,592.41,ALLIANCE CARE (TRENDLEWOOD) LTD.
Adult and Health Services,Head of Adults,Third Party Payments 4THIRD,470101,Purchase of Care,03/09/2019,3635081-2570016,"1,438.71",ALLIANCE CARE (TRENDLEWOOD) LTD.
Adult and Health Services,Head of Adults,Third Party Payments 4THIRD,470101,Purchase of Care,03/09/2019,3635081-2570017,"2,369.64",ALLIANCE CARE (TRENDLEWOOD) LTD.
Adult and Health Services,Head of Adults,Third Party Payments 4THIRD,470101,Purchase of Care,03/09/2019,3635081-2570025,"2,369.64",ALLIANCE CARE (TRENDLEWOOD) LTD.
Adult and Health Services,Head of Adults,Third Party Payments 4THIRD,470101,Purchase of Care,03/09/2019,3635081-2570026,"2,657.20",ALLIANCE CARE (TRENDLEWOOD) LTD.
Adult and Health Services,Head of Adults,Third Party Payments 4THIRD,470101,Purchase of Care,03/09/2019,3635081-2570027,930.93,ALLIANCE CARE (TRENDLEWOOD) LTD.
Adult and Health Services,Head of Adults,Third Party Payments 4THIRD,474101,Purchase of Care,03/09/2019,3635081-2570028,"2,466.24",ALLIANCE CARE (TRENDLEWOOD) LTD.
Adult and Health Services,Head of Adults,Third Party Payments 4THIRD,470101,Purchase of Care,03/09/2019,3635081-2570030,"2,369.64",ALLIANCE CARE (TRENDLEWOOD) LTD.
Adult and Health Services,Head of Adults,Third Party Payments 4THIRD,470101,Purchase of Care,03/09/2019,3635081-2570031,"1,523.34",ALLIANCE CARE (TRENDLEWOOD) LTD.
Adult and Health Services,Head of Adults,Third Party Payments 4THIRD,470101,Purchase of Care,03/09/2019,3635081-2570034,"1,438.71",ALLIANCE CARE (TRENDLEWOOD) LTD.
Adult and Health Services,Head of Adults,Third Party Payments 4THIRD,470101,Purchase of Care,03/09/2019,3635081-2570035,"2,369.64",ALLIANCE CARE (TRENDLEWOOD) LTD.
Adult and Health Services,Head of Adults,Third Party Payments 4THIRD,470101,Purchase of Care,03/09/2019,3635081-2570036,"2,369.64",ALLIANCE CARE (TRENDLEWOOD) LTD.
Adult and Health Services,Head of Adults,Third Party Payments 4THIRD,470101,Purchase of Care,03/09/2019,3635081-2570038,"2,369.64",ALLIANCE CARE (TRENDLEWOOD) LTD.
Adult and Health Services,Head of Adults,Third Party Payments 4THIRD,470101,Purchase of Care,03/09/2019,3635081-2570039,"2,369.64",ALLIANCE CARE (TRENDLEWOOD) LTD.
Adult and Health Services,Head of Adults,Third Party Payments 4THIRD,470101,Purchase of Care,03/09/2019,3635081-2570040,"2,369.64",ALLIANCE CARE (TRENDLEWOOD) LTD.
Adult and Health Services,Head of Adults,Third Party Payments 4THIRD,470101,Purchase of Care,03/09/2019,3635081-2570041,"2,369.64",ALLIANCE CARE (TRENDLEWOOD) LTD.
Adult and Health Services,Head of Adults,Third Party Payments 4THIRD,474101,Purchase of Care,03/09/2019,3635081-2570042,"2,466.24",ALLIANCE CARE (TRENDLEWOOD) LTD.
Adult and Health Services,Head of Adults,Third Party Payments 4THIRD,474101,Purchase of Care,03/09/2019,3635081-2570044,"2,466.24",ALLIANCE CARE (TRENDLEWOOD) LTD.
Adult and Health Services,Head of Adults,Third Party Payments 4THIRD,470101,Purchase of Care,03/09/2019,3635081-2570046,"1,184.84",ALLIANCE CARE (TRENDLEWOOD) LTD.
Adult and Health Services,Head of Adults,Third Party Payments 4THIRD,471101,Purchase of Care,03/09/2019,3635081-2570047,"2,457.00",ALLIANCE CARE (TRENDLEWOOD) LTD.
Adult and Health Services,Head of Adults,Third Party Payments 4THIRD,474101,Purchase of Care,03/09/2019,3635081-2570048,"2,466.24",ALLIANCE CARE (TRENDLEWOOD) LTD.
Adult and Health Services,Head of Adults,Third Party Payments 4THIRD,470101,Purchase of Care,03/09/2019,3635081-2570050,"2,369.64",ALLIANCE CARE (TRENDLEWOOD) LTD.
Adult and Health Services,Head of Adults,Third Party Payments 4THIRD,474101,Purchase of Care,03/09/2019,3635081-2570051,"2,466.24",ALLIANCE CARE (TRENDLEWOOD) LTD.
Adult and Health Services,Head of Adults,Third Party Payments 4THIRD,471101,Purchase of Care,03/09/2019,3635081-2570053,"2,457.00",ALLIANCE CARE (TRENDLEWOOD) LTD.
Adult and Health Services,Head of Adults,Third Party Payments 4THIRD,470101,Purchase of Care,03/09/2019,3635081-2570054,"2,657.20",ALLIANCE CARE (TRENDLEWOOD) LTD.
Adult and Health Services,Head of Adults,Third Party Payments 4THIRD,470101,Purchase of Care,03/09/2019,3635081-2572559,"2,372.50",ALLIANCE CARE (TRENDLEWOOD) LTD.
Adult and Health Services,Head of Adults,Third Party Payments 4THIRD,470101,Purchase of Care,03/09/2019,3635081-2572730,"1,953.43",ALLIANCE CARE (TRENDLEWOOD) LTD.
Adult and Health Services,Head of Adults,Third Party Payments 4THIRD,470101,Purchase of Care,03/09/2019,3635082-2571388,"2,154.28",ANCHOR CAREHOMES LTD.
Adult and Health Services,Head of Adults,Third Party Payments 4THIRD,470101,Purchase of Care,03/09/2019,3635082-2571389,"2,320.00",ANCHOR CAREHOMES LTD.
Adult and Health Services,Head of Adults,Third Party Payments 4THIRD,470101,Purchase of Care,03/09/2019,3635082-2571390,"2,320.00",ANCHOR CAREHOMES LTD.
Adult and Health Services,Head of Adults,Third Party Payments 4THIRD,470101,Purchase of Care,03/09/2019,3635082-2571391,580.00,ANCHOR CAREHOMES LTD.
Adult and Health Services,Head of Adults,Third Party Payments 4THIRD,470101,Purchase of Care,03/09/2019,3635082-2572672,"1,740.00",ANCHOR CAREHOMES LTD.
Adult and Health Services,Head of Adults,Third Party Payments 4THIRD,470101,Purchase of Care,03/09/2019,3635083-2571392,"2,609.64",ANCHOR HANOVER GROUP.
Adult and Health Services,Head of Adults,Third Party Payments 4THIRD,471101,Purchase of Care,03/09/2019,3635083-2571393,"1,508.48",ANCHOR HANOVER GROUP.
Adult and Health Services,Head of Adults,Third Party Payments 4THIRD,470101,Purchase of Care,03/09/2019,3635083-2571394,"2,569.64",ANCHOR HANOVER GROUP.
Adult and Health Services,Head of Adults,Third Party Payments 4THIRD,471101,Purchase of Care,03/09/2019,3635083-2571395,"2,550.89",ANCHOR HANOVER GROUP.
Adult and Health Services,Head of Adults,Third Party Payments 4THIRD,471101,Purchase of Care,03/09/2019,3635083-2571396,"2,857.00",ANCHOR HANOVER GROUP.
Adult and Health Services,Head of Adults,Third Party Payments 4THIRD,470101,Purchase of Care,03/09/2019,3635083-2571397,"2,689.64",ANCHOR HANOVER GROUP.
Adult and Health Services,Head of Adults,Third Party Payments 4THIRD,471101,Purchase of Care,03/09/2019,3635083-2571398,"2,737.00",ANCHOR HANOVER GROUP.
Adult and Health Services,Head of Adults,Third Party Payments 4THIRD,471101,Purchase of Care,03/09/2019,3635083-2571399,"2,697.00",ANCHOR HANOVER GROUP.
Adult and Health Services,Head of Adults,Third Party Payments 4THIRD,470101,Purchase of Care,03/09/2019,3635083-2571400,"1,184.84",ANCHOR HANOVER GROUP.
Adult and Health Services,Head of Adults,Third Party Payments 4THIRD,471101,Purchase of Care,03/09/2019,3635083-2571401,"2,697.00",ANCHOR HANOVER GROUP.
Adult and Health Services,Head of Adults,Third Party Payments 4THIRD,470101,Purchase of Care,03/09/2019,3635083-2571402,"2,689.64",ANCHOR HANOVER GROUP.
Adult and Health Services,Head of Adults,Third Party Payments 4THIRD,470101,Purchase of Care,03/09/2019,3635083-2571403,"2,729.64",ANCHOR HANOVER GROUP.
Adult and Health Services,Head of Adults,Third Party Payments 4THIRD,471101,Purchase of Care,03/09/2019,3635083-2571404,"2,737.00",ANCHOR HANOVER GROUP.
Adult and Health Services,Head of Adults,Third Party Payments 4THIRD,471101,Purchase of Care,03/09/2019,3635083-2571406,"2,697.00",ANCHOR HANOVER GROUP.
Adult and Health Services,Head of Adults,Third Party Payments 4THIRD,470101,Purchase of Care,03/09/2019,3635083-2571407,"2,689.64",ANCHOR HANOVER GROUP.
Adult and Health Services,Head of Adults,Third Party Payments 4THIRD,470101,Purchase of Care,03/09/2019,3635083-2571408,"1,424.80",ANCHOR HANOVER GROUP.
Adult and Health Services,Head of Adults,Third Party Payments 4THIRD,471101,Purchase of Care,03/09/2019,3635083-2571409,"2,657.00",ANCHOR HANOVER GROUP.
Adult and Health Services,Head of Adults,Third Party Payments 4THIRD,470101,Purchase of Care,03/09/2019,3635083-2571410,"2,609.64",ANCHOR HANOVER GROUP.
Adult and Health Services,Head of Adults,Third Party Payments 4THIRD,470101,Purchase of Care,03/09/2019,3635083-2571411,"2,489.64",ANCHOR HANOVER GROUP.
Adult and Health Services,Head of Adults,Third Party Payments 4THIRD,470101,Purchase of Care,03/09/2019,3635083-2571412,"2,369.64",ANCHOR HANOVER GROUP.
Adult and Health Services,Head of Adults,Third Party Payments 4THIRD,471101,Purchase of Care,03/09/2019,3635083-2571413,"2,697.00",ANCHOR HANOVER GROUP.
Adult and Health Services,Head of Adults,Third Party Payments 4THIRD,471101,Purchase of Care,03/09/2019,3635083-2571414,"2,697.00",ANCHOR HANOVER GROUP.
Adult and Health Services,Head of Adults,Third Party Payments 4THIRD,470101,Purchase of Care,03/09/2019,3635083-2571415,"2,609.64",ANCHOR HANOVER GROUP.
Adult and Health Services,Head of Adults,Third Party Payments 4THIRD,470101,Purchase of Care,03/09/2019,3635083-2571416,"1,184.80",ANCHOR HANOVER GROUP.
Adult and Health Services,Head of Adults,Third Party Payments 4THIRD,471101,Purchase of Care,03/09/2019,3635083-2571417,"2,457.00",ANCHOR HANOVER GROUP.
Adult and Health Services,Head of Adults,Third Party Payments 4THIRD,470101,Purchase of Care,03/09/2019,3635083-2571418,"2,689.64",ANCHOR HANOVER GROUP.
Adult and Health Services,Head of Adults,Third Party Payments 4THIRD,471101,Purchase of Care,03/09/2019,3635083-2571419,"2,597.00",ANCHOR HANOVER GROUP.
Adult and Health Services,Head of Adults,Third Party Payments 4THIRD,471101,Purchase of Care,03/09/2019,3635083-2571420,"2,697.00",ANCHOR HANOVER GROUP.
Adult and Health Services,Head of Adults,Third Party Payments 4THIRD,470101,Purchase of Care,03/09/2019,3635083-2572695,"7,546.74",ANCHOR HANOVER GROUP.
Adult and Health Services,Head of Adults,Third Party Payments 4THIRD,470101,Purchase of Care,03/09/2019,3635083-2572920,"1,227.16",ANCHOR HANOVER GROUP.
Adult and Health Services,Head of Adults,Third Party Payments 4THIRD,470101,Purchase of Care,03/09/2019,3635084-2569545,"2,188.00",ANCHOR TRUST.
Adult and Health Services,Head of Adults,Third Party Payments 4THIRD,470101,Purchase of Care,03/09/2019,3635084-2569546,"2,188.00",ANCHOR TRUST.
Adult and Health Services,Head of Adults,Third Party Payments 4THIRD,470101,Purchase of Care,03/09/2019,3635084-2569547,"2,188.00",ANCHOR TRUST.
Adult and Health Services,Head of Adults,Third Party Payments 4THIRD,471101,Purchase of Care,03/09/2019,3635085-2569786,"2,019.76",ANDREW PASS.
Adult and Health Services,Head of Adults,Third Party Payments 4THIRD,474101,Purchase of Care,03/09/2019,3635087-2571099,"2,296.00",ARMSTRONG HOUSE.
Adult and Health Services,Head of Adults,Third Party Payments 4THIRD,470101,Purchase of Care,03/09/2019,3635088-2569745,"2,188.00",ASCOT CARE NORTH EAST LTD..
Adult and Health Services,Head of Adults,Third Party Payments 4THIRD,470101,Purchase of Care,03/09/2019,3635089-2569105,"2,369.64",ASCOT CARE NORTH EAST LTD..
Adult and Health Services,Head of Adults,Third Party Payments 4THIRD,470101,Purchase of Care,03/09/2019,3635089-2569106,"2,369.64",ASCOT CARE NORTH EAST LTD..
Adult and Health Services,Head of Adults,Third Party Payments 4THIRD,470101,Purchase of Care,03/09/2019,3635089-2569107,"2,369.64",ASCOT CARE NORTH EAST LTD..
Adult and Health Services,Head of Adults,Third Party Payments 4THIRD,471101,Purchase of Care,03/09/2019,3635089-2569108,"1,228.52",ASCOT CARE NORTH EAST LTD..
Adult and Health Services,Head of Adults,Third Party Payments 4THIRD,471101,Purchase of Care,03/09/2019,3635089-2569109,"1,791.00",ASCOT CARE NORTH EAST LTD..
Adult and Health Services,Head of Adults,Third Party Payments 4THIRD,470101,Purchase of Care,03/09/2019,3635089-2569110,"2,516.73",ASCOT CARE NORTH EAST LTD..
Adult and Health Services,Head of Adults,Third Party Payments 4THIRD,471101,Purchase of Care,03/09/2019,3635089-2569111,"1,228.50",ASCOT CARE NORTH EAST LTD..
Adult and Health Services,Head of Adults,Third Party Payments 4THIRD,470101,Purchase of Care,03/09/2019,3635089-2569112,592.41,ASCOT CARE NORTH EAST LTD..
Adult and Health Services,Head of Adults,Third Party Payments 4THIRD,470101,Purchase of Care,03/09/2019,3635089-2569113,"1,817.37",ASCOT CARE NORTH EAST LTD..
Adult and Health Services,Head of Adults,Third Party Payments 4THIRD,470101,Purchase of Care,03/09/2019,3635089-2569114,"1,884.28",ASCOT CARE NORTH EAST LTD..
Adult and Health Services,Head of Adults,Third Party Payments 4THIRD,470101,Purchase of Care,03/09/2019,3635089-2569115,"1,184.84",ASCOT CARE NORTH EAST LTD..
Adult and Health Services,Head of Adults,Third Party Payments 4THIRD,471101,Purchase of Care,03/09/2019,3635089-2569116,"2,457.00",ASCOT CARE NORTH EAST LTD..
Adult and Health Services,Head of Adults,Third Party Payments 4THIRD,471101,Purchase of Care,03/09/2019,3635089-2569117,"1,739.04",ASCOT CARE NORTH EAST LTD..
Adult and Health Services,Head of Adults,Third Party Payments 4THIRD,470101,Purchase of Care,03/09/2019,3635089-2569118,"1,472.00",ASCOT CARE NORTH EAST LTD..
Adult and Health Services,Head of Adults,Third Party Payments 4THIRD,470101,Purchase of Care,03/09/2019,3635089-2569119,"2,369.64",ASCOT CARE NORTH EAST LTD..
Adult and Health Services,Head of Adults,Third Party Payments 4THIRD,470101,Purchase of Care,03/09/2019,3635089-2569120,"2,369.64",ASCOT CARE NORTH EAST LTD..
Adult and Health Services,Head of Adults,Third Party Payments 4THIRD,470101,Purchase of Care,03/09/2019,3635089-2569122,"1,489.76",ASCOT CARE NORTH EAST LTD..
Adult and Health Services,Head of Adults,Third Party Payments 4THIRD,470101,Purchase of Care,03/09/2019,3635089-2569123,"2,369.64",ASCOT CARE NORTH EAST LTD..
Adult and Health Services,Head of Adults,Third Party Payments 4THIRD,470101,Purchase of Care,03/09/2019,3635089-2569124,"1,800.24",ASCOT CARE NORTH EAST LTD..
Adult and Health Services,Head of Adults,Third Party Payments 4THIRD,470101,Purchase of Care,03/09/2019,3635089-2569125,"1,780.88",ASCOT CARE NORTH EAST LTD..
Adult and Health Services,Head of Adults,Third Party Payments 4THIRD,470101,Purchase of Care,03/09/2019,3635089-2569126,"1,774.28",ASCOT CARE NORTH EAST LTD..
Adult and Health Services,Head of Adults,Third Party Payments 4THIRD,471101,Purchase of Care,03/09/2019,3635089-2569127,"1,360.28",ASCOT CARE NORTH EAST LTD..
Adult and Health Services,Head of Adults,Third Party Payments 4THIRD,470101,Purchase of Care,03/09/2019,3635089-2569128,"1,800.24",ASCOT CARE NORTH EAST LTD..
Adult and Health Services,Head of Adults,Third Party Payments 4THIRD,470101,Purchase of Care,03/09/2019,3635089-2569129,"1,800.24",ASCOT CARE NORTH EAST LTD..
Adult and Health Services,Head of Adults,Third Party Payments 4THIRD,470101,Purchase of Care,03/09/2019,3635089-2569130,"2,369.64",ASCOT CARE NORTH EAST LTD..
Adult and Health Services,Head of Adults,Third Party Payments 4THIRD,470101,Purchase of Care,03/09/2019,3635089-2569131,"1,494.04",ASCOT CARE NORTH EAST LTD..
Adult and Health Services,Head of Adults,Third Party Payments 4THIRD,470101,Purchase of Care,03/09/2019,3635089-2572642,"1,167.22",ASCOT CARE NORTH EAST LTD..
Adult and Health Services,Head of Adults,Third Party Payments 4THIRD,471101,Purchase of Care,03/09/2019,3635090-2570469,"2,516.20",ASHBOURNE LODGE CARE HOME.
Adult and Health Services,Head of Adults,Third Party Payments 4THIRD,470101,Purchase of Care,03/09/2019,3635091-2572512,"1,140.00",ASPIRE CARE GROUP T/A GRASMERE LODGE.
Adult and Health Services,Head of Adults,Third Party Payments 4THIRD,470101,Purchase of Care,03/09/2019,3635092-2571091,"1,734.00",ASPIRE CARE GROUP.
Adult and Health Services,Head of Adults,Third Party Payments 4THIRD,470101,Purchase of Care,03/09/2019,3635092-2571092,687.52,ASPIRE CARE GROUP.
Adult and Health Services,Head of Adults,Third Party Payments 4THIRD,470101,Purchase of Care,03/09/2019,3635092-2571093,"1,820.72",ASPIRE CARE GROUP.
Adult and Health Services,Head of Adults,Third Party Payments 4THIRD,470101,Purchase of Care,03/09/2019,3635092-2571094,"2,695.00",ASPIRE CARE GROUP.
Adult and Health Services,Head of Adults,Third Party Payments 4THIRD,470101,Purchase of Care,03/09/2019,3635092-2571095,"3,641.40",ASPIRE CARE GROUP.
Adult and Health Services,Head of Adults,Third Party Payments 4THIRD,470101,Purchase of Care,03/09/2019,3635092-2571096,"1,820.72",ASPIRE CARE GROUP.
Adult and Health Services,Head of Adults,Third Party Payments 4THIRD,470101,Purchase of Care,03/09/2019,3635092-2571097,668.64,ASPIRE CARE GROUP.
Adult and Health Services,Head of Adults,Third Party Payments 4THIRD,470101,Purchase of Care,03/09/2019,3635092-2571098,"2,043.92",ASPIRE CARE GROUP.
Adult and Health Services,Head of Adults,Third Party Payments 4THIRD,470101,Purchase of Care,03/09/2019,3635093-2571977,"1,021.96",ASPIRE CARE GROUP.
Adult and Health Services,Head of Adults,Third Party Payments 4THIRD,470101,Purchase of Care,03/09/2019,3635093-2571978,"2,043.92",ASPIRE CARE GROUP.
Adult and Health Services,Head of Adults,Third Party Payments 4THIRD,470101,Purchase of Care,03/09/2019,3635093-2571979,"2,043.92",ASPIRE CARE GROUP.
Adult and Health Services,Head of Adults,Third Party Payments 4THIRD,470101,Purchase of Care,03/09/2019,3635093-2571980,"1,629.72",ASPIRE CARE GROUP.
Adult and Health Services,Head of Adults,Third Party Payments 4THIRD,470101,Purchase of Care,03/09/2019,3635093-2571981,"1,344.28",ASPIRE CARE GROUP.
Adult and Health Services,Head of Adults,Third Party Payments 4THIRD,470101,Purchase of Care,03/09/2019,3635093-2571982,"1,471.28",ASPIRE CARE GROUP.
Adult and Health Services,Head of Adults,Third Party Payments 4THIRD,470101,Purchase of Care,03/09/2019,3635094-2569729,"2,043.92",ASPIRE CARE GROUP.
Adult and Health Services,Head of Adults,Third Party Payments 4THIRD,470101,Purchase of Care,03/09/2019,3635094-2569730,"2,043.92",ASPIRE CARE GROUP.
Adult and Health Services,Commissioning inc Supporting People,Third Party Payments 4THIRD,479111,Purchase of Care,03/09/2019,3634901-7023,"13,496.00",ASPIRE LEARNING SUPPORT & WELLBEING CIC.
Adult and Health Services,Head of Adults,Third Party Payments 4THIRD,474101,Purchase of Care,03/09/2019,3635095-2572475,"2,400.00",ASTORIA HEALTHCARE LTD.
Adult and Health Services,Head of Adults,Third Party Payments 4THIRD,474101,Purchase of Care,03/09/2019,3635096-2571923,"2,476.00",ATLAS CARE HOMES LTD.
Adult and Health Services,Head of Adults,Third Party Payments 4THIRD,474101,Purchase of Care,03/09/2019,3635096-2571924,"1,288.00",ATLAS CARE HOMES LTD.
Adult and Health Services,Head of Adults,Third Party Payments 4THIRD,470101,Purchase of Care,03/09/2019,3635097-2570569,"2,240.00",ATLAS CARE HOMES LTD.
Adult and Health Services,Head of Adults,Third Party Payments 4THIRD,470101,Purchase of Care,03/09/2019,3635098-2571380,"5,069.40",AUTISM CARE UK (4) LTD.
Adult and Health Services,Head of Adults,Third Party Payments 4THIRD,470101,Purchase of Care,03/09/2019,3635098-2571381,"2,043.92",AUTISM CARE UK (4) LTD.
Adult and Health Services,Head of Adults,Third Party Payments 4THIRD,470101,Purchase of Care,03/09/2019,3635098-2571382,"9,047.44",AUTISM CARE UK (4) LTD.
Adult and Health Services,Head of Adults,Third Party Payments 4THIRD,470101,Purchase of Care,03/09/2019,3635098-2571383,"4,416.28",AUTISM CARE UK (4) LTD.
Adult and Health Services,Head of Adults,Third Party Payments 4THIRD,470101,Purchase of Care,03/09/2019,3635098-2571384,"1,742.44",AUTISM CARE UK (4) LTD.
Adult and Health Services,Head of Adults,Third Party Payments 4THIRD,470101,Purchase of Care,03/09/2019,3635098-2571385,568.96,AUTISM CARE UK (4) LTD.
Adult and Health Services,Head of Adults,Third Party Payments 4THIRD,470101,Purchase of Care,03/09/2019,3635098-2571386,"3,153.04",AUTISM CARE UK (4) LTD.
Adult and Health Services,Head of Adults,Third Party Payments 4THIRD,470101,Purchase of Care,03/09/2019,3635098-2572953,"2,043.92",AUTISM CARE UK (4) LTD.
Adult and Health Services,Head of Adults,Third Party Payments 4THIRD,470101,Purchase of Care,03/09/2019,3635098-2572954,"59,673.17",AUTISM CARE UK (4) LTD.
Adult and Health Services,Head of Adults,Third Party Payments 4THIRD,474101,Purchase of Care,03/09/2019,3635099-2560879,"2,801.44",BARCHESTER HEALTHCARE HOMES LTD.
Adult and Health Services,Head of Adults,Third Party Payments 4THIRD,474101,Purchase of Care,03/09/2019,3635099-2560880,"2,994.00",BARCHESTER HEALTHCARE HOMES LTD.
Adult and Health Services,Head of Adults,Third Party Payments 4THIRD,474101,Purchase of Care,03/09/2019,3635099-2560881,"3,360.00",BARCHESTER HEALTHCARE HOMES LTD.
Adult and Health Services,Head of Adults,Third Party Payments 4THIRD,474101,Purchase of Care,03/09/2019,3635099-2560882,"2,950.00",BARCHESTER HEALTHCARE HOMES LTD.
Adult and Health Services,Head of Adults,Third Party Payments 4THIRD,474101,Purchase of Care,03/09/2019,3635099-2560884,"2,950.00",BARCHESTER HEALTHCARE HOMES LTD.
Adult and Health Services,Head of Adults,Third Party Payments 4THIRD,474101,Purchase of Care,03/09/2019,3635099-2560885,"2,990.00",BARCHESTER HEALTHCARE HOMES LTD.
Adult and Health Services,Head of Adults,Third Party Payments 4THIRD,474101,Purchase of Care,03/09/2019,3635099-2560886,"2,700.00",BARCHESTER HEALTHCARE HOMES LTD.
Adult and Health Services,Head of Adults,Third Party Payments 4THIRD,474101,Purchase of Care,03/09/2019,3635099-2565718,"2,801.44",BARCHESTER HEALTHCARE HOMES LTD.
Adult and Health Services,Head of Adults,Third Party Payments 4THIRD,474101,Purchase of Care,03/09/2019,3635099-2565719,"2,994.00",BARCHESTER HEALTHCARE HOMES LTD.
Adult and Health Services,Head of Adults,Third Party Payments 4THIRD,474101,Purchase of Care,03/09/2019,3635099-2565720,"3,360.00",BARCHESTER HEALTHCARE HOMES LTD.
Adult and Health Services,Head of Adults,Third Party Payments 4THIRD,474101,Purchase of Care,03/09/2019,3635099-2565721,"2,950.00",BARCHESTER HEALTHCARE HOMES LTD.
Adult and Health Services,Head of Adults,Third Party Payments 4THIRD,474101,Purchase of Care,03/09/2019,3635099-2565723,"2,950.00",BARCHESTER HEALTHCARE HOMES LTD.
Adult and Health Services,Head of Adults,Third Party Payments 4THIRD,474101,Purchase of Care,03/09/2019,3635099-2565724,"2,990.00",BARCHESTER HEALTHCARE HOMES LTD.
Adult and Health Services,Head of Adults,Third Party Payments 4THIRD,474101,Purchase of Care,03/09/2019,3635099-2565725,"2,700.00",BARCHESTER HEALTHCARE HOMES LTD.
Adult and Health Services,Head of Adults,Third Party Payments 4THIRD,474101,Purchase of Care,03/09/2019,3635099-2570614,"2,801.44",BARCHESTER HEALTHCARE HOMES LTD.
Adult and Health Services,Head of Adults,Third Party Payments 4THIRD,474101,Purchase of Care,03/09/2019,3635099-2570615,"2,994.00",BARCHESTER HEALTHCARE HOMES LTD.
Adult and Health Services,Head of Adults,Third Party Payments 4THIRD,474101,Purchase of Care,03/09/2019,3635099-2570616,"3,360.00",BARCHESTER HEALTHCARE HOMES LTD.
Adult and Health Services,Head of Adults,Third Party Payments 4THIRD,474101,Purchase of Care,03/09/2019,3635099-2570617,"2,950.00",BARCHESTER HEALTHCARE HOMES LTD.
Adult and Health Services,Head of Adults,Third Party Payments 4THIRD,474101,Purchase of Care,03/09/2019,3635099-2570619,"2,950.00",BARCHESTER HEALTHCARE HOMES LTD.
Adult and Health Services,Head of Adults,Third Party Payments 4THIRD,474101,Purchase of Care,03/09/2019,3635099-2570620,"2,990.00",BARCHESTER HEALTHCARE HOMES LTD.
Adult and Health Services,Head of Adults,Third Party Payments 4THIRD,474101,Purchase of Care,03/09/2019,3635099-2570621,"2,700.00",BARCHESTER HEALTHCARE HOMES LTD.
Adult and Health Services,Head of Adults,Third Party Payments 4THIRD,470101,Purchase of Care,03/09/2019,3635100-2546098,"1,900.00",BARCHESTER HEALTHCARE HOMES LTD.
Adult and Health Services,Head of Adults,Third Party Payments 4THIRD,471101,Purchase of Care,03/09/2019,3635100-2546099,"1,980.00",BARCHESTER HEALTHCARE HOMES LTD.
Adult and Health Services,Head of Adults,Third Party Payments 4THIRD,470101,Purchase of Care,03/09/2019,3635100-2546100,950.00,BARCHESTER HEALTHCARE HOMES LTD.
Adult and Health Services,Head of Adults,Third Party Payments 4THIRD,470101,Purchase of Care,03/09/2019,3635100-2550816,"1,984.00",BARCHESTER HEALTHCARE HOMES LTD.
Adult and Health Services,Head of Adults,Third Party Payments 4THIRD,471101,Purchase of Care,03/09/2019,3635100-2550817,"2,064.00",BARCHESTER HEALTHCARE HOMES LTD.
Adult and Health Services,Head of Adults,Third Party Payments 4THIRD,470101,Purchase of Care,03/09/2019,3635100-2550818,992.00,BARCHESTER HEALTHCARE HOMES LTD.
Adult and Health Services,Head of Adults,Third Party Payments 4THIRD,470101,Purchase of Care,03/09/2019,3635100-2555937,"1,984.00",BARCHESTER HEALTHCARE HOMES LTD.
Adult and Health Services,Head of Adults,Third Party Payments 4THIRD,471101,Purchase of Care,03/09/2019,3635100-2555938,"2,064.00",BARCHESTER HEALTHCARE HOMES LTD.
Adult and Health Services,Head of Adults,Third Party Payments 4THIRD,470101,Purchase of Care,03/09/2019,3635100-2555939,992.00,BARCHESTER HEALTHCARE HOMES LTD.
Adult and Health Services,Head of Adults,Third Party Payments 4THIRD,470101,Purchase of Care,03/09/2019,3635100-2560949,"1,984.00",BARCHESTER HEALTHCARE HOMES LTD.
Adult and Health Services,Head of Adults,Third Party Payments 4THIRD,471101,Purchase of Care,03/09/2019,3635100-2560950,"2,064.00",BARCHESTER HEALTHCARE HOMES LTD.
Adult and Health Services,Head of Adults,Third Party Payments 4THIRD,470101,Purchase of Care,03/09/2019,3635100-2560951,992.00,BARCHESTER HEALTHCARE HOMES LTD.
Adult and Health Services,Head of Adults,Third Party Payments 4THIRD,470101,Purchase of Care,03/09/2019,3635100-2565789,"1,984.00",BARCHESTER HEALTHCARE HOMES LTD.
Adult and Health Services,Head of Adults,Third Party Payments 4THIRD,471101,Purchase of Care,03/09/2019,3635100-2565790,"2,064.00",BARCHESTER HEALTHCARE HOMES LTD.
Adult and Health Services,Head of Adults,Third Party Payments 4THIRD,470101,Purchase of Care,03/09/2019,3635100-2565791,992.00,BARCHESTER HEALTHCARE HOMES LTD.
Adult and Health Services,Head of Adults,Third Party Payments 4THIRD,470101,Purchase of Care,03/09/2019,3635101-2570713,"2,720.00",BARCHESTER HEALTHCARE HOMES LTD.
Adult and Health Services,Head of Adults,Third Party Payments 4THIRD,470101,Purchase of Care,03/09/2019,3635101-2570716,"2,700.00",BARCHESTER HEALTHCARE HOMES LTD.
Adult and Health Services,Head of Adults,Third Party Payments 4THIRD,470101,Purchase of Care,03/09/2019,3635101-2570717,"2,284.80",BARCHESTER HEALTHCARE HOMES LTD.
Adult and Health Services,Head of Adults,Third Party Payments 4THIRD,470101,Purchase of Care,03/09/2019,3635101-2570718,"2,700.00",BARCHESTER HEALTHCARE HOMES LTD.
Adult and Health Services,Head of Adults,Third Party Payments 4THIRD,470101,Purchase of Care,03/09/2019,3635101-2570719,"2,800.00",BARCHESTER HEALTHCARE HOMES LTD.
Adult and Health Services,Head of Adults,Third Party Payments 4THIRD,470101,Purchase of Care,03/09/2019,3635101-2570720,"2,700.00",BARCHESTER HEALTHCARE HOMES LTD.
Adult and Health Services,Head of Adults,Third Party Payments 4THIRD,474101,Purchase of Care,03/09/2019,3635101-2570721,"2,700.00",BARCHESTER HEALTHCARE HOMES LTD.
Adult and Health Services,Head of Adults,Third Party Payments 4THIRD,474101,Purchase of Care,03/09/2019,3635101-2570722,"2,700.00",BARCHESTER HEALTHCARE HOMES LTD.
Adult and Health Services,Head of Adults,Third Party Payments 4THIRD,474101,Purchase of Care,03/09/2019,3635101-2570723,"2,700.00",BARCHESTER HEALTHCARE HOMES LTD.
Adult and Health Services,Head of Adults,Third Party Payments 4THIRD,470101,Purchase of Care,03/09/2019,3635101-2570725,"2,700.00",BARCHESTER HEALTHCARE HOMES LTD.
Adult and Health Services,Head of Adults,Third Party Payments 4THIRD,470101,Purchase of Care,03/09/2019,3635101-2570726,"2,700.00",BARCHESTER HEALTHCARE HOMES LTD.
Adult and Health Services,Head of Adults,Third Party Payments 4THIRD,470101,Purchase of Care,03/09/2019,3635101-2570727,"2,700.00",BARCHESTER HEALTHCARE HOMES LTD.
Adult and Health Services,Head of Adults,Third Party Payments 4THIRD,474101,Purchase of Care,03/09/2019,3635101-2570728,"1,980.00",BARCHESTER HEALTHCARE HOMES LTD.
Adult and Health Services,Head of Adults,Third Party Payments 4THIRD,474101,Purchase of Care,03/09/2019,3635101-2570729,"1,204.52",BARCHESTER HEALTHCARE HOMES LTD.
Adult and Health Services,Head of Adults,Third Party Payments 4THIRD,474101,Purchase of Care,03/09/2019,3635101-2570730,"6,964.00",BARCHESTER HEALTHCARE HOMES LTD.
Adult and Health Services,Head of Adults,Third Party Payments 4THIRD,470101,Purchase of Care,03/09/2019,3635101-2572889,"1,157.14",BARCHESTER HEALTHCARE HOMES LTD.
Adult and Health Services,Head of Adults,Third Party Payments 4THIRD,474101,Purchase of Care,03/09/2019,3635101-2572942,"2,603.57",BARCHESTER HEALTHCARE HOMES LTD.
Adult and Health Services,Head of Adults,Third Party Payments 4THIRD,474101,Purchase of Care,03/09/2019,3635102-2571659,"2,296.00",BARCHESTER HEALTHCARE HOMES LTD.
Adult and Health Services,Head of Adults,Third Party Payments 4THIRD,470101,Purchase of Care,03/09/2019,3635103-2570457,"2,044.00",BARCHESTER HEALTHCARE HOMES LTD.
Adult and Health Services,Head of Adults,Third Party Payments 4THIRD,474101,Purchase of Care,03/09/2019,3635104-2569609,"1,170.12",BARCHESTER HEALTHCARE HOMES LTD.
Adult and Health Services,Head of Adults,Third Party Payments 4THIRD,474101,Purchase of Care,03/09/2019,3635104-2569611,"1,002.96",BARCHESTER HEALTHCARE HOMES LTD.
Adult and Health Services,Head of Adults,Third Party Payments 4THIRD,474101,Purchase of Care,03/09/2019,3635104-2569613,835.80,BARCHESTER HEALTHCARE HOMES LTD.
Adult and Health Services,Head of Adults,Third Party Payments 4THIRD,474101,Purchase of Care,03/09/2019,3635104-2569615,"2,340.24",BARCHESTER HEALTHCARE HOMES LTD.
Adult and Health Services,Head of Adults,Third Party Payments 4THIRD,474101,Purchase of Care,03/09/2019,3635104-2569617,"2,340.24",BARCHESTER HEALTHCARE HOMES LTD.
Adult and Health Services,Head of Adults,Third Party Payments 4THIRD,474101,Purchase of Care,03/09/2019,3635104-2569620,"2,340.24",BARCHESTER HEALTHCARE HOMES LTD.
Adult and Health Services,Head of Adults,Third Party Payments 4THIRD,474101,Purchase of Care,03/09/2019,3635104-2569622,"2,340.24",BARCHESTER HEALTHCARE HOMES LTD.
Adult and Health Services,Head of Adults,Third Party Payments 4THIRD,474101,Purchase of Care,03/09/2019,3635104-2569625,"2,340.24",BARCHESTER HEALTHCARE HOMES LTD.
Adult and Health Services,Head of Adults,Third Party Payments 4THIRD,474101,Purchase of Care,03/09/2019,3635104-2569628,"1,170.12",BARCHESTER HEALTHCARE HOMES LTD.
Adult and Health Services,Head of Adults,Third Party Payments 4THIRD,474101,Purchase of Care,03/09/2019,3635104-2569630,"1,170.12",BARCHESTER HEALTHCARE HOMES LTD.
Adult and Health Services,Head of Adults,Third Party Payments 4THIRD,474101,Purchase of Care,03/09/2019,3635104-2569632,"2,552.20",BARCHESTER HEALTHCARE HOMES LTD.
Adult and Health Services,Head of Adults,Third Party Payments 4THIRD,474101,Purchase of Care,03/09/2019,3635104-2569635,"2,340.24",BARCHESTER HEALTHCARE HOMES LTD.
Adult and Health Services,Head of Adults,Third Party Payments 4THIRD,474101,Purchase of Care,03/09/2019,3635104-2569638,"2,340.24",BARCHESTER HEALTHCARE HOMES LTD.
Adult and Health Services,Head of Adults,Third Party Payments 4THIRD,474101,Purchase of Care,03/09/2019,3635104-2569641,"2,340.24",BARCHESTER HEALTHCARE HOMES LTD.
Adult and Health Services,Head of Adults,Third Party Payments 4THIRD,471101,Purchase of Care,03/09/2019,3635105-2572165,"1,284.00",BARCHESTER HEALTHCARE HOMES LTD.
Adult and Health Services,Head of Adults,Third Party Payments 4THIRD,474101,Purchase of Care,03/09/2019,3635106-2572170,"2,580.00",BARCHESTER HEALTHCARE HOMES LTD.
Children and Young Peoples Services,Head of Childrens Social Care,Third Party Payments 4THIRD,425040,Rendered by Voluntary Organisations,03/09/2019,3635108-PIG_27666,"29,286.40",BARNARDOS BELIEVE IN CHILDREN.
Children and Young Peoples Services,Head of Childrens Social Care,Third Party Payments 4THIRD,425021,Rendered by Voluntary Organisations,03/09/2019,3634902-BT0005,"19,024.64",BDT CARE SOLUTIONS LTD.
Children and Young Peoples Services,Head of Childrens Social Care,Third Party Payments 4THIRD,425021,Rendered by Voluntary Organisations,03/09/2019,3634902-LJB0006,"26,283.97",BDT CARE SOLUTIONS LTD.
Adult and Health Services,Head of Adults,Third Party Payments 4THIRD,471101,Purchase of Care,03/09/2019,3635109-2571461,"1,626.36",BEAMISH RESIDENTIAL CARE HOME LTD.
Adult and Health Services,Head of Adults,Third Party Payments 4THIRD,471101,Purchase of Care,03/09/2019,3635109-2571462,"1,761.88",BEAMISH RESIDENTIAL CARE HOME LTD.
Adult and Health Services,Head of Adults,Third Party Payments 4THIRD,470101,Purchase of Care,03/09/2019,3635109-2571463,"4,885.49",BEAMISH RESIDENTIAL CARE HOME LTD.
Adult and Health Services,Head of Adults,Third Party Payments 4THIRD,470101,Purchase of Care,03/09/2019,3635109-2571464,"2,242.52",BEAMISH RESIDENTIAL CARE HOME LTD.
Adult and Health Services,Head of Adults,Third Party Payments 4THIRD,470101,Purchase of Care,03/09/2019,3635109-2571466,"2,242.52",BEAMISH RESIDENTIAL CARE HOME LTD.
Adult and Health Services,Head of Adults,Third Party Payments 4THIRD,470101,Purchase of Care,03/09/2019,3635109-2571467,"2,242.52",BEAMISH RESIDENTIAL CARE HOME LTD.
Adult and Health Services,Head of Adults,Third Party Payments 4THIRD,471101,Purchase of Care,03/09/2019,3635109-2571468,"1,761.88",BEAMISH RESIDENTIAL CARE HOME LTD.
Adult and Health Services,Head of Adults,Third Party Payments 4THIRD,471101,Purchase of Care,03/09/2019,3635109-2571469,"2,331.28",BEAMISH RESIDENTIAL CARE HOME LTD.
Adult and Health Services,Head of Adults,Third Party Payments 4THIRD,470101,Purchase of Care,03/09/2019,3635109-2571470,"1,650.84",BEAMISH RESIDENTIAL CARE HOME LTD.
Adult and Health Services,Head of Adults,Third Party Payments 4THIRD,470101,Purchase of Care,03/09/2019,3635109-2571471,"1,121.24",BEAMISH RESIDENTIAL CARE HOME LTD.
Adult and Health Services,Head of Adults,Third Party Payments 4THIRD,470101,Purchase of Care,03/09/2019,3635109-2571472,"2,242.52",BEAMISH RESIDENTIAL CARE HOME LTD.
Adult and Health Services,Head of Adults,Third Party Payments 4THIRD,470101,Purchase of Care,03/09/2019,3635109-2571473,"2,242.52",BEAMISH RESIDENTIAL CARE HOME LTD.
Adult and Health Services,Head of Adults,Third Party Payments 4THIRD,470101,Purchase of Care,03/09/2019,3635109-2571474,"2,242.52",BEAMISH RESIDENTIAL CARE HOME LTD.
Adult and Health Services,Head of Adults,Third Party Payments 4THIRD,470101,Purchase of Care,03/09/2019,3635109-2571475,528.00,BEAMISH RESIDENTIAL CARE HOME LTD.
Adult and Health Services,Head of Adults,Third Party Payments 4THIRD,470101,Purchase of Care,03/09/2019,3635109-2571476,880.99,BEAMISH RESIDENTIAL CARE HOME LTD.
Adult and Health Services,Head of Adults,Third Party Payments 4THIRD,471101,Purchase of Care,03/09/2019,3635109-2572641,500.14,BEAMISH RESIDENTIAL CARE HOME LTD.
Adult and Health Services,Head of Adults,Third Party Payments 4THIRD,470101,Purchase of Care,03/09/2019,3635110-2572515,"1,021.96",BENTON CARE SERVICES LTD.
Adult and Health Services,Head of Adults,Third Party Payments 4THIRD,470101,Purchase of Care,03/09/2019,3635110-2572516,"3,182.60",BENTON CARE SERVICES LTD.
Adult and Health Services,Head of Adults,Third Party Payments 4THIRD,470101,Purchase of Care,03/09/2019,3635110-2572517,"3,182.60",BENTON CARE SERVICES LTD.
Adult and Health Services,Head of Adults,Third Party Payments 4THIRD,470101,Purchase of Care,03/09/2019,3635110-2572518,"2,043.92",BENTON CARE SERVICES LTD.
Adult and Health Services,Head of Adults,Third Party Payments 4THIRD,470101,Purchase of Care,03/09/2019,3635110-2572519,"3,182.60",BENTON CARE SERVICES LTD.
Adult and Health Services,Head of Adults,Third Party Payments 4THIRD,470101,Purchase of Care,03/09/2019,3635110-2572520,"3,182.60",BENTON CARE SERVICES LTD.
Adult and Health Services,Head of Adults,Third Party Payments 4THIRD,470101,Purchase of Care,03/09/2019,3635110-2572521,"3,182.60",BENTON CARE SERVICES LTD.
Adult and Health Services,Head of Adults,Third Party Payments 4THIRD,470101,Purchase of Care,03/09/2019,3635110-2572522,"3,182.60",BENTON CARE SERVICES LTD.
Adult and Health Services,Head of Adults,Third Party Payments 4THIRD,478101,Purchase of Care,03/09/2019,3634904-12073,"1,116.52",BEST T/A BESPOKE SUPPORTIVE TENANCIES LTD.
Adult and Health Services,Head of Adults,Third Party Payments 4THIRD,470101,Purchase of Care,03/09/2019,3635112-2571203,"2,144.00",BONDCARE WILLINGTON LTD.
Adult and Health Services,Head of Adults,Third Party Payments 4THIRD,474101,Purchase of Care,03/09/2019,3635113-2568259,"1,511.68",BONDCARE WILLINGTON LTD.
Adult and Health Services,Head of Adults,Third Party Payments 4THIRD,470101,Purchase of Care,03/09/2019,3635113-2568261,746.62,BONDCARE WILLINGTON LTD.
Adult and Health Services,Head of Adults,Third Party Payments 4THIRD,474101,Purchase of Care,03/09/2019,3635113-2568262,"2,466.24",BONDCARE WILLINGTON LTD.
Adult and Health Services,Head of Adults,Third Party Payments 4THIRD,470101,Purchase of Care,03/09/2019,3635113-2568264,"1,184.84",BONDCARE WILLINGTON LTD.
Adult and Health Services,Head of Adults,Third Party Payments 4THIRD,470101,Purchase of Care,03/09/2019,3635113-2568265,"1,100.19",BONDCARE WILLINGTON LTD.
Adult and Health Services,Head of Adults,Third Party Payments 4THIRD,470101,Purchase of Care,03/09/2019,3635113-2568266,"2,369.64",BONDCARE WILLINGTON LTD.
Adult and Health Services,Head of Adults,Third Party Payments 4THIRD,470101,Purchase of Care,03/09/2019,3635113-2568268,"2,986.48",BONDCARE WILLINGTON LTD.
Adult and Health Services,Head of Adults,Third Party Payments 4THIRD,470101,Purchase of Care,03/09/2019,3635113-2568269,"2,369.64",BONDCARE WILLINGTON LTD.
Adult and Health Services,Head of Adults,Third Party Payments 4THIRD,470101,Purchase of Care,03/09/2019,3635113-2568270,"2,369.64",BONDCARE WILLINGTON LTD.
Adult and Health Services,Head of Adults,Third Party Payments 4THIRD,474101,Purchase of Care,03/09/2019,3635113-2568271,"3,023.32",BONDCARE WILLINGTON LTD.
Adult and Health Services,Head of Adults,Third Party Payments 4THIRD,470101,Purchase of Care,03/09/2019,3635113-2568273,"2,369.64",BONDCARE WILLINGTON LTD.
Adult and Health Services,Head of Adults,Third Party Payments 4THIRD,470101,Purchase of Care,03/09/2019,3635113-2568274,"2,444.12",BONDCARE WILLINGTON LTD.
Adult and Health Services,Head of Adults,Third Party Payments 4THIRD,470101,Purchase of Care,03/09/2019,3635113-2568276,"2,369.64",BONDCARE WILLINGTON LTD.
Adult and Health Services,Head of Adults,Third Party Payments 4THIRD,470101,Purchase of Care,03/09/2019,3635113-2568277,"1,184.80",BONDCARE WILLINGTON LTD.
Adult and Health Services,Head of Adults,Third Party Payments 4THIRD,470101,Purchase of Care,03/09/2019,3635113-2568278,"2,369.64",BONDCARE WILLINGTON LTD.
Adult and Health Services,Head of Adults,Third Party Payments 4THIRD,470101,Purchase of Care,03/09/2019,3635113-2568279,"2,369.64",BONDCARE WILLINGTON LTD.
Adult and Health Services,Head of Adults,Third Party Payments 4THIRD,474101,Purchase of Care,03/09/2019,3635113-2568280,"2,466.24",BONDCARE WILLINGTON LTD.
Adult and Health Services,Head of Adults,Third Party Payments 4THIRD,474101,Purchase of Care,03/09/2019,3635113-2568282,"3,023.32",BONDCARE WILLINGTON LTD.
Adult and Health Services,Head of Adults,Third Party Payments 4THIRD,470101,Purchase of Care,03/09/2019,3635113-2568284,"2,986.48",BONDCARE WILLINGTON LTD.
Adult and Health Services,Head of Adults,Third Party Payments 4THIRD,470101,Purchase of Care,03/09/2019,3635113-2568285,"2,369.64",BONDCARE WILLINGTON LTD.
Adult and Health Services,Head of Adults,Third Party Payments 4THIRD,470101,Purchase of Care,03/09/2019,3635113-2568286,"2,657.20",BONDCARE WILLINGTON LTD.
Adult and Health Services,Head of Adults,Third Party Payments 4THIRD,470101,Purchase of Care,03/09/2019,3635113-2568287,"2,986.48",BONDCARE WILLINGTON LTD.
Adult and Health Services,Head of Adults,Third Party Payments 4THIRD,470101,Purchase of Care,03/09/2019,3635113-2568288,"2,369.64",BONDCARE WILLINGTON LTD.
Adult and Health Services,Head of Adults,Third Party Payments 4THIRD,470101,Purchase of Care,03/09/2019,3635113-2568289,"2,444.12",BONDCARE WILLINGTON LTD.
Adult and Health Services,Head of Adults,Third Party Payments 4THIRD,474101,Purchase of Care,03/09/2019,3635113-2568290,"2,466.24",BONDCARE WILLINGTON LTD.
Adult and Health Services,Head of Adults,Third Party Payments 4THIRD,470101,Purchase of Care,03/09/2019,3635113-2568292,"2,369.64",BONDCARE WILLINGTON LTD.
Adult and Health Services,Head of Adults,Third Party Payments 4THIRD,474101,Purchase of Care,03/09/2019,3635113-2568293,"2,466.24",BONDCARE WILLINGTON LTD.
Adult and Health Services,Head of Adults,Third Party Payments 4THIRD,470101,Purchase of Care,03/09/2019,3635113-2568295,"2,444.12",BONDCARE WILLINGTON LTD.
Adult and Health Services,Head of Adults,Third Party Payments 4THIRD,474101,Purchase of Care,03/09/2019,3635113-2568296,"2,476.88",BONDCARE WILLINGTON LTD.
Adult and Health Services,Head of Adults,Third Party Payments 4THIRD,470101,Purchase of Care,03/09/2019,3635113-2568298,"2,444.12",BONDCARE WILLINGTON LTD.
Adult and Health Services,Head of Adults,Third Party Payments 4THIRD,474101,Purchase of Care,03/09/2019,3635113-2568299,"2,466.24",BONDCARE WILLINGTON LTD.
Adult and Health Services,Head of Adults,Third Party Payments 4THIRD,470101,Purchase of Care,03/09/2019,3635113-2568301,"2,369.64",BONDCARE WILLINGTON LTD.
Adult and Health Services,Head of Adults,Third Party Payments 4THIRD,470101,Purchase of Care,03/09/2019,3635113-2568302,"2,444.12",BONDCARE WILLINGTON LTD.
Adult and Health Services,Head of Adults,Third Party Payments 4THIRD,474101,Purchase of Care,03/09/2019,3635113-2568303,"2,466.24",BONDCARE WILLINGTON LTD.
Adult and Health Services,Head of Adults,Third Party Payments 4THIRD,470101,Purchase of Care,03/09/2019,3635113-2568305,"2,444.12",BONDCARE WILLINGTON LTD.
Adult and Health Services,Head of Adults,Third Party Payments 4THIRD,470101,Purchase of Care,03/09/2019,3635113-2568306,"2,444.12",BONDCARE WILLINGTON LTD.
Adult and Health Services,Head of Adults,Third Party Payments 4THIRD,470101,Purchase of Care,03/09/2019,3635113-2568307,"2,444.12",BONDCARE WILLINGTON LTD.
Adult and Health Services,Head of Adults,Third Party Payments 4THIRD,470101,Purchase of Care,03/09/2019,3635113-2572850,651.14,BONDCARE WILLINGTON LTD.
Adult and Health Services,Head of Adults,Third Party Payments 4THIRD,470101,Purchase of Care,03/09/2019,3635113-2572929,664.30,BONDCARE WILLINGTON LTD.
Adult and Health Services,Head of Adults,Third Party Payments 4THIRD,471101,Purchase of Care,03/09/2019,3635114-2569975,"2,457.00",BONDCARE WILLINGTON LTD.
Adult and Health Services,Head of Adults,Third Party Payments 4THIRD,471101,Purchase of Care,03/09/2019,3635114-2569976,"2,457.00",BONDCARE WILLINGTON LTD.
Adult and Health Services,Head of Adults,Third Party Payments 4THIRD,471101,Purchase of Care,03/09/2019,3635114-2569977,"2,457.00",BONDCARE WILLINGTON LTD.
Adult and Health Services,Head of Adults,Third Party Payments 4THIRD,471101,Purchase of Care,03/09/2019,3635114-2569978,"2,457.00",BONDCARE WILLINGTON LTD.
Adult and Health Services,Head of Adults,Third Party Payments 4THIRD,471101,Purchase of Care,03/09/2019,3635114-2569979,"2,457.00",BONDCARE WILLINGTON LTD.
Adult and Health Services,Head of Adults,Third Party Payments 4THIRD,471101,Purchase of Care,03/09/2019,3635114-2569980,"2,457.00",BONDCARE WILLINGTON LTD.
Adult and Health Services,Head of Adults,Third Party Payments 4THIRD,471101,Purchase of Care,03/09/2019,3635114-2569982,"2,457.00",BONDCARE WILLINGTON LTD.
Adult and Health Services,Head of Adults,Third Party Payments 4THIRD,471101,Purchase of Care,03/09/2019,3635114-2569983,"2,457.00",BONDCARE WILLINGTON LTD.
Adult and Health Services,Head of Adults,Third Party Payments 4THIRD,471101,Purchase of Care,03/09/2019,3635114-2569984,"1,228.52",BONDCARE WILLINGTON LTD.
Adult and Health Services,Head of Adults,Third Party Payments 4THIRD,470101,Purchase of Care,03/09/2019,3635114-2569985,"2,444.12",BONDCARE WILLINGTON LTD.
Adult and Health Services,Head of Adults,Third Party Payments 4THIRD,471101,Purchase of Care,03/09/2019,3635114-2569986,"2,457.00",BONDCARE WILLINGTON LTD.
Adult and Health Services,Head of Adults,Third Party Payments 4THIRD,471101,Purchase of Care,03/09/2019,3635114-2569987,"2,457.00",BONDCARE WILLINGTON LTD.
Adult and Health Services,Head of Adults,Third Party Payments 4THIRD,471101,Purchase of Care,03/09/2019,3635114-2569988,"2,457.00",BONDCARE WILLINGTON LTD.
Adult and Health Services,Head of Adults,Third Party Payments 4THIRD,471101,Purchase of Care,03/09/2019,3635114-2569989,"2,457.00",BONDCARE WILLINGTON LTD.
Adult and Health Services,Head of Adults,Third Party Payments 4THIRD,470101,Purchase of Care,03/09/2019,3635114-2569990,"2,444.12",BONDCARE WILLINGTON LTD.
Adult and Health Services,Head of Adults,Third Party Payments 4THIRD,471101,Purchase of Care,03/09/2019,3635114-2569991,"2,018.25",BONDCARE WILLINGTON LTD.
Adult and Health Services,Head of Adults,Third Party Payments 4THIRD,471101,Purchase of Care,03/09/2019,3635114-2569992,"1,228.52",BONDCARE WILLINGTON LTD.
Adult and Health Services,Head of Adults,Third Party Payments 4THIRD,470101,Purchase of Care,03/09/2019,3635114-2569993,"2,444.12",BONDCARE WILLINGTON LTD.
Adult and Health Services,Head of Adults,Third Party Payments 4THIRD,470101,Purchase of Care,03/09/2019,3635114-2569994,"2,444.12",BONDCARE WILLINGTON LTD.
Adult and Health Services,Head of Adults,Third Party Payments 4THIRD,471101,Purchase of Care,03/09/2019,3635114-2569995,"2,457.00",BONDCARE WILLINGTON LTD.
Adult and Health Services,Head of Adults,Third Party Payments 4THIRD,470101,Purchase of Care,03/09/2019,3635114-2569996,"2,444.12",BONDCARE WILLINGTON LTD.
Adult and Health Services,Head of Adults,Third Party Payments 4THIRD,471101,Purchase of Care,03/09/2019,3635114-2569997,"2,457.00",BONDCARE WILLINGTON LTD.
Adult and Health Services,Head of Adults,Third Party Payments 4THIRD,470101,Purchase of Care,03/09/2019,3635114-2569998,"2,444.12",BONDCARE WILLINGTON LTD.
Adult and Health Services,Head of Adults,Third Party Payments 4THIRD,471101,Purchase of Care,03/09/2019,3635114-2569999,"2,457.00",BONDCARE WILLINGTON LTD.
Adult and Health Services,Head of Adults,Third Party Payments 4THIRD,471101,Purchase of Care,03/09/2019,3635114-2570001,"2,457.00",BONDCARE WILLINGTON LTD.
Adult and Health Services,Head of Adults,Third Party Payments 4THIRD,471101,Purchase of Care,03/09/2019,3635114-2570002,"2,457.00",BONDCARE WILLINGTON LTD.
Adult and Health Services,Head of Adults,Third Party Payments 4THIRD,471101,Purchase of Care,03/09/2019,3635114-2572667,545.60,BONDCARE WILLINGTON LTD.
Adult and Health Services,Head of Adults,Third Party Payments 4THIRD,471101,Purchase of Care,03/09/2019,3635114-2572674,"1,667.25",BONDCARE WILLINGTON LTD.
Adult and Health Services,Head of Adults,Third Party Payments 4THIRD,471101,Purchase of Care,03/09/2019,3635114-2572931,789.75,BONDCARE WILLINGTON LTD.
Adult and Health Services,Head of Adults,Third Party Payments 4THIRD,474101,Purchase of Care,03/09/2019,3635115-2569806,"1,233.12",BONDCARE WILLINGTON LTD.
Adult and Health Services,Head of Adults,Third Party Payments 4THIRD,470101,Purchase of Care,03/09/2019,3635115-2569808,"2,444.12",BONDCARE WILLINGTON LTD.
Adult and Health Services,Head of Adults,Third Party Payments 4THIRD,470101,Purchase of Care,03/09/2019,3635115-2569809,736.40,BONDCARE WILLINGTON LTD.
Adult and Health Services,Head of Adults,Third Party Payments 4THIRD,474101,Purchase of Care,03/09/2019,3635115-2569811,"2,466.24",BONDCARE WILLINGTON LTD.
Adult and Health Services,Head of Adults,Third Party Payments 4THIRD,474101,Purchase of Care,03/09/2019,3635115-2569813,"1,233.12",BONDCARE WILLINGTON LTD.
Adult and Health Services,Head of Adults,Third Party Payments 4THIRD,474101,Purchase of Care,03/09/2019,3635115-2569814,"2,393.32",BONDCARE WILLINGTON LTD.
Adult and Health Services,Head of Adults,Third Party Payments 4THIRD,471101,Purchase of Care,03/09/2019,3635115-2569816,"2,457.00",BONDCARE WILLINGTON LTD.
Adult and Health Services,Head of Adults,Third Party Payments 4THIRD,471101,Purchase of Care,03/09/2019,3635115-2569817,"2,457.00",BONDCARE WILLINGTON LTD.
Adult and Health Services,Head of Adults,Third Party Payments 4THIRD,470101,Purchase of Care,03/09/2019,3635115-2569818,"2,444.12",BONDCARE WILLINGTON LTD.
Adult and Health Services,Head of Adults,Third Party Payments 4THIRD,470101,Purchase of Care,03/09/2019,3635115-2569819,"2,444.12",BONDCARE WILLINGTON LTD.
Adult and Health Services,Head of Adults,Third Party Payments 4THIRD,470101,Purchase of Care,03/09/2019,3635115-2569821,"2,444.12",BONDCARE WILLINGTON LTD.
Adult and Health Services,Head of Adults,Third Party Payments 4THIRD,470101,Purchase of Care,03/09/2019,3635115-2569822,526.00,BONDCARE WILLINGTON LTD.
Adult and Health Services,Head of Adults,Third Party Payments 4THIRD,470101,Purchase of Care,03/09/2019,3635115-2569823,"2,444.12",BONDCARE WILLINGTON LTD.
Adult and Health Services,Head of Adults,Third Party Payments 4THIRD,474101,Purchase of Care,03/09/2019,3635115-2569825,"1,233.12",BONDCARE WILLINGTON LTD.
Adult and Health Services,Head of Adults,Third Party Payments 4THIRD,470101,Purchase of Care,03/09/2019,3635115-2569827,"2,444.12",BONDCARE WILLINGTON LTD.
Adult and Health Services,Head of Adults,Third Party Payments 4THIRD,474101,Purchase of Care,03/09/2019,3635115-2569828,"1,233.12",BONDCARE WILLINGTON LTD.
Adult and Health Services,Head of Adults,Third Party Payments 4THIRD,474101,Purchase of Care,03/09/2019,3635115-2569829,"4,373.60",BONDCARE WILLINGTON LTD.
Adult and Health Services,Head of Adults,Third Party Payments 4THIRD,470101,Purchase of Care,03/09/2019,3635115-2569831,"2,444.12",BONDCARE WILLINGTON LTD.
Adult and Health Services,Head of Adults,Third Party Payments 4THIRD,470101,Purchase of Care,03/09/2019,3635115-2569832,"3,030.00",BONDCARE WILLINGTON LTD.
Adult and Health Services,Head of Adults,Third Party Payments 4THIRD,474101,Purchase of Care,03/09/2019,3635115-2569833,"1,233.12",BONDCARE WILLINGTON LTD.
Adult and Health Services,Head of Adults,Third Party Payments 4THIRD,474101,Purchase of Care,03/09/2019,3635115-2569835,"1,233.12",BONDCARE WILLINGTON LTD.
Adult and Health Services,Head of Adults,Third Party Payments 4THIRD,474101,Purchase of Care,03/09/2019,3635115-2569837,"2,466.24",BONDCARE WILLINGTON LTD.
Adult and Health Services,Head of Adults,Third Party Payments 4THIRD,474101,Purchase of Care,03/09/2019,3635115-2569839,"2,466.24",BONDCARE WILLINGTON LTD.
Adult and Health Services,Head of Adults,Third Party Payments 4THIRD,471101,Purchase of Care,03/09/2019,3635115-2569841,"2,457.00",BONDCARE WILLINGTON LTD.
Adult and Health Services,Head of Adults,Third Party Payments 4THIRD,470101,Purchase of Care,03/09/2019,3635115-2569842,"2,444.12",BONDCARE WILLINGTON LTD.
Adult and Health Services,Head of Adults,Third Party Payments 4THIRD,474101,Purchase of Care,03/09/2019,3635115-2569843,"1,233.12",BONDCARE WILLINGTON LTD.
Adult and Health Services,Head of Adults,Third Party Payments 4THIRD,474101,Purchase of Care,03/09/2019,3635115-2569844,920.52,BONDCARE WILLINGTON LTD.
Adult and Health Services,Head of Adults,Third Party Payments 4THIRD,474101,Purchase of Care,03/09/2019,3635115-2569846,"2,466.24",BONDCARE WILLINGTON LTD.
Adult and Health Services,Head of Adults,Third Party Payments 4THIRD,470101,Purchase of Care,03/09/2019,3635115-2569848,"2,444.12",BONDCARE WILLINGTON LTD.
Adult and Health Services,Head of Adults,Third Party Payments 4THIRD,474101,Purchase of Care,03/09/2019,3635115-2569849,"1,233.12",BONDCARE WILLINGTON LTD.
Adult and Health Services,Head of Adults,Third Party Payments 4THIRD,470101,Purchase of Care,03/09/2019,3635115-2569852,"2,444.12",BONDCARE WILLINGTON LTD.
Adult and Health Services,Head of Adults,Third Party Payments 4THIRD,474101,Purchase of Care,03/09/2019,3635115-2569855,"2,466.24",BONDCARE WILLINGTON LTD.
Adult and Health Services,Head of Adults,Third Party Payments 4THIRD,474101,Purchase of Care,03/09/2019,3635115-2569857,"2,466.24",BONDCARE WILLINGTON LTD.
Adult and Health Services,Head of Adults,Third Party Payments 4THIRD,470101,Purchase of Care,03/09/2019,3635115-2569859,"2,444.12",BONDCARE WILLINGTON LTD.
Adult and Health Services,Head of Adults,Third Party Payments 4THIRD,470101,Purchase of Care,03/09/2019,3635115-2569860,"2,444.12",BONDCARE WILLINGTON LTD.
Adult and Health Services,Head of Adults,Third Party Payments 4THIRD,470101,Purchase of Care,03/09/2019,3635115-2569861,736.40,BONDCARE WILLINGTON LTD.
Adult and Health Services,Head of Adults,Third Party Payments 4THIRD,470101,Purchase of Care,03/09/2019,3635115-2569862,"2,444.12",BONDCARE WILLINGTON LTD.
Adult and Health Services,Head of Adults,Third Party Payments 4THIRD,470101,Purchase of Care,03/09/2019,3635115-2569863,"2,444.12",BONDCARE WILLINGTON LTD.
Adult and Health Services,Head of Adults,Third Party Payments 4THIRD,474101,Purchase of Care,03/09/2019,3635115-2569864,"2,466.24",BONDCARE WILLINGTON LTD.
Adult and Health Services,Head of Adults,Third Party Payments 4THIRD,470101,Purchase of Care,03/09/2019,3635115-2569866,"2,444.12",BONDCARE WILLINGTON LTD.
Adult and Health Services,Head of Adults,Third Party Payments 4THIRD,470101,Purchase of Care,03/09/2019,3635115-2569867,"2,444.12",BONDCARE WILLINGTON LTD.
Adult and Health Services,Head of Adults,Third Party Payments 4THIRD,470101,Purchase of Care,03/09/2019,3635115-2569868,"1,222.08",BONDCARE WILLINGTON LTD.
Adult and Health Services,Head of Adults,Third Party Payments 4THIRD,474101,Purchase of Care,03/09/2019,3635115-2569869,"1,233.12",BONDCARE WILLINGTON LTD.
Adult and Health Services,Head of Adults,Third Party Payments 4THIRD,470101,Purchase of Care,03/09/2019,3635115-2572668,785.62,BONDCARE WILLINGTON LTD.
Adult and Health Services,Head of Adults,Third Party Payments 4THIRD,470101,Purchase of Care,03/09/2019,3635115-2572754,"1,483.93",BONDCARE WILLINGTON LTD.
Adult and Health Services,Head of Adults,Third Party Payments 4THIRD,470101,Purchase of Care,03/09/2019,3635115-2572756,611.03,BONDCARE WILLINGTON LTD.
Adult and Health Services,Head of Adults,Third Party Payments 4THIRD,470101,Purchase of Care,03/09/2019,3635115-2572932,"16,149.55",BONDCARE WILLINGTON LTD.
Adult and Health Services,Head of Adults,Third Party Payments 4THIRD,470101,Purchase of Care,03/09/2019,3635115-2572936,"7,531.71",BONDCARE WILLINGTON LTD.
Adult and Health Services,Head of Adults,Third Party Payments 4THIRD,471101,Purchase of Care,03/09/2019,3635116-2568885,"2,457.00",BROOMHOUSE CARE LTD.
Adult and Health Services,Head of Adults,Third Party Payments 4THIRD,471101,Purchase of Care,03/09/2019,3635116-2568886,"2,457.00",BROOMHOUSE CARE LTD.
Adult and Health Services,Head of Adults,Third Party Payments 4THIRD,471101,Purchase of Care,03/09/2019,3635116-2568887,"2,457.00",BROOMHOUSE CARE LTD.
Adult and Health Services,Head of Adults,Third Party Payments 4THIRD,471101,Purchase of Care,03/09/2019,3635116-2568888,"2,457.00",BROOMHOUSE CARE LTD.
Adult and Health Services,Head of Adults,Third Party Payments 4THIRD,471101,Purchase of Care,03/09/2019,3635116-2568889,"2,457.00",BROOMHOUSE CARE LTD.
Adult and Health Services,Head of Adults,Third Party Payments 4THIRD,471101,Purchase of Care,03/09/2019,3635116-2568890,"2,457.00",BROOMHOUSE CARE LTD.
Adult and Health Services,Head of Adults,Third Party Payments 4THIRD,471101,Purchase of Care,03/09/2019,3635116-2568891,"2,457.00",BROOMHOUSE CARE LTD.
Adult and Health Services,Head of Adults,Third Party Payments 4THIRD,471101,Purchase of Care,03/09/2019,3635116-2568892,"1,228.52",BROOMHOUSE CARE LTD.
Adult and Health Services,Head of Adults,Third Party Payments 4THIRD,471101,Purchase of Care,03/09/2019,3635116-2568893,"1,140.75",BROOMHOUSE CARE LTD.
Adult and Health Services,Head of Adults,Third Party Payments 4THIRD,470101,Purchase of Care,03/09/2019,3635116-2568894,"2,369.64",BROOMHOUSE CARE LTD.
Adult and Health Services,Head of Adults,Third Party Payments 4THIRD,470101,Purchase of Care,03/09/2019,3635116-2568895,"1,861.86",BROOMHOUSE CARE LTD.
Adult and Health Services,Head of Adults,Third Party Payments 4THIRD,471101,Purchase of Care,03/09/2019,3635116-2568896,"2,193.75",BROOMHOUSE CARE LTD.
Adult and Health Services,Head of Adults,Third Party Payments 4THIRD,471101,Purchase of Care,03/09/2019,3635116-2568897,"2,457.00",BROOMHOUSE CARE LTD.
Adult and Health Services,Head of Adults,Third Party Payments 4THIRD,470101,Purchase of Care,03/09/2019,3635116-2568898,"2,369.64",BROOMHOUSE CARE LTD.
Adult and Health Services,Head of Adults,Third Party Payments 4THIRD,471101,Purchase of Care,03/09/2019,3635116-2568899,"1,316.25",BROOMHOUSE CARE LTD.
Adult and Health Services,Head of Adults,Third Party Payments 4THIRD,471101,Purchase of Care,03/09/2019,3635116-2568900,"2,457.00",BROOMHOUSE CARE LTD.
Adult and Health Services,Head of Adults,Third Party Payments 4THIRD,470101,Purchase of Care,03/09/2019,3635116-2568901,"2,369.64",BROOMHOUSE CARE LTD.
Adult and Health Services,Head of Adults,Third Party Payments 4THIRD,471101,Purchase of Care,03/09/2019,3635116-2568902,"2,457.00",BROOMHOUSE CARE LTD.
Adult and Health Services,Head of Adults,Third Party Payments 4THIRD,470101,Purchase of Care,03/09/2019,3635116-2568903,"2,369.64",BROOMHOUSE CARE LTD.
Adult and Health Services,Head of Adults,Third Party Payments 4THIRD,471101,Purchase of Care,03/09/2019,3635116-2568904,"2,457.00",BROOMHOUSE CARE LTD.
Adult and Health Services,Head of Adults,Third Party Payments 4THIRD,471101,Purchase of Care,03/09/2019,3635116-2568905,"2,457.00",BROOMHOUSE CARE LTD.
Adult and Health Services,Head of Adults,Third Party Payments 4THIRD,470101,Purchase of Care,03/09/2019,3635116-2568906,"2,369.64",BROOMHOUSE CARE LTD.
Adult and Health Services,Head of Adults,Third Party Payments 4THIRD,470101,Purchase of Care,03/09/2019,3635116-2568907,"2,369.64",BROOMHOUSE CARE LTD.
Adult and Health Services,Head of Adults,Third Party Payments 4THIRD,471101,Purchase of Care,03/09/2019,3635116-2572780,"2,018.25",BROOMHOUSE CARE LTD.
Adult and Health Services,Head of Adults,Third Party Payments 4THIRD,470101,Purchase of Care,03/09/2019,3635117-2571766,"2,199.40",BURLINGTON CARE (YORKSHIRE) LTD.
Adult and Health Services,Head of Adults,Third Party Payments 4THIRD,470101,Purchase of Care,03/09/2019,3635118-2572476,"1,120.00",BURLINGTON CARE (YORKSHIRE) LTD.
Adult and Health Services,Head of Adults,Third Party Payments 4THIRD,470101,Purchase of Care,03/09/2019,3635119-2570732,"2,204.00",BURLINGTON CARE LTD.
Adult and Health Services,Head of Adults,Third Party Payments 4THIRD,470101,Purchase of Care,03/09/2019,3635119-2570733,"2,204.00",BURLINGTON CARE LTD.
Regeneration and Local Services,Transport and Contracted Services,Construction work A908,908105,Construction work,03/09/2019,3634911-NO26041,"2,733.48",BUS SHELTERS LTD.
Adult and Health Services,Head of Adults,Third Party Payments 4THIRD,471101,Purchase of Care,03/09/2019,3635120-2570850,"2,457.00",CARE UK COMMUNITY PARTNERSHIPS LTD.
Adult and Health Services,Head of Adults,Third Party Payments 4THIRD,470101,Purchase of Care,03/09/2019,3635120-2570851,"2,369.64",CARE UK COMMUNITY PARTNERSHIPS LTD.
Adult and Health Services,Head of Adults,Third Party Payments 4THIRD,471101,Purchase of Care,03/09/2019,3635120-2570852,"2,457.00",CARE UK COMMUNITY PARTNERSHIPS LTD.
Adult and Health Services,Head of Adults,Third Party Payments 4THIRD,470101,Purchase of Care,03/09/2019,3635120-2570853,"2,369.64",CARE UK COMMUNITY PARTNERSHIPS LTD.
Adult and Health Services,Head of Adults,Third Party Payments 4THIRD,471101,Purchase of Care,03/09/2019,3635120-2570854,"2,457.00",CARE UK COMMUNITY PARTNERSHIPS LTD.
Adult and Health Services,Head of Adults,Third Party Payments 4THIRD,471101,Purchase of Care,03/09/2019,3635120-2570855,"2,457.00",CARE UK COMMUNITY PARTNERSHIPS LTD.
Adult and Health Services,Head of Adults,Third Party Payments 4THIRD,471101,Purchase of Care,03/09/2019,3635120-2570856,"1,755.00",CARE UK COMMUNITY PARTNERSHIPS LTD.
Adult and Health Services,Head of Adults,Third Party Payments 4THIRD,470101,Purchase of Care,03/09/2019,3635120-2570857,"2,369.64",CARE UK COMMUNITY PARTNERSHIPS LTD.
Adult and Health Services,Head of Adults,Third Party Payments 4THIRD,471101,Purchase of Care,03/09/2019,3635120-2570858,"2,457.00",CARE UK COMMUNITY PARTNERSHIPS LTD.
Adult and Health Services,Head of Adults,Third Party Payments 4THIRD,471101,Purchase of Care,03/09/2019,3635120-2570859,"2,457.00",CARE UK COMMUNITY PARTNERSHIPS LTD.
Adult and Health Services,Head of Adults,Third Party Payments 4THIRD,471101,Purchase of Care,03/09/2019,3635120-2570860,"2,457.00",CARE UK COMMUNITY PARTNERSHIPS LTD.
Adult and Health Services,Head of Adults,Third Party Payments 4THIRD,471101,Purchase of Care,03/09/2019,3635120-2570861,"2,457.00",CARE UK COMMUNITY PARTNERSHIPS LTD.
Adult and Health Services,Head of Adults,Third Party Payments 4THIRD,471101,Purchase of Care,03/09/2019,3635120-2570862,702.00,CARE UK COMMUNITY PARTNERSHIPS LTD.
Adult and Health Services,Head of Adults,Third Party Payments 4THIRD,471101,Purchase of Care,03/09/2019,3635120-2570863,"2,457.00",CARE UK COMMUNITY PARTNERSHIPS LTD.
Adult and Health Services,Head of Adults,Third Party Payments 4THIRD,471101,Purchase of Care,03/09/2019,3635120-2570864,"2,457.00",CARE UK COMMUNITY PARTNERSHIPS LTD.
Adult and Health Services,Head of Adults,Third Party Payments 4THIRD,471101,Purchase of Care,03/09/2019,3635120-2570865,"1,228.52",CARE UK COMMUNITY PARTNERSHIPS LTD.
Adult and Health Services,Head of Adults,Third Party Payments 4THIRD,470101,Purchase of Care,03/09/2019,3635120-2570866,"2,369.64",CARE UK COMMUNITY PARTNERSHIPS LTD.
Adult and Health Services,Head of Adults,Third Party Payments 4THIRD,470101,Purchase of Care,03/09/2019,3635120-2570867,"2,369.64",CARE UK COMMUNITY PARTNERSHIPS LTD.
Adult and Health Services,Head of Adults,Third Party Payments 4THIRD,470101,Purchase of Care,03/09/2019,3635120-2570868,"1,184.80",CARE UK COMMUNITY PARTNERSHIPS LTD.
Adult and Health Services,Head of Adults,Third Party Payments 4THIRD,471101,Purchase of Care,03/09/2019,3635120-2570869,"2,457.00",CARE UK COMMUNITY PARTNERSHIPS LTD.
Adult and Health Services,Head of Adults,Third Party Payments 4THIRD,471101,Purchase of Care,03/09/2019,3635120-2570870,"2,457.00",CARE UK COMMUNITY PARTNERSHIPS LTD.
Adult and Health Services,Head of Adults,Third Party Payments 4THIRD,471101,Purchase of Care,03/09/2019,3635120-2570871,"2,457.00",CARE UK COMMUNITY PARTNERSHIPS LTD.
Adult and Health Services,Head of Adults,Third Party Payments 4THIRD,470101,Purchase of Care,03/09/2019,3635120-2570872,"2,369.64",CARE UK COMMUNITY PARTNERSHIPS LTD.
Adult and Health Services,Head of Adults,Third Party Payments 4THIRD,470101,Purchase of Care,03/09/2019,3635120-2570873,"2,369.64",CARE UK COMMUNITY PARTNERSHIPS LTD.
Adult and Health Services,Head of Adults,Third Party Payments 4THIRD,471101,Purchase of Care,03/09/2019,3635120-2570874,"2,457.00",CARE UK COMMUNITY PARTNERSHIPS LTD.
Adult and Health Services,Head of Adults,Third Party Payments 4THIRD,470101,Purchase of Care,03/09/2019,3635120-2570875,"2,369.64",CARE UK COMMUNITY PARTNERSHIPS LTD.
Adult and Health Services,Head of Adults,Third Party Payments 4THIRD,470101,Purchase of Care,03/09/2019,3635120-2570876,"2,369.64",CARE UK COMMUNITY PARTNERSHIPS LTD.
Adult and Health Services,Head of Adults,Third Party Payments 4THIRD,474101,Purchase of Care,03/09/2019,3635121-2571003,"1,233.12",CARE UK COMMUNITY PARTNERSHIPS LTD.
Adult and Health Services,Head of Adults,Third Party Payments 4THIRD,471101,Purchase of Care,03/09/2019,3635121-2571005,"2,457.00",CARE UK COMMUNITY PARTNERSHIPS LTD.
Adult and Health Services,Head of Adults,Third Party Payments 4THIRD,470101,Purchase of Care,03/09/2019,3635121-2571006,"2,369.64",CARE UK COMMUNITY PARTNERSHIPS LTD.
Adult and Health Services,Head of Adults,Third Party Payments 4THIRD,471101,Purchase of Care,03/09/2019,3635121-2571007,"2,457.00",CARE UK COMMUNITY PARTNERSHIPS LTD.
Adult and Health Services,Head of Adults,Third Party Payments 4THIRD,471101,Purchase of Care,03/09/2019,3635121-2571008,"1,228.52",CARE UK COMMUNITY PARTNERSHIPS LTD.
Adult and Health Services,Head of Adults,Third Party Payments 4THIRD,470101,Purchase of Care,03/09/2019,3635121-2571009,"2,369.64",CARE UK COMMUNITY PARTNERSHIPS LTD.
Adult and Health Services,Head of Adults,Third Party Payments 4THIRD,471101,Purchase of Care,03/09/2019,3635121-2571010,"2,457.00",CARE UK COMMUNITY PARTNERSHIPS LTD.
Adult and Health Services,Head of Adults,Third Party Payments 4THIRD,471101,Purchase of Care,03/09/2019,3635121-2571011,"2,457.00",CARE UK COMMUNITY PARTNERSHIPS LTD.
Adult and Health Services,Head of Adults,Third Party Payments 4THIRD,470101,Purchase of Care,03/09/2019,3635121-2571012,"1,184.82",CARE UK COMMUNITY PARTNERSHIPS LTD.
Adult and Health Services,Head of Adults,Third Party Payments 4THIRD,474101,Purchase of Care,03/09/2019,3635121-2571013,"1,233.12",CARE UK COMMUNITY PARTNERSHIPS LTD.
Adult and Health Services,Head of Adults,Third Party Payments 4THIRD,471101,Purchase of Care,03/09/2019,3635121-2571015,"2,457.00",CARE UK COMMUNITY PARTNERSHIPS LTD.
Adult and Health Services,Head of Adults,Third Party Payments 4THIRD,470101,Purchase of Care,03/09/2019,3635121-2571016,"2,369.64",CARE UK COMMUNITY PARTNERSHIPS LTD.
Adult and Health Services,Head of Adults,Third Party Payments 4THIRD,470101,Purchase of Care,03/09/2019,3635121-2571017,"2,369.64",CARE UK COMMUNITY PARTNERSHIPS LTD.
Adult and Health Services,Head of Adults,Third Party Payments 4THIRD,471101,Purchase of Care,03/09/2019,3635121-2571018,"2,457.00",CARE UK COMMUNITY PARTNERSHIPS LTD.
Adult and Health Services,Head of Adults,Third Party Payments 4THIRD,471101,Purchase of Care,03/09/2019,3635121-2571019,"2,457.00",CARE UK COMMUNITY PARTNERSHIPS LTD.
Adult and Health Services,Head of Adults,Third Party Payments 4THIRD,471101,Purchase of Care,03/09/2019,3635121-2571020,"3,156.16",CARE UK COMMUNITY PARTNERSHIPS LTD.
Adult and Health Services,Head of Adults,Third Party Payments 4THIRD,470101,Purchase of Care,03/09/2019,3635121-2571021,"2,369.64",CARE UK COMMUNITY PARTNERSHIPS LTD.
Adult and Health Services,Head of Adults,Third Party Payments 4THIRD,470101,Purchase of Care,03/09/2019,3635121-2571022,"2,369.64",CARE UK COMMUNITY PARTNERSHIPS LTD.
Adult and Health Services,Head of Adults,Third Party Payments 4THIRD,470101,Purchase of Care,03/09/2019,3635121-2571023,"2,369.64",CARE UK COMMUNITY PARTNERSHIPS LTD.
Adult and Health Services,Head of Adults,Third Party Payments 4THIRD,470101,Purchase of Care,03/09/2019,3635121-2571024,"2,369.64",CARE UK COMMUNITY PARTNERSHIPS LTD.
Adult and Health Services,Head of Adults,Third Party Payments 4THIRD,470101,Purchase of Care,03/09/2019,3635121-2571025,"2,369.64",CARE UK COMMUNITY PARTNERSHIPS LTD.
Adult and Health Services,Head of Adults,Third Party Payments 4THIRD,470101,Purchase of Care,03/09/2019,3635121-2571026,"2,369.64",CARE UK COMMUNITY PARTNERSHIPS LTD.
Adult and Health Services,Head of Adults,Third Party Payments 4THIRD,471101,Purchase of Care,03/09/2019,3635121-2571027,"2,457.00",CARE UK COMMUNITY PARTNERSHIPS LTD.
Adult and Health Services,Head of Adults,Third Party Payments 4THIRD,470101,Purchase of Care,03/09/2019,3635121-2571028,"2,369.64",CARE UK COMMUNITY PARTNERSHIPS LTD.
Adult and Health Services,Head of Adults,Third Party Payments 4THIRD,470101,Purchase of Care,03/09/2019,3635121-2571029,"2,369.64",CARE UK COMMUNITY PARTNERSHIPS LTD.
Adult and Health Services,Head of Adults,Third Party Payments 4THIRD,470101,Purchase of Care,03/09/2019,3635121-2571030,"2,369.64",CARE UK COMMUNITY PARTNERSHIPS LTD.
Adult and Health Services,Head of Adults,Third Party Payments 4THIRD,474101,Purchase of Care,03/09/2019,3635121-2571031,"2,466.24",CARE UK COMMUNITY PARTNERSHIPS LTD.
Adult and Health Services,Head of Adults,Third Party Payments 4THIRD,474101,Purchase of Care,03/09/2019,3635121-2571033,"2,466.24",CARE UK COMMUNITY PARTNERSHIPS LTD.
Adult and Health Services,Head of Adults,Third Party Payments 4THIRD,471101,Purchase of Care,03/09/2019,3635121-2571035,"2,457.00",CARE UK COMMUNITY PARTNERSHIPS LTD.
Adult and Health Services,Head of Adults,Third Party Payments 4THIRD,471101,Purchase of Care,03/09/2019,3635121-2571036,"2,457.00",CARE UK COMMUNITY PARTNERSHIPS LTD.
Adult and Health Services,Head of Adults,Third Party Payments 4THIRD,474101,Purchase of Care,03/09/2019,3635121-2571037,"2,466.24",CARE UK COMMUNITY PARTNERSHIPS LTD.
Adult and Health Services,Head of Adults,Third Party Payments 4THIRD,471101,Purchase of Care,03/09/2019,3635121-2571039,"2,457.00",CARE UK COMMUNITY PARTNERSHIPS LTD.
Adult and Health Services,Head of Adults,Third Party Payments 4THIRD,471101,Purchase of Care,03/09/2019,3635121-2571040,"2,457.00",CARE UK COMMUNITY PARTNERSHIPS LTD.
Adult and Health Services,Head of Adults,Third Party Payments 4THIRD,474101,Purchase of Care,03/09/2019,3635121-2571041,"2,466.24",CARE UK COMMUNITY PARTNERSHIPS LTD.
Adult and Health Services,Head of Adults,Third Party Payments 4THIRD,471101,Purchase of Care,03/09/2019,3635121-2571043,"2,457.00",CARE UK COMMUNITY PARTNERSHIPS LTD.
Adult and Health Services,Head of Adults,Third Party Payments 4THIRD,474101,Purchase of Care,03/09/2019,3635121-2571044,"2,466.24",CARE UK COMMUNITY PARTNERSHIPS LTD.
Adult and Health Services,Head of Adults,Third Party Payments 4THIRD,470101,Purchase of Care,03/09/2019,3635121-2571046,"2,369.64",CARE UK COMMUNITY PARTNERSHIPS LTD.
Adult and Health Services,Head of Adults,Third Party Payments 4THIRD,474101,Purchase of Care,03/09/2019,3635121-2571047,"1,233.12",CARE UK COMMUNITY PARTNERSHIPS LTD.
Adult and Health Services,Head of Adults,Third Party Payments 4THIRD,470101,Purchase of Care,03/09/2019,3635121-2571049,"2,369.64",CARE UK COMMUNITY PARTNERSHIPS LTD.
Adult and Health Services,Head of Adults,Third Party Payments 4THIRD,470101,Purchase of Care,03/09/2019,3635121-2571050,"2,369.64",CARE UK COMMUNITY PARTNERSHIPS LTD.
Adult and Health Services,Head of Adults,Third Party Payments 4THIRD,470101,Purchase of Care,03/09/2019,3635121-2571051,"2,369.64",CARE UK COMMUNITY PARTNERSHIPS LTD.
Adult and Health Services,Head of Adults,Third Party Payments 4THIRD,470101,Purchase of Care,03/09/2019,3635121-2571052,"2,369.64",CARE UK COMMUNITY PARTNERSHIPS LTD.
Adult and Health Services,Head of Adults,Third Party Payments 4THIRD,470101,Purchase of Care,03/09/2019,3635122-2571718,"2,227.12",CARE UK COMMUNITY PARTNERSHIPS LTD.
Adult and Health Services,Head of Adults,Third Party Payments 4THIRD,474101,Purchase of Care,03/09/2019,3635123-2568255,"2,188.00",CARE UK COMMUNITY PARTNERSHIPS LTD.
Adult and Health Services,Head of Adults,Third Party Payments 4THIRD,471101,Purchase of Care,03/09/2019,3635123-2568257,"2,268.00",CARE UK COMMUNITY PARTNERSHIPS LTD.
Adult and Health Services,Head of Adults,Third Party Payments 4THIRD,470101,Purchase of Care,03/09/2019,3635124-2569548,"2,369.64",CARE UK COMMUNITY PARTNERSHIPS LTD.
Adult and Health Services,Head of Adults,Third Party Payments 4THIRD,470101,Purchase of Care,03/09/2019,3635124-2569549,761.67,CARE UK COMMUNITY PARTNERSHIPS LTD.
Adult and Health Services,Head of Adults,Third Party Payments 4THIRD,470101,Purchase of Care,03/09/2019,3635124-2569550,"2,369.64",CARE UK COMMUNITY PARTNERSHIPS LTD.
Adult and Health Services,Head of Adults,Third Party Payments 4THIRD,470101,Purchase of Care,03/09/2019,3635124-2569551,"2,369.64",CARE UK COMMUNITY PARTNERSHIPS LTD.
Adult and Health Services,Head of Adults,Third Party Payments 4THIRD,470101,Purchase of Care,03/09/2019,3635124-2569552,"2,369.64",CARE UK COMMUNITY PARTNERSHIPS LTD.
Adult and Health Services,Head of Adults,Third Party Payments 4THIRD,470101,Purchase of Care,03/09/2019,3635124-2569553,"2,369.64",CARE UK COMMUNITY PARTNERSHIPS LTD.
Adult and Health Services,Head of Adults,Third Party Payments 4THIRD,470101,Purchase of Care,03/09/2019,3635124-2569554,"2,369.64",CARE UK COMMUNITY PARTNERSHIPS LTD.
Adult and Health Services,Head of Adults,Third Party Payments 4THIRD,470101,Purchase of Care,03/09/2019,3635124-2569555,"2,369.64",CARE UK COMMUNITY PARTNERSHIPS LTD.
Adult and Health Services,Head of Adults,Third Party Payments 4THIRD,470101,Purchase of Care,03/09/2019,3635124-2569557,"2,369.64",CARE UK COMMUNITY PARTNERSHIPS LTD.
Adult and Health Services,Head of Adults,Third Party Payments 4THIRD,470101,Purchase of Care,03/09/2019,3635124-2569559,"2,369.64",CARE UK COMMUNITY PARTNERSHIPS LTD.
Adult and Health Services,Head of Adults,Third Party Payments 4THIRD,470101,Purchase of Care,03/09/2019,3635124-2569560,"2,369.64",CARE UK COMMUNITY PARTNERSHIPS LTD.
Adult and Health Services,Head of Adults,Third Party Payments 4THIRD,470101,Purchase of Care,03/09/2019,3635124-2569561,"2,369.64",CARE UK COMMUNITY PARTNERSHIPS LTD.
Adult and Health Services,Head of Adults,Third Party Payments 4THIRD,470101,Purchase of Care,03/09/2019,3635124-2569562,"2,369.64",CARE UK COMMUNITY PARTNERSHIPS LTD.
Adult and Health Services,Head of Adults,Third Party Payments 4THIRD,470101,Purchase of Care,03/09/2019,3635124-2569564,"2,369.64",CARE UK COMMUNITY PARTNERSHIPS LTD.
Adult and Health Services,Head of Adults,Third Party Payments 4THIRD,470101,Purchase of Care,03/09/2019,3635124-2569565,"2,369.64",CARE UK COMMUNITY PARTNERSHIPS LTD.
Adult and Health Services,Head of Adults,Third Party Payments 4THIRD,470101,Purchase of Care,03/09/2019,3635124-2569566,"2,369.64",CARE UK COMMUNITY PARTNERSHIPS LTD.
Adult and Health Services,Head of Adults,Third Party Payments 4THIRD,470101,Purchase of Care,03/09/2019,3635124-2569567,"2,369.64",CARE UK COMMUNITY PARTNERSHIPS LTD.
Adult and Health Services,Head of Adults,Third Party Payments 4THIRD,470101,Purchase of Care,03/09/2019,3635124-2569568,"2,489.64",CARE UK COMMUNITY PARTNERSHIPS LTD.
Adult and Health Services,Head of Adults,Third Party Payments 4THIRD,470101,Purchase of Care,03/09/2019,3635124-2572762,592.41,CARE UK COMMUNITY PARTNERSHIPS LTD.
Adult and Health Services,Head of Adults,Third Party Payments 4THIRD,470101,Purchase of Care,03/09/2019,3635125-2570881,"2,433.28",CARE UK COMMUNITY PARTNERSHIPS LTD.
Adult and Health Services,Head of Adults,Third Party Payments 4THIRD,471101,Purchase of Care,03/09/2019,3635125-2570882,"2,516.20",CARE UK COMMUNITY PARTNERSHIPS LTD.
Adult and Health Services,Head of Adults,Third Party Payments 4THIRD,471101,Purchase of Care,03/09/2019,3635125-2570883,"2,516.20",CARE UK COMMUNITY PARTNERSHIPS LTD.
Adult and Health Services,Head of Adults,Third Party Payments 4THIRD,471101,Purchase of Care,03/09/2019,3635126-2572166,"2,504.00",CARE UK COMMUNITY PARTNERSHIPS LTD.
Adult and Health Services,Head of Adults,Third Party Payments 4THIRD,471101,Purchase of Care,03/09/2019,3635126-2572167,"2,504.00",CARE UK COMMUNITY PARTNERSHIPS LTD.
Adult and Health Services,Head of Adults,Third Party Payments 4THIRD,471101,Purchase of Care,03/09/2019,3635126-2572168,"2,504.00",CARE UK COMMUNITY PARTNERSHIPS LTD.
Adult and Health Services,Head of Adults,Third Party Payments 4THIRD,470101,Purchase of Care,03/09/2019,3635127-2570878,"2,320.00",CARE UK COMMUNITY PARTNERSHIPS LTD.
Adult and Health Services,Head of Adults,Third Party Payments 4THIRD,471101,Purchase of Care,03/09/2019,3635127-2570880,"2,314.28",CARE UK COMMUNITY PARTNERSHIPS LTD.
Adult and Health Services,Head of Adults,Third Party Payments 4THIRD,474101,Purchase of Care,03/09/2019,3635128-2571931,"2,808.00",CARELINE LIFESTYLES (UK) LTD.
Adult and Health Services,Head of Adults,Third Party Payments 4THIRD,470101,Purchase of Care,03/09/2019,3635129-2571182,"2,719.52",CARELINE LIFESTYLES (UK) LTD.
Adult and Health Services,Head of Adults,Third Party Payments 4THIRD,470101,Purchase of Care,03/09/2019,3635129-2571183,"2,016.00",CARELINE LIFESTYLES (UK) LTD.
Adult and Health Services,Head of Adults,Third Party Payments 4THIRD,470101,Purchase of Care,03/09/2019,3635130-2570877,"2,461.68",CARELINE LIFESTYLES (UK) LTD.
Adult and Health Services,Head of Adults,Third Party Payments 4THIRD,474101,Purchase of Care,03/09/2019,3635131-2572162,"4,103.40",CARELINE LIFESTYLES (UK) LTD.
Adult and Health Services,Head of Adults,Third Party Payments 4THIRD,474101,Purchase of Care,03/09/2019,3635131-2572163,"2,415.00",CARELINE LIFESTYLES (UK) LTD.
Adult and Health Services,Head of Adults,Third Party Payments 4THIRD,470101,Purchase of Care,03/09/2019,3635131-2572164,740.88,CARELINE LIFESTYLES (UK) LTD.
Adult and Health Services,Head of Adults,Third Party Payments 4THIRD,474101,Purchase of Care,03/09/2019,3635132-2572502,"3,088.00",CARELINE LIFESTYLES.
Adult and Health Services,Head of Adults,Third Party Payments 4THIRD,474101,Purchase of Care,03/09/2019,3635132-2572504,"3,242.00",CARELINE LIFESTYLES.
Adult and Health Services,Head of Adults,Third Party Payments 4THIRD,474101,Purchase of Care,03/09/2019,3635132-2572505,"4,278.12",CARELINE LIFESTYLES.
Adult and Health Services,Head of Adults,Third Party Payments 4THIRD,474101,Purchase of Care,03/09/2019,3635132-2572507,"3,242.00",CARELINE LIFESTYLES.
Adult and Health Services,Head of Adults,Third Party Payments 4THIRD,474101,Purchase of Care,03/09/2019,3635132-2572508,"3,088.00",CARELINE LIFESTYLES.
Adult and Health Services,Head of Adults,Third Party Payments 4THIRD,474101,Purchase of Care,03/09/2019,3635132-2572509,"1,481.76",CARELINE LIFESTYLES.
Adult and Health Services,Head of Adults,Third Party Payments 4THIRD,474101,Purchase of Care,03/09/2019,3635133-2569132,"2,091.60",CAREWELL (HEALTH CARE) LTD.
Adult and Health Services,Head of Adults,Third Party Payments 4THIRD,470101,Purchase of Care,03/09/2019,3635133-2569137,"25,640.10",CAREWELL (HEALTH CARE) LTD.
Adult and Health Services,Head of Adults,Third Party Payments 4THIRD,470101,Purchase of Care,03/09/2019,3635133-2569138,"7,909.86",CAREWELL (HEALTH CARE) LTD.
Adult and Health Services,Head of Adults,Third Party Payments 4THIRD,470101,Purchase of Care,03/09/2019,3635133-2569139,"1,995.28",CAREWELL (HEALTH CARE) LTD.
Adult and Health Services,Head of Adults,Third Party Payments 4THIRD,470101,Purchase of Care,03/09/2019,3635133-2569140,570.08,CAREWELL (HEALTH CARE) LTD.
Adult and Health Services,Head of Adults,Third Party Payments 4THIRD,470101,Purchase of Care,03/09/2019,3635133-2569144,"1,995.28",CAREWELL (HEALTH CARE) LTD.
Adult and Health Services,Head of Adults,Third Party Payments 4THIRD,470101,Purchase of Care,03/09/2019,3635133-2569145,"1,425.20",CAREWELL (HEALTH CARE) LTD.
Adult and Health Services,Head of Adults,Third Party Payments 4THIRD,470101,Purchase of Care,03/09/2019,3635133-2569148,"1,995.28",CAREWELL (HEALTH CARE) LTD.
Adult and Health Services,Head of Adults,Third Party Payments 4THIRD,470101,Purchase of Care,03/09/2019,3635133-2569149,"1,995.28",CAREWELL (HEALTH CARE) LTD.
Adult and Health Services,Head of Adults,Third Party Payments 4THIRD,470101,Purchase of Care,03/09/2019,3635133-2569150,"1,282.68",CAREWELL (HEALTH CARE) LTD.
Adult and Health Services,Head of Adults,Third Party Payments 4THIRD,470101,Purchase of Care,03/09/2019,3635133-2569151,"1,995.28",CAREWELL (HEALTH CARE) LTD.
Adult and Health Services,Head of Adults,Third Party Payments 4THIRD,470101,Purchase of Care,03/09/2019,3635133-2569153,"1,995.28",CAREWELL (HEALTH CARE) LTD.
Adult and Health Services,Head of Adults,Third Party Payments 4THIRD,474101,Purchase of Care,03/09/2019,3635133-2569154,"2,091.60",CAREWELL (HEALTH CARE) LTD.
Adult and Health Services,Head of Adults,Third Party Payments 4THIRD,470101,Purchase of Care,03/09/2019,3635133-2569156,"1,995.28",CAREWELL (HEALTH CARE) LTD.
Adult and Health Services,Head of Adults,Third Party Payments 4THIRD,474101,Purchase of Care,03/09/2019,3635133-2569157,"2,091.60",CAREWELL (HEALTH CARE) LTD.
Adult and Health Services,Head of Adults,Third Party Payments 4THIRD,470101,Purchase of Care,03/09/2019,3635133-2569160,"1,995.28",CAREWELL (HEALTH CARE) LTD.
Adult and Health Services,Head of Adults,Third Party Payments 4THIRD,470101,Purchase of Care,03/09/2019,3635133-2569161,"1,995.28",CAREWELL (HEALTH CARE) LTD.
Adult and Health Services,Head of Adults,Third Party Payments 4THIRD,474101,Purchase of Care,03/09/2019,3635133-2572653,"4,071.09",CAREWELL (HEALTH CARE) LTD.
Adult and Health Services,Head of Adults,Third Party Payments 4THIRD,470101,Purchase of Care,03/09/2019,3635133-2572699,"1,282.68",CAREWELL (HEALTH CARE) LTD.
Adult and Health Services,Head of Adults,Third Party Payments 4THIRD,470101,Purchase of Care,03/09/2019,3635133-2572876,997.64,CAREWELL (HEALTH CARE) LTD.
Adult and Health Services,Head of Adults,Third Party Payments 4THIRD,471101,Purchase of Care,03/09/2019,3635134-2572378,"2,108.68",CARING HOMES HEALTHCARE GROUP LTD.
Regeneration and Local Services,Environmental Services,Stock A926,926004,Stock,03/09/2019,3634913-235077,510.06,CARRS BILLINGTON AGRICULTURE.
Regeneration and Local Services,Environmental Services,Transport,210057,Repair and Maintenance of Vehicles,03/09/2019,3634913-235249,660.00,CARRS BILLINGTON AGRICULTURE.
Adult and Health Services,Head of Adults,Third Party Payments 4THIRD,470101,Purchase of Care,03/09/2019,3635135-2569528,507.78,CASTLEBANK CARE HOME LTD.
Adult and Health Services,Head of Adults,Third Party Payments 4THIRD,470101,Purchase of Care,03/09/2019,3635135-2569530,"2,369.64",CASTLEBANK CARE HOME LTD.
Adult and Health Services,Head of Adults,Third Party Payments 4THIRD,471101,Purchase of Care,03/09/2019,3635135-2569531,"2,457.00",CASTLEBANK CARE HOME LTD.
Adult and Health Services,Head of Adults,Third Party Payments 4THIRD,470101,Purchase of Care,03/09/2019,3635135-2569532,"2,369.64",CASTLEBANK CARE HOME LTD.
Adult and Health Services,Head of Adults,Third Party Payments 4THIRD,471101,Purchase of Care,03/09/2019,3635135-2569533,"2,457.00",CASTLEBANK CARE HOME LTD.
Adult and Health Services,Head of Adults,Third Party Payments 4THIRD,470101,Purchase of Care,03/09/2019,3635135-2569534,"2,369.64",CASTLEBANK CARE HOME LTD.
Adult and Health Services,Head of Adults,Third Party Payments 4THIRD,471101,Purchase of Care,03/09/2019,3635135-2569535,"2,457.00",CASTLEBANK CARE HOME LTD.
Adult and Health Services,Head of Adults,Third Party Payments 4THIRD,470101,Purchase of Care,03/09/2019,3635135-2569536,"2,369.64",CASTLEBANK CARE HOME LTD.
Adult and Health Services,Head of Adults,Third Party Payments 4THIRD,471101,Purchase of Care,03/09/2019,3635135-2569537,"1,228.52",CASTLEBANK CARE HOME LTD.
Adult and Health Services,Head of Adults,Third Party Payments 4THIRD,470101,Purchase of Care,03/09/2019,3635135-2569538,"2,369.64",CASTLEBANK CARE HOME LTD.
Adult and Health Services,Head of Adults,Third Party Payments 4THIRD,470101,Purchase of Care,03/09/2019,3635135-2569539,"2,369.64",CASTLEBANK CARE HOME LTD.
Adult and Health Services,Head of Adults,Third Party Payments 4THIRD,471101,Purchase of Care,03/09/2019,3635135-2569540,"2,457.00",CASTLEBANK CARE HOME LTD.
Adult and Health Services,Head of Adults,Third Party Payments 4THIRD,470101,Purchase of Care,03/09/2019,3635135-2569541,"2,369.64",CASTLEBANK CARE HOME LTD.
Adult and Health Services,Head of Adults,Third Party Payments 4THIRD,470101,Purchase of Care,03/09/2019,3635135-2569542,"2,369.64",CASTLEBANK CARE HOME LTD.
Adult and Health Services,Head of Adults,Third Party Payments 4THIRD,471101,Purchase of Care,03/09/2019,3635135-2569543,"2,457.00",CASTLEBANK CARE HOME LTD.
Adult and Health Services,Head of Adults,Third Party Payments 4THIRD,470101,Purchase of Care,03/09/2019,3635135-2572561,761.67,CASTLEBANK CARE HOME LTD.
Adult and Health Services,Head of Adults,Third Party Payments 4THIRD,471101,Purchase of Care,03/09/2019,3635135-2572657,614.25,CASTLEBANK CARE HOME LTD.
Regeneration and Local Services,Technical Services CM0300,Supplies and Services,304221,Equipment and Materials,03/09/2019,3634915-3011613736,"13,483.20",CEMEX UK MATERIALS LTD.
Children and Young Peoples Services,Head of Childrens Social Care,Third Party Payments 4THIRD,425040,Rendered by Voluntary Organisations,03/09/2019,3635136-PIG_27677,"11,960.32",CHILDRENS FAMILY TRUST.
Children and Young Peoples Services,Head of Childrens Social Care,Third Party Payments 4THIRD,440038,Other third party payments E440,03/09/2019,3634921-3025,800.00,CITY OF SUNDERLAND YMCA LTD.
Adult and Health Services,Head of Adults,Third Party Payments 4THIRD,470101,Purchase of Care,03/09/2019,3635137-2571767,"9,286.56",COLEG ELIDYR CAMPHILL COMMUNITIES.
Adult and Health Services,Head of Adults,Third Party Payments 4THIRD,486020,Service level agreements E486,03/09/2019,3635138-PIG_26724,"14,087.36",COMMUNITY INTEGRATED CARE LTD.
Adult and Health Services,Head of Adults,Third Party Payments 4THIRD,470101,Purchase of Care,03/09/2019,3635139-2571813,"7,773.80",CONSENSUS SUPPORT SERVICES LTD.
Adult and Health Services,Head of Adults,Third Party Payments 4THIRD,471101,Purchase of Care,03/09/2019,3635140-2570684,"2,457.00",COUNTRYWIDE CARE HOMES (2) LTD.
Adult and Health Services,Head of Adults,Third Party Payments 4THIRD,470101,Purchase of Care,03/09/2019,3635140-2570687,"2,369.64",COUNTRYWIDE CARE HOMES (2) LTD.
Adult and Health Services,Head of Adults,Third Party Payments 4THIRD,471101,Purchase of Care,03/09/2019,3635140-2570688,"2,457.00",COUNTRYWIDE CARE HOMES (2) LTD.
Adult and Health Services,Head of Adults,Third Party Payments 4THIRD,470101,Purchase of Care,03/09/2019,3635140-2570689,846.30,COUNTRYWIDE CARE HOMES (2) LTD.
Adult and Health Services,Head of Adults,Third Party Payments 4THIRD,470101,Purchase of Care,03/09/2019,3635140-2570690,"2,369.64",COUNTRYWIDE CARE HOMES (2) LTD.
Adult and Health Services,Head of Adults,Third Party Payments 4THIRD,471101,Purchase of Care,03/09/2019,3635140-2570691,"2,457.00",COUNTRYWIDE CARE HOMES (2) LTD.
Adult and Health Services,Head of Adults,Third Party Payments 4THIRD,471101,Purchase of Care,03/09/2019,3635140-2570692,"2,457.00",COUNTRYWIDE CARE HOMES (2) LTD.
Adult and Health Services,Head of Adults,Third Party Payments 4THIRD,471101,Purchase of Care,03/09/2019,3635140-2570693,"2,457.00",COUNTRYWIDE CARE HOMES (2) LTD.
Adult and Health Services,Head of Adults,Third Party Payments 4THIRD,471101,Purchase of Care,03/09/2019,3635140-2570695,"2,577.00",COUNTRYWIDE CARE HOMES (2) LTD.
Adult and Health Services,Head of Adults,Third Party Payments 4THIRD,470101,Purchase of Care,03/09/2019,3635140-2570696,"2,369.64",COUNTRYWIDE CARE HOMES (2) LTD.
Adult and Health Services,Head of Adults,Third Party Payments 4THIRD,470101,Purchase of Care,03/09/2019,3635140-2570697,"2,369.64",COUNTRYWIDE CARE HOMES (2) LTD.
Adult and Health Services,Head of Adults,Third Party Payments 4THIRD,471101,Purchase of Care,03/09/2019,3635140-2570698,"2,457.00",COUNTRYWIDE CARE HOMES (2) LTD.
Adult and Health Services,Head of Adults,Third Party Payments 4THIRD,470101,Purchase of Care,03/09/2019,3635140-2570699,"2,369.64",COUNTRYWIDE CARE HOMES (2) LTD.
Adult and Health Services,Head of Adults,Third Party Payments 4THIRD,470101,Purchase of Care,03/09/2019,3635140-2570700,"2,369.64",COUNTRYWIDE CARE HOMES (2) LTD.
Adult and Health Services,Head of Adults,Third Party Payments 4THIRD,471101,Purchase of Care,03/09/2019,3635140-2570701,"2,457.00",COUNTRYWIDE CARE HOMES (2) LTD.
Adult and Health Services,Head of Adults,Third Party Payments 4THIRD,470101,Purchase of Care,03/09/2019,3635140-2570702,"2,369.64",COUNTRYWIDE CARE HOMES (2) LTD.
Adult and Health Services,Head of Adults,Third Party Payments 4THIRD,470101,Purchase of Care,03/09/2019,3635140-2570703,"2,369.64",COUNTRYWIDE CARE HOMES (2) LTD.
Adult and Health Services,Head of Adults,Third Party Payments 4THIRD,471101,Purchase of Care,03/09/2019,3635140-2570704,"2,457.00",COUNTRYWIDE CARE HOMES (2) LTD.
Adult and Health Services,Head of Adults,Third Party Payments 4THIRD,470101,Purchase of Care,03/09/2019,3635140-2570705,"2,369.64",COUNTRYWIDE CARE HOMES (2) LTD.
Adult and Health Services,Head of Adults,Third Party Payments 4THIRD,471101,Purchase of Care,03/09/2019,3635140-2570706,"2,557.00",COUNTRYWIDE CARE HOMES (2) LTD.
Adult and Health Services,Head of Adults,Third Party Payments 4THIRD,470101,Purchase of Care,03/09/2019,3635140-2570707,"2,369.64",COUNTRYWIDE CARE HOMES (2) LTD.
Adult and Health Services,Head of Adults,Third Party Payments 4THIRD,470101,Purchase of Care,03/09/2019,3635140-2570709,"2,369.64",COUNTRYWIDE CARE HOMES (2) LTD.
Adult and Health Services,Head of Adults,Third Party Payments 4THIRD,470101,Purchase of Care,03/09/2019,3635140-2570710,"2,369.64",COUNTRYWIDE CARE HOMES (2) LTD.
Adult and Health Services,Head of Adults,Third Party Payments 4THIRD,471101,Purchase of Care,03/09/2019,3635140-2570711,526.50,COUNTRYWIDE CARE HOMES (2) LTD.
Adult and Health Services,Head of Adults,Third Party Payments 4THIRD,470101,Purchase of Care,03/09/2019,3635140-2572742,"2,369.64",COUNTRYWIDE CARE HOMES (2) LTD.
Adult and Health Services,Head of Adults,Third Party Payments 4THIRD,470101,Purchase of Care,03/09/2019,3635140-2572894,"2,285.01",COUNTRYWIDE CARE HOMES (2) LTD.
Adult and Health Services,Head of Adults,Third Party Payments 4THIRD,471101,Purchase of Care,03/09/2019,3635141-2569378,"1,228.48",COUNTRYWIDE CARE HOMES (2) LTD.
Adult and Health Services,Head of Adults,Third Party Payments 4THIRD,474101,Purchase of Care,03/09/2019,3635141-2569379,"1,233.12",COUNTRYWIDE CARE HOMES (2) LTD.
Adult and Health Services,Head of Adults,Third Party Payments 4THIRD,471101,Purchase of Care,03/09/2019,3635141-2569381,"2,577.00",COUNTRYWIDE CARE HOMES (2) LTD.
Adult and Health Services,Head of Adults,Third Party Payments 4THIRD,470101,Purchase of Care,03/09/2019,3635141-2569382,592.41,COUNTRYWIDE CARE HOMES (2) LTD.
Adult and Health Services,Head of Adults,Third Party Payments 4THIRD,471101,Purchase of Care,03/09/2019,3635141-2569383,"2,106.00",COUNTRYWIDE CARE HOMES (2) LTD.
Adult and Health Services,Head of Adults,Third Party Payments 4THIRD,474101,Purchase of Care,03/09/2019,3635141-2569384,"2,466.24",COUNTRYWIDE CARE HOMES (2) LTD.
Adult and Health Services,Head of Adults,Third Party Payments 4THIRD,474101,Purchase of Care,03/09/2019,3635141-2569386,"2,466.24",COUNTRYWIDE CARE HOMES (2) LTD.
Adult and Health Services,Head of Adults,Third Party Payments 4THIRD,470101,Purchase of Care,03/09/2019,3635141-2569388,"2,369.64",COUNTRYWIDE CARE HOMES (2) LTD.
Adult and Health Services,Head of Adults,Third Party Payments 4THIRD,474101,Purchase of Care,03/09/2019,3635141-2569389,"2,466.24",COUNTRYWIDE CARE HOMES (2) LTD.
Adult and Health Services,Head of Adults,Third Party Payments 4THIRD,471101,Purchase of Care,03/09/2019,3635141-2569391,"2,457.00",COUNTRYWIDE CARE HOMES (2) LTD.
Adult and Health Services,Head of Adults,Third Party Payments 4THIRD,474101,Purchase of Care,03/09/2019,3635141-2569392,"1,233.12",COUNTRYWIDE CARE HOMES (2) LTD.
Adult and Health Services,Head of Adults,Third Party Payments 4THIRD,474101,Purchase of Care,03/09/2019,3635141-2569394,"1,717.56",COUNTRYWIDE CARE HOMES (2) LTD.
Adult and Health Services,Head of Adults,Third Party Payments 4THIRD,474101,Purchase of Care,03/09/2019,3635141-2569396,"1,233.12",COUNTRYWIDE CARE HOMES (2) LTD.
Adult and Health Services,Head of Adults,Third Party Payments 4THIRD,470101,Purchase of Care,03/09/2019,3635141-2569401,"2,369.64",COUNTRYWIDE CARE HOMES (2) LTD.
Adult and Health Services,Head of Adults,Third Party Payments 4THIRD,474101,Purchase of Care,03/09/2019,3635141-2569402,"2,466.24",COUNTRYWIDE CARE HOMES (2) LTD.
Adult and Health Services,Head of Adults,Third Party Payments 4THIRD,474101,Purchase of Care,03/09/2019,3635141-2569407,"1,233.12",COUNTRYWIDE CARE HOMES (2) LTD.
Adult and Health Services,Head of Adults,Third Party Payments 4THIRD,471101,Purchase of Care,03/09/2019,3635141-2569409,"2,457.00",COUNTRYWIDE CARE HOMES (2) LTD.
Adult and Health Services,Head of Adults,Third Party Payments 4THIRD,474101,Purchase of Care,03/09/2019,3635141-2569411,"1,233.12",COUNTRYWIDE CARE HOMES (2) LTD.
Adult and Health Services,Head of Adults,Third Party Payments 4THIRD,470101,Purchase of Care,03/09/2019,3635141-2569413,"1,184.80",COUNTRYWIDE CARE HOMES (2) LTD.
Adult and Health Services,Head of Adults,Third Party Payments 4THIRD,474101,Purchase of Care,03/09/2019,3635141-2569414,"2,466.24",COUNTRYWIDE CARE HOMES (2) LTD.
Adult and Health Services,Head of Adults,Third Party Payments 4THIRD,470101,Purchase of Care,03/09/2019,3635141-2569416,"2,369.64",COUNTRYWIDE CARE HOMES (2) LTD.
Adult and Health Services,Head of Adults,Third Party Payments 4THIRD,470101,Purchase of Care,03/09/2019,3635141-2572918,664.30,COUNTRYWIDE CARE HOMES (2) LTD.
Adult and Health Services,Head of Adults,Third Party Payments 4THIRD,474101,Purchase of Care,03/09/2019,3635141-2572925,"11,995.84",COUNTRYWIDE CARE HOMES (2) LTD.
Adult and Health Services,Head of Adults,Third Party Payments 4THIRD,470101,Purchase of Care,03/09/2019,3635142-2568934,"2,444.12",COUNTRYWIDE CARE HOMES (2) LTD.
Adult and Health Services,Head of Adults,Third Party Payments 4THIRD,470101,Purchase of Care,03/09/2019,3635142-2568935,"2,369.64",COUNTRYWIDE CARE HOMES (2) LTD.
Adult and Health Services,Head of Adults,Third Party Payments 4THIRD,471101,Purchase of Care,03/09/2019,3635142-2568936,"2,457.00",COUNTRYWIDE CARE HOMES (2) LTD.
Adult and Health Services,Head of Adults,Third Party Payments 4THIRD,470101,Purchase of Care,03/09/2019,3635142-2568937,"2,444.12",COUNTRYWIDE CARE HOMES (2) LTD.
Adult and Health Services,Head of Adults,Third Party Payments 4THIRD,474101,Purchase of Care,03/09/2019,3635142-2568939,"2,476.88",COUNTRYWIDE CARE HOMES (2) LTD.
Adult and Health Services,Head of Adults,Third Party Payments 4THIRD,474101,Purchase of Care,03/09/2019,3635142-2568942,"1,233.12",COUNTRYWIDE CARE HOMES (2) LTD.
Adult and Health Services,Head of Adults,Third Party Payments 4THIRD,474101,Purchase of Care,03/09/2019,3635142-2568944,"2,466.24",COUNTRYWIDE CARE HOMES (2) LTD.
Adult and Health Services,Head of Adults,Third Party Payments 4THIRD,470101,Purchase of Care,03/09/2019,3635142-2568946,"2,444.12",COUNTRYWIDE CARE HOMES (2) LTD.
Adult and Health Services,Head of Adults,Third Party Payments 4THIRD,474101,Purchase of Care,03/09/2019,3635142-2568947,"2,466.24",COUNTRYWIDE CARE HOMES (2) LTD.
Adult and Health Services,Head of Adults,Third Party Payments 4THIRD,470101,Purchase of Care,03/09/2019,3635142-2568949,"2,444.12",COUNTRYWIDE CARE HOMES (2) LTD.
Adult and Health Services,Head of Adults,Third Party Payments 4THIRD,470101,Purchase of Care,03/09/2019,3635142-2568950,"2,444.12",COUNTRYWIDE CARE HOMES (2) LTD.
Adult and Health Services,Head of Adults,Third Party Payments 4THIRD,470101,Purchase of Care,03/09/2019,3635142-2572814,846.30,COUNTRYWIDE CARE HOMES (2) LTD.
Adult and Health Services,Head of Adults,Third Party Payments 4THIRD,474101,Purchase of Care,03/09/2019,3635143-2570459,"2,304.80",COUNTRYWIDE CARE HOMES (2) LTD.
Adult and Health Services,Head of Adults,Third Party Payments 4THIRD,471101,Purchase of Care,03/09/2019,3635144-2571768,"2,457.00",COUNTRYWIDE CARE HOMES (2) LTD.
Adult and Health Services,Head of Adults,Third Party Payments 4THIRD,471101,Purchase of Care,03/09/2019,3635144-2571769,"2,457.00",COUNTRYWIDE CARE HOMES (2) LTD.
Adult and Health Services,Head of Adults,Third Party Payments 4THIRD,470101,Purchase of Care,03/09/2019,3635144-2571770,"2,489.64",COUNTRYWIDE CARE HOMES (2) LTD.
Adult and Health Services,Head of Adults,Third Party Payments 4THIRD,471101,Purchase of Care,03/09/2019,3635144-2571771,"2,577.00",COUNTRYWIDE CARE HOMES (2) LTD.
Adult and Health Services,Head of Adults,Third Party Payments 4THIRD,470101,Purchase of Care,03/09/2019,3635144-2571772,"2,489.64",COUNTRYWIDE CARE HOMES (2) LTD.
Adult and Health Services,Head of Adults,Third Party Payments 4THIRD,470101,Purchase of Care,03/09/2019,3635144-2571773,"2,369.64",COUNTRYWIDE CARE HOMES (2) LTD.
Adult and Health Services,Head of Adults,Third Party Payments 4THIRD,470101,Purchase of Care,03/09/2019,3635144-2571774,622.41,COUNTRYWIDE CARE HOMES (2) LTD.
Adult and Health Services,Head of Adults,Third Party Payments 4THIRD,470101,Purchase of Care,03/09/2019,3635144-2571775,"2,489.64",COUNTRYWIDE CARE HOMES (2) LTD.
Adult and Health Services,Head of Adults,Third Party Payments 4THIRD,470101,Purchase of Care,03/09/2019,3635144-2571776,"2,489.64",COUNTRYWIDE CARE HOMES (2) LTD.
Adult and Health Services,Head of Adults,Third Party Payments 4THIRD,470101,Purchase of Care,03/09/2019,3635144-2571777,"2,489.64",COUNTRYWIDE CARE HOMES (2) LTD.
Adult and Health Services,Head of Adults,Third Party Payments 4THIRD,470101,Purchase of Care,03/09/2019,3635144-2571778,"1,867.23",COUNTRYWIDE CARE HOMES (2) LTD.
Adult and Health Services,Head of Adults,Third Party Payments 4THIRD,471101,Purchase of Care,03/09/2019,3635144-2571779,"2,577.00",COUNTRYWIDE CARE HOMES (2) LTD.
Adult and Health Services,Head of Adults,Third Party Payments 4THIRD,470101,Purchase of Care,03/09/2019,3635144-2571780,"2,489.64",COUNTRYWIDE CARE HOMES (2) LTD.
Adult and Health Services,Head of Adults,Third Party Payments 4THIRD,471101,Purchase of Care,03/09/2019,3635144-2571781,"2,577.00",COUNTRYWIDE CARE HOMES (2) LTD.
Adult and Health Services,Head of Adults,Third Party Payments 4THIRD,470101,Purchase of Care,03/09/2019,3635144-2571783,"2,489.64",COUNTRYWIDE CARE HOMES (2) LTD.
Adult and Health Services,Head of Adults,Third Party Payments 4THIRD,470101,Purchase of Care,03/09/2019,3635144-2571784,"2,489.64",COUNTRYWIDE CARE HOMES (2) LTD.
Adult and Health Services,Head of Adults,Third Party Payments 4THIRD,470101,Purchase of Care,03/09/2019,3635144-2571785,"2,489.64",COUNTRYWIDE CARE HOMES (2) LTD.
Adult and Health Services,Head of Adults,Third Party Payments 4THIRD,470101,Purchase of Care,03/09/2019,3635144-2571786,"2,489.64",COUNTRYWIDE CARE HOMES (2) LTD.
Adult and Health Services,Head of Adults,Third Party Payments 4THIRD,470101,Purchase of Care,03/09/2019,3635144-2571787,"1,244.82",COUNTRYWIDE CARE HOMES (2) LTD.
Adult and Health Services,Head of Adults,Third Party Payments 4THIRD,471101,Purchase of Care,03/09/2019,3635144-2571788,"2,457.00",COUNTRYWIDE CARE HOMES (2) LTD.
Adult and Health Services,Head of Adults,Third Party Payments 4THIRD,470101,Purchase of Care,03/09/2019,3635144-2571789,"2,489.64",COUNTRYWIDE CARE HOMES (2) LTD.
Adult and Health Services,Head of Adults,Third Party Payments 4THIRD,470101,Purchase of Care,03/09/2019,3635144-2571790,"2,489.64",COUNTRYWIDE CARE HOMES (2) LTD.
Adult and Health Services,Head of Adults,Third Party Payments 4THIRD,471101,Purchase of Care,03/09/2019,3635144-2571791,"2,577.00",COUNTRYWIDE CARE HOMES (2) LTD.
Adult and Health Services,Head of Adults,Third Party Payments 4THIRD,470101,Purchase of Care,03/09/2019,3635144-2571792,"2,489.64",COUNTRYWIDE CARE HOMES (2) LTD.
Adult and Health Services,Head of Adults,Third Party Payments 4THIRD,470101,Purchase of Care,03/09/2019,3635144-2571793,"2,489.64",COUNTRYWIDE CARE HOMES (2) LTD.
Adult and Health Services,Head of Adults,Third Party Payments 4THIRD,471101,Purchase of Care,03/09/2019,3635144-2571794,"2,577.00",COUNTRYWIDE CARE HOMES (2) LTD.
Adult and Health Services,Head of Adults,Third Party Payments 4THIRD,470101,Purchase of Care,03/09/2019,3635144-2571795,"2,669.64",COUNTRYWIDE CARE HOMES (2) LTD.
Adult and Health Services,Head of Adults,Third Party Payments 4THIRD,471101,Purchase of Care,03/09/2019,3635144-2571796,"2,577.00",COUNTRYWIDE CARE HOMES (2) LTD.
Adult and Health Services,Head of Adults,Third Party Payments 4THIRD,471101,Purchase of Care,03/09/2019,3635144-2571797,"1,228.52",COUNTRYWIDE CARE HOMES (2) LTD.
Adult and Health Services,Head of Adults,Third Party Payments 4THIRD,471101,Purchase of Care,03/09/2019,3635144-2571798,"2,457.00",COUNTRYWIDE CARE HOMES (2) LTD.
Adult and Health Services,Head of Adults,Third Party Payments 4THIRD,470101,Purchase of Care,03/09/2019,3635144-2571799,"1,184.84",COUNTRYWIDE CARE HOMES (2) LTD.
Adult and Health Services,Head of Adults,Third Party Payments 4THIRD,470101,Purchase of Care,03/09/2019,3635144-2571800,"2,369.64",COUNTRYWIDE CARE HOMES (2) LTD.
Adult and Health Services,Head of Adults,Third Party Payments 4THIRD,470101,Purchase of Care,03/09/2019,3635144-2571801,"2,469.64",COUNTRYWIDE CARE HOMES (2) LTD.
Adult and Health Services,Head of Adults,Third Party Payments 4THIRD,471101,Purchase of Care,03/09/2019,3635144-2571803,"2,457.00",COUNTRYWIDE CARE HOMES (2) LTD.
Adult and Health Services,Head of Adults,Third Party Payments 4THIRD,471101,Purchase of Care,03/09/2019,3635144-2571804,"2,457.00",COUNTRYWIDE CARE HOMES (2) LTD.
Adult and Health Services,Head of Adults,Third Party Payments 4THIRD,471101,Purchase of Care,03/09/2019,3635144-2571805,"2,457.00",COUNTRYWIDE CARE HOMES (2) LTD.
Adult and Health Services,Head of Adults,Third Party Payments 4THIRD,471101,Purchase of Care,03/09/2019,3635144-2571806,"2,457.00",COUNTRYWIDE CARE HOMES (2) LTD.
Adult and Health Services,Head of Adults,Third Party Payments 4THIRD,470101,Purchase of Care,03/09/2019,3635144-2571807,"2,369.64",COUNTRYWIDE CARE HOMES (2) LTD.
Adult and Health Services,Head of Adults,Third Party Payments 4THIRD,470101,Purchase of Care,03/09/2019,3635144-2571808,"2,369.64",COUNTRYWIDE CARE HOMES (2) LTD.
Adult and Health Services,Head of Adults,Third Party Payments 4THIRD,470101,Purchase of Care,03/09/2019,3635144-2571809,"2,429.64",COUNTRYWIDE CARE HOMES (2) LTD.
Adult and Health Services,Head of Adults,Third Party Payments 4THIRD,471101,Purchase of Care,03/09/2019,3635144-2571810,"2,457.00",COUNTRYWIDE CARE HOMES (2) LTD.
Adult and Health Services,Head of Adults,Third Party Payments 4THIRD,470101,Purchase of Care,03/09/2019,3635144-2571811,"2,429.64",COUNTRYWIDE CARE HOMES (2) LTD.
Adult and Health Services,Head of Adults,Third Party Payments 4THIRD,470101,Purchase of Care,03/09/2019,3635144-2572691,520.63,COUNTRYWIDE CARE HOMES (2) LTD.
Adult and Health Services,Head of Adults,Third Party Payments 4THIRD,470101,Purchase of Care,03/09/2019,3635144-2572910,"1,244.82",COUNTRYWIDE CARE HOMES (2) LTD.
Adult and Health Services,Head of Adults,Third Party Payments 4THIRD,471101,Purchase of Care,03/09/2019,3635144-2572923,"10,308.00",COUNTRYWIDE CARE HOMES (2) LTD.
Adult and Health Services,Head of Adults,Third Party Payments 4THIRD,470101,Purchase of Care,03/09/2019,3635145-2569940,"2,369.64",CRAIGARRAN LTD.
Adult and Health Services,Head of Adults,Third Party Payments 4THIRD,474101,Purchase of Care,03/09/2019,3635145-2569941,"2,466.24",CRAIGARRAN LTD.
Adult and Health Services,Head of Adults,Third Party Payments 4THIRD,470101,Purchase of Care,03/09/2019,3635145-2569943,"2,369.64",CRAIGARRAN LTD.
Adult and Health Services,Head of Adults,Third Party Payments 4THIRD,474101,Purchase of Care,03/09/2019,3635145-2569944,"2,466.24",CRAIGARRAN LTD.
Adult and Health Services,Head of Adults,Third Party Payments 4THIRD,470101,Purchase of Care,03/09/2019,3635145-2569946,"2,369.64",CRAIGARRAN LTD.
Adult and Health Services,Head of Adults,Third Party Payments 4THIRD,470101,Purchase of Care,03/09/2019,3635145-2569947,761.67,CRAIGARRAN LTD.
Adult and Health Services,Head of Adults,Third Party Payments 4THIRD,470101,Purchase of Care,03/09/2019,3635145-2569948,"2,369.64",CRAIGARRAN LTD.
Adult and Health Services,Head of Adults,Third Party Payments 4THIRD,470101,Purchase of Care,03/09/2019,3635145-2569949,"2,369.64",CRAIGARRAN LTD.
Adult and Health Services,Head of Adults,Third Party Payments 4THIRD,470101,Purchase of Care,03/09/2019,3635145-2569950,"2,369.64",CRAIGARRAN LTD.
Adult and Health Services,Head of Adults,Third Party Payments 4THIRD,474101,Purchase of Care,03/09/2019,3635145-2569951,"2,466.24",CRAIGARRAN LTD.
Adult and Health Services,Head of Adults,Third Party Payments 4THIRD,471101,Purchase of Care,03/09/2019,3635145-2569953,"2,457.00",CRAIGARRAN LTD.
Adult and Health Services,Head of Adults,Third Party Payments 4THIRD,471101,Purchase of Care,03/09/2019,3635145-2569954,"2,457.00",CRAIGARRAN LTD.
Adult and Health Services,Head of Adults,Third Party Payments 4THIRD,474101,Purchase of Care,03/09/2019,3635145-2569955,"1,233.12",CRAIGARRAN LTD.
Adult and Health Services,Head of Adults,Third Party Payments 4THIRD,474101,Purchase of Care,03/09/2019,3635145-2569957,"1,233.12",CRAIGARRAN LTD.
Adult and Health Services,Head of Adults,Third Party Payments 4THIRD,474101,Purchase of Care,03/09/2019,3635145-2569959,"2,466.24",CRAIGARRAN LTD.
Adult and Health Services,Head of Adults,Third Party Payments 4THIRD,471101,Purchase of Care,03/09/2019,3635145-2569961,"1,228.52",CRAIGARRAN LTD.
Adult and Health Services,Head of Adults,Third Party Payments 4THIRD,474101,Purchase of Care,03/09/2019,3635145-2569962,"1,233.12",CRAIGARRAN LTD.
Adult and Health Services,Head of Adults,Third Party Payments 4THIRD,474101,Purchase of Care,03/09/2019,3635145-2569964,"2,466.24",CRAIGARRAN LTD.
Adult and Health Services,Head of Adults,Third Party Payments 4THIRD,474101,Purchase of Care,03/09/2019,3635145-2569966,"2,466.24",CRAIGARRAN LTD.
Adult and Health Services,Head of Adults,Third Party Payments 4THIRD,471101,Purchase of Care,03/09/2019,3635145-2569968,"2,457.00",CRAIGARRAN LTD.
Adult and Health Services,Head of Adults,Third Party Payments 4THIRD,470101,Purchase of Care,03/09/2019,3635145-2569969,"2,369.64",CRAIGARRAN LTD.
Adult and Health Services,Head of Adults,Third Party Payments 4THIRD,470101,Purchase of Care,03/09/2019,3635145-2569970,"2,369.64",CRAIGARRAN LTD.
Adult and Health Services,Head of Adults,Third Party Payments 4THIRD,471101,Purchase of Care,03/09/2019,3635145-2569971,"2,457.00",CRAIGARRAN LTD.
Adult and Health Services,Head of Adults,Third Party Payments 4THIRD,474101,Purchase of Care,03/09/2019,3635145-2569972,"2,466.24",CRAIGARRAN LTD.
Adult and Health Services,Head of Adults,Third Party Payments 4THIRD,470101,Purchase of Care,03/09/2019,3635145-2569974,"2,369.64",CRAIGARRAN LTD.
Adult and Health Services,Head of Adults,Third Party Payments 4THIRD,470101,Purchase of Care,03/09/2019,3635146-2571477,"2,369.64",CROFT HOUSE (CARE) LTD.
Adult and Health Services,Head of Adults,Third Party Payments 4THIRD,470101,Purchase of Care,03/09/2019,3635146-2571478,677.04,CROFT HOUSE (CARE) LTD.
Adult and Health Services,Head of Adults,Third Party Payments 4THIRD,474101,Purchase of Care,03/09/2019,3635146-2571479,"1,233.12",CROFT HOUSE (CARE) LTD.
Adult and Health Services,Head of Adults,Third Party Payments 4THIRD,471101,Purchase of Care,03/09/2019,3635146-2571481,"2,457.00",CROFT HOUSE (CARE) LTD.
Adult and Health Services,Head of Adults,Third Party Payments 4THIRD,471101,Purchase of Care,03/09/2019,3635146-2571482,"2,457.00",CROFT HOUSE (CARE) LTD.
Adult and Health Services,Head of Adults,Third Party Payments 4THIRD,474101,Purchase of Care,03/09/2019,3635146-2571483,"2,202.00",CROFT HOUSE (CARE) LTD.
Adult and Health Services,Head of Adults,Third Party Payments 4THIRD,474101,Purchase of Care,03/09/2019,3635146-2571485,"1,233.12",CROFT HOUSE (CARE) LTD.
Adult and Health Services,Head of Adults,Third Party Payments 4THIRD,474101,Purchase of Care,03/09/2019,3635146-2571487,"1,673.52",CROFT HOUSE (CARE) LTD.
Adult and Health Services,Head of Adults,Third Party Payments 4THIRD,474101,Purchase of Care,03/09/2019,3635146-2571489,"2,466.24",CROFT HOUSE (CARE) LTD.
Adult and Health Services,Head of Adults,Third Party Payments 4THIRD,470101,Purchase of Care,03/09/2019,3635146-2571491,"2,369.64",CROFT HOUSE (CARE) LTD.
Adult and Health Services,Head of Adults,Third Party Payments 4THIRD,470101,Purchase of Care,03/09/2019,3635146-2571493,"2,369.64",CROFT HOUSE (CARE) LTD.
Adult and Health Services,Head of Adults,Third Party Payments 4THIRD,470101,Purchase of Care,03/09/2019,3635146-2571496,"2,369.64",CROFT HOUSE (CARE) LTD.
Adult and Health Services,Head of Adults,Third Party Payments 4THIRD,471101,Purchase of Care,03/09/2019,3635146-2571497,"2,457.00",CROFT HOUSE (CARE) LTD.
Adult and Health Services,Head of Adults,Third Party Payments 4THIRD,471101,Purchase of Care,03/09/2019,3635146-2571498,"2,457.00",CROFT HOUSE (CARE) LTD.
Adult and Health Services,Head of Adults,Third Party Payments 4THIRD,470101,Purchase of Care,03/09/2019,3635146-2571499,"2,369.64",CROFT HOUSE (CARE) LTD.
Adult and Health Services,Head of Adults,Third Party Payments 4THIRD,474101,Purchase of Care,03/09/2019,3635146-2571500,"2,466.24",CROFT HOUSE (CARE) LTD.
Adult and Health Services,Head of Adults,Third Party Payments 4THIRD,470101,Purchase of Care,03/09/2019,3635146-2571502,"2,369.64",CROFT HOUSE (CARE) LTD.
Adult and Health Services,Head of Adults,Third Party Payments 4THIRD,471101,Purchase of Care,03/09/2019,3635146-2571503,"2,457.00",CROFT HOUSE (CARE) LTD.
Adult and Health Services,Head of Adults,Third Party Payments 4THIRD,470101,Purchase of Care,03/09/2019,3635146-2571504,"2,369.64",CROFT HOUSE (CARE) LTD.
Adult and Health Services,Head of Adults,Third Party Payments 4THIRD,474101,Purchase of Care,03/09/2019,3635146-2571505,"1,233.12",CROFT HOUSE (CARE) LTD.
Adult and Health Services,Head of Adults,Third Party Payments 4THIRD,474101,Purchase of Care,03/09/2019,3635146-2571507,"1,233.12",CROFT HOUSE (CARE) LTD.
Adult and Health Services,Head of Adults,Third Party Payments 4THIRD,474101,Purchase of Care,03/09/2019,3635146-2571509,"2,466.24",CROFT HOUSE (CARE) LTD.
Adult and Health Services,Head of Adults,Third Party Payments 4THIRD,470101,Purchase of Care,03/09/2019,3635146-2572827,732.54,CROFT HOUSE (CARE) LTD.
Adult and Health Services,Head of Adults,Third Party Payments 4THIRD,470101,Purchase of Care,03/09/2019,3635146-2572829,761.67,CROFT HOUSE (CARE) LTD.
Adult and Health Services,Head of Adults,Third Party Payments 4THIRD,474101,Purchase of Care,03/09/2019,3635147-2570885,"2,466.24",CROWN CARE VI LTD.
Adult and Health Services,Head of Adults,Third Party Payments 4THIRD,470101,Purchase of Care,03/09/2019,3635147-2570887,"2,369.64",CROWN CARE VI LTD.
Adult and Health Services,Head of Adults,Third Party Payments 4THIRD,474101,Purchase of Care,03/09/2019,3635147-2570888,"2,466.24",CROWN CARE VI LTD.
Adult and Health Services,Head of Adults,Third Party Payments 4THIRD,471101,Purchase of Care,03/09/2019,3635147-2570890,"2,457.00",CROWN CARE VI LTD.
Adult and Health Services,Head of Adults,Third Party Payments 4THIRD,474101,Purchase of Care,03/09/2019,3635147-2570891,"2,466.24",CROWN CARE VI LTD.
Adult and Health Services,Head of Adults,Third Party Payments 4THIRD,470101,Purchase of Care,03/09/2019,3635147-2570894,"2,369.64",CROWN CARE VI LTD.
Adult and Health Services,Head of Adults,Third Party Payments 4THIRD,470101,Purchase of Care,03/09/2019,3635147-2570898,"2,369.64",CROWN CARE VI LTD.
Adult and Health Services,Head of Adults,Third Party Payments 4THIRD,470101,Purchase of Care,03/09/2019,3635147-2570899,"2,369.64",CROWN CARE VI LTD.
Adult and Health Services,Head of Adults,Third Party Payments 4THIRD,471101,Purchase of Care,03/09/2019,3635147-2570901,"1,755.00",CROWN CARE VI LTD.
Adult and Health Services,Head of Adults,Third Party Payments 4THIRD,471101,Purchase of Care,03/09/2019,3635147-2570903,"2,457.00",CROWN CARE VI LTD.
Adult and Health Services,Head of Adults,Third Party Payments 4THIRD,471101,Purchase of Care,03/09/2019,3635147-2570904,"2,457.00",CROWN CARE VI LTD.
Adult and Health Services,Head of Adults,Third Party Payments 4THIRD,471101,Purchase of Care,03/09/2019,3635147-2570905,"2,457.00",CROWN CARE VI LTD.
Adult and Health Services,Head of Adults,Third Party Payments 4THIRD,471101,Purchase of Care,03/09/2019,3635147-2570906,"2,457.00",CROWN CARE VI LTD.
Adult and Health Services,Head of Adults,Third Party Payments 4THIRD,471101,Purchase of Care,03/09/2019,3635147-2570907,702.00,CROWN CARE VI LTD.
Adult and Health Services,Head of Adults,Third Party Payments 4THIRD,471101,Purchase of Care,03/09/2019,3635147-2570908,"2,457.00",CROWN CARE VI LTD.
Adult and Health Services,Head of Adults,Third Party Payments 4THIRD,471101,Purchase of Care,03/09/2019,3635147-2570909,"1,228.48",CROWN CARE VI LTD.
Adult and Health Services,Head of Adults,Third Party Payments 4THIRD,471101,Purchase of Care,03/09/2019,3635147-2570910,"2,457.00",CROWN CARE VI LTD.
Adult and Health Services,Head of Adults,Third Party Payments 4THIRD,471101,Purchase of Care,03/09/2019,3635147-2570911,"2,457.00",CROWN CARE VI LTD.
Adult and Health Services,Head of Adults,Third Party Payments 4THIRD,471101,Purchase of Care,03/09/2019,3635147-2570912,"2,457.00",CROWN CARE VI LTD.
Adult and Health Services,Head of Adults,Third Party Payments 4THIRD,474101,Purchase of Care,03/09/2019,3635147-2570913,"1,233.12",CROWN CARE VI LTD.
Adult and Health Services,Head of Adults,Third Party Payments 4THIRD,470101,Purchase of Care,03/09/2019,3635147-2570915,"2,457.00",CROWN CARE VI LTD.
Adult and Health Services,Head of Adults,Third Party Payments 4THIRD,474101,Purchase of Care,03/09/2019,3635147-2570916,"1,502.04",CROWN CARE VI LTD.
Adult and Health Services,Head of Adults,Third Party Payments 4THIRD,474101,Purchase of Care,03/09/2019,3635147-2570918,"2,466.24",CROWN CARE VI LTD.
Adult and Health Services,Head of Adults,Third Party Payments 4THIRD,470101,Purchase of Care,03/09/2019,3635147-2570920,"2,369.64",CROWN CARE VI LTD.
Adult and Health Services,Head of Adults,Third Party Payments 4THIRD,471101,Purchase of Care,03/09/2019,3635147-2570921,"2,457.00",CROWN CARE VI LTD.
Adult and Health Services,Head of Adults,Third Party Payments 4THIRD,474101,Purchase of Care,03/09/2019,3635147-2570922,"2,466.24",CROWN CARE VI LTD.
Adult and Health Services,Head of Adults,Third Party Payments 4THIRD,474101,Purchase of Care,03/09/2019,3635147-2570924,"2,466.24",CROWN CARE VI LTD.
Adult and Health Services,Head of Adults,Third Party Payments 4THIRD,471101,Purchase of Care,03/09/2019,3635147-2570926,"2,457.00",CROWN CARE VI LTD.
Adult and Health Services,Head of Adults,Third Party Payments 4THIRD,474101,Purchase of Care,03/09/2019,3635147-2570927,"2,466.24",CROWN CARE VI LTD.
Adult and Health Services,Head of Adults,Third Party Payments 4THIRD,471101,Purchase of Care,03/09/2019,3635147-2570929,"2,457.00",CROWN CARE VI LTD.
Adult and Health Services,Head of Adults,Third Party Payments 4THIRD,470101,Purchase of Care,03/09/2019,3635147-2570930,"2,369.64",CROWN CARE VI LTD.
Adult and Health Services,Head of Adults,Third Party Payments 4THIRD,474101,Purchase of Care,03/09/2019,3635147-2570931,"2,466.24",CROWN CARE VI LTD.
Adult and Health Services,Head of Adults,Third Party Payments 4THIRD,474101,Purchase of Care,03/09/2019,3635147-2570933,"1,233.12",CROWN CARE VI LTD.
Adult and Health Services,Head of Adults,Third Party Payments 4THIRD,474101,Purchase of Care,03/09/2019,3635147-2570935,"2,466.24",CROWN CARE VI LTD.
Adult and Health Services,Head of Adults,Third Party Payments 4THIRD,471101,Purchase of Care,03/09/2019,3635147-2570937,"2,457.00",CROWN CARE VI LTD.
Adult and Health Services,Head of Adults,Third Party Payments 4THIRD,474101,Purchase of Care,03/09/2019,3635147-2570938,"1,233.12",CROWN CARE VI LTD.
Adult and Health Services,Head of Adults,Third Party Payments 4THIRD,471101,Purchase of Care,03/09/2019,3635147-2570940,"2,457.00",CROWN CARE VI LTD.
Adult and Health Services,Head of Adults,Third Party Payments 4THIRD,474101,Purchase of Care,03/09/2019,3635147-2570941,"2,466.24",CROWN CARE VI LTD.
Adult and Health Services,Head of Adults,Third Party Payments 4THIRD,471101,Purchase of Care,03/09/2019,3635147-2570943,"1,228.48",CROWN CARE VI LTD.
Adult and Health Services,Head of Adults,Third Party Payments 4THIRD,470101,Purchase of Care,03/09/2019,3635147-2570944,"2,369.64",CROWN CARE VI LTD.
Adult and Health Services,Head of Adults,Third Party Payments 4THIRD,470101,Purchase of Care,03/09/2019,3635147-2570945,"2,369.64",CROWN CARE VI LTD.
Adult and Health Services,Head of Adults,Third Party Payments 4THIRD,474101,Purchase of Care,03/09/2019,3635147-2570946,"2,466.24",CROWN CARE VI LTD.
Adult and Health Services,Head of Adults,Third Party Payments 4THIRD,471101,Purchase of Care,03/09/2019,3635147-2570948,"2,457.00",CROWN CARE VI LTD.
Adult and Health Services,Head of Adults,Third Party Payments 4THIRD,470101,Purchase of Care,03/09/2019,3635147-2570950,"1,184.80",CROWN CARE VI LTD.
Adult and Health Services,Head of Adults,Third Party Payments 4THIRD,474101,Purchase of Care,03/09/2019,3635147-2570951,"1,233.12",CROWN CARE VI LTD.
Adult and Health Services,Head of Adults,Third Party Payments 4THIRD,474101,Purchase of Care,03/09/2019,3635147-2570953,"2,466.24",CROWN CARE VI LTD.
Adult and Health Services,Head of Adults,Third Party Payments 4THIRD,470101,Purchase of Care,03/09/2019,3635147-2570955,"2,369.64",CROWN CARE VI LTD.
Adult and Health Services,Head of Adults,Third Party Payments 4THIRD,474101,Purchase of Care,03/09/2019,3635147-2570956,"2,466.24",CROWN CARE VI LTD.
Adult and Health Services,Head of Adults,Third Party Payments 4THIRD,470101,Purchase of Care,03/09/2019,3635147-2570958,"2,369.64",CROWN CARE VI LTD.
Adult and Health Services,Head of Adults,Third Party Payments 4THIRD,474101,Purchase of Care,03/09/2019,3635147-2570959,"2,466.24",CROWN CARE VI LTD.
Adult and Health Services,Head of Adults,Third Party Payments 4THIRD,471101,Purchase of Care,03/09/2019,3635147-2570961,"2,457.00",CROWN CARE VI LTD.
Adult and Health Services,Head of Adults,Third Party Payments 4THIRD,470101,Purchase of Care,03/09/2019,3635147-2570962,"2,369.64",CROWN CARE VI LTD.
Adult and Health Services,Head of Adults,Third Party Payments 4THIRD,470101,Purchase of Care,03/09/2019,3635147-2570963,"2,369.64",CROWN CARE VI LTD.
Adult and Health Services,Head of Adults,Third Party Payments 4THIRD,474101,Purchase of Care,03/09/2019,3635147-2570964,"2,466.24",CROWN CARE VI LTD.
Adult and Health Services,Head of Adults,Third Party Payments 4THIRD,474101,Purchase of Care,03/09/2019,3635147-2570967,"2,466.24",CROWN CARE VI LTD.
Adult and Health Services,Head of Adults,Third Party Payments 4THIRD,471101,Purchase of Care,03/09/2019,3635147-2572580,"3,773.25",CROWN CARE VI LTD.
Adult and Health Services,Head of Adults,Third Party Payments 4THIRD,474101,Purchase of Care,03/09/2019,3635147-2572616,"4,388.58",CROWN CARE VI LTD.
Adult and Health Services,Head of Adults,Third Party Payments 4THIRD,471101,Purchase of Care,03/09/2019,3635147-2572856,"1,096.85",CROWN CARE VI LTD.
Adult and Health Services,Head of Adults,Third Party Payments 4THIRD,470101,Purchase of Care,03/09/2019,3635147-2572857,"1,607.97",CROWN CARE VI LTD.
Adult and Health Services,Head of Adults,Third Party Payments 4THIRD,470101,Purchase of Care,03/09/2019,3635147-2572858,507.78,CROWN CARE VI LTD.
Adult and Health Services,Head of Adults,Third Party Payments 4THIRD,471101,Purchase of Care,03/09/2019,3635147-2572860,"2,106.00",CROWN CARE VI LTD.
Adult and Health Services,Head of Adults,Third Party Payments 4THIRD,474101,Purchase of Care,03/09/2019,3635147-2572865,528.48,CROWN CARE VI LTD.
Adult and Health Services,Head of Adults,Third Party Payments 4THIRD,474101,Purchase of Care,03/09/2019,3635148-2570120,"4,284.00",CYGNET OE LTD.
Adult and Health Services,Head of Adults,Third Party Payments 4THIRD,470101,Purchase of Care,03/09/2019,3635148-2570121,"7,295.12",CYGNET OE LTD.
Adult and Health Services,Head of Adults,Third Party Payments 4THIRD,470101,Purchase of Care,03/09/2019,3635149-2570279,"4,284.00",CYGNET OE LTD.
Adult and Health Services,Head of Adults,Third Party Payments 4THIRD,470101,Purchase of Care,03/09/2019,3635149-2570280,"2,595.60",CYGNET OE LTD.
Adult and Health Services,Head of Adults,Third Party Payments 4THIRD,470101,Purchase of Care,03/09/2019,3635149-2570281,"4,169.76",CYGNET OE LTD.
Adult and Health Services,Head of Adults,Third Party Payments 4THIRD,470101,Purchase of Care,03/09/2019,3635149-2570282,"5,376.00",CYGNET OE LTD.
Adult and Health Services,Head of Adults,Third Party Payments 4THIRD,470101,Purchase of Care,03/09/2019,3635149-2570283,"12,138.00",CYGNET OE LTD.
Adult and Health Services,Head of Adults,Third Party Payments 4THIRD,470101,Purchase of Care,03/09/2019,3635149-2570284,"4,896.00",CYGNET OE LTD.
Adult and Health Services,Head of Adults,Third Party Payments 4THIRD,474101,Purchase of Care,03/09/2019,3635150-2570677,"4,681.80",CYGNET OE LTD.
Adult and Health Services,Head of Adults,Third Party Payments 4THIRD,470101,Purchase of Care,03/09/2019,3635150-2570678,"1,903.44",CYGNET OE LTD.
Adult and Health Services,Head of Adults,Third Party Payments 4THIRD,470101,Purchase of Care,03/09/2019,3635151-2569644,988.00,D3 CARE LTD.
Adult and Health Services,Head of Adults,Third Party Payments 4THIRD,470101,Purchase of Care,03/09/2019,3635151-2569645,"1,976.08",D3 CARE LTD.
Adult and Health Services,Head of Adults,Third Party Payments 4THIRD,474101,Purchase of Care,03/09/2019,3635151-2569646,"2,034.76",D3 CARE LTD.
Adult and Health Services,Head of Adults,Third Party Payments 4THIRD,474101,Purchase of Care,03/09/2019,3635151-2569648,"1,037.76",D3 CARE LTD.
Adult and Health Services,Head of Adults,Third Party Payments 4THIRD,474101,Purchase of Care,03/09/2019,3635151-2569650,"1,037.76",D3 CARE LTD.
Adult and Health Services,Head of Adults,Third Party Payments 4THIRD,470101,Purchase of Care,03/09/2019,3635151-2569652,"1,976.08",D3 CARE LTD.
Adult and Health Services,Head of Adults,Third Party Payments 4THIRD,470101,Purchase of Care,03/09/2019,3635151-2569653,"1,976.08",D3 CARE LTD.
Adult and Health Services,Head of Adults,Third Party Payments 4THIRD,474101,Purchase of Care,03/09/2019,3635151-2569654,"2,075.44",D3 CARE LTD.
Adult and Health Services,Head of Adults,Third Party Payments 4THIRD,474101,Purchase of Care,03/09/2019,3635151-2569656,"2,075.44",D3 CARE LTD.
Adult and Health Services,Head of Adults,Third Party Payments 4THIRD,474101,Purchase of Care,03/09/2019,3635151-2569658,"1,198.56",D3 CARE LTD.
Adult and Health Services,Head of Adults,Third Party Payments 4THIRD,474101,Purchase of Care,03/09/2019,3635151-2569660,"1,500.40",D3 CARE LTD.
Adult and Health Services,Head of Adults,Third Party Payments 4THIRD,474101,Purchase of Care,03/09/2019,3635151-2569662,"2,075.44",D3 CARE LTD.
Adult and Health Services,Head of Adults,Third Party Payments 4THIRD,474101,Purchase of Care,03/09/2019,3635151-2569664,"1,037.72",D3 CARE LTD.
Adult and Health Services,Head of Adults,Third Party Payments 4THIRD,470101,Purchase of Care,03/09/2019,3635152-2569435,"1,976.08",D3 CARE LTD.
Adult and Health Services,Head of Adults,Third Party Payments 4THIRD,474101,Purchase of Care,03/09/2019,3635152-2569436,"1,037.76",D3 CARE LTD.
Adult and Health Services,Head of Adults,Third Party Payments 4THIRD,474101,Purchase of Care,03/09/2019,3635152-2569438,988.04,D3 CARE LTD.
Adult and Health Services,Head of Adults,Third Party Payments 4THIRD,470101,Purchase of Care,03/09/2019,3635152-2569440,988.04,D3 CARE LTD.
Adult and Health Services,Head of Adults,Third Party Payments 4THIRD,470101,Purchase of Care,03/09/2019,3635152-2569441,"1,100.00",D3 CARE LTD.
Adult and Health Services,Head of Adults,Third Party Payments 4THIRD,470101,Purchase of Care,03/09/2019,3635152-2569442,988.04,D3 CARE LTD.
Adult and Health Services,Head of Adults,Third Party Payments 4THIRD,474101,Purchase of Care,03/09/2019,3635152-2569443,"2,075.44",D3 CARE LTD.
Adult and Health Services,Head of Adults,Third Party Payments 4THIRD,470101,Purchase of Care,03/09/2019,3635152-2569445,"1,976.08",D3 CARE LTD.
Adult and Health Services,Head of Adults,Third Party Payments 4THIRD,474101,Purchase of Care,03/09/2019,3635152-2569446,"1,037.76",D3 CARE LTD.
Adult and Health Services,Head of Adults,Third Party Payments 4THIRD,474101,Purchase of Care,03/09/2019,3635152-2569448,"1,506.04",D3 CARE LTD.
Adult and Health Services,Head of Adults,Third Party Payments 4THIRD,470101,Purchase of Care,03/09/2019,3635153-2569350,"2,242.52",D3 CARE LTD.
Adult and Health Services,Head of Adults,Third Party Payments 4THIRD,471101,Purchase of Care,03/09/2019,3635153-2569351,"2,331.28",D3 CARE LTD.
Adult and Health Services,Head of Adults,Third Party Payments 4THIRD,471101,Purchase of Care,03/09/2019,3635153-2569352,"2,331.28",D3 CARE LTD.
Adult and Health Services,Head of Adults,Third Party Payments 4THIRD,474101,Purchase of Care,03/09/2019,3635153-2569354,"2,340.24",D3 CARE LTD.
Adult and Health Services,Head of Adults,Third Party Payments 4THIRD,474101,Purchase of Care,03/09/2019,3635153-2569356,"2,340.24",D3 CARE LTD.
Adult and Health Services,Head of Adults,Third Party Payments 4THIRD,474101,Purchase of Care,03/09/2019,3635153-2569358,"2,340.24",D3 CARE LTD.
Adult and Health Services,Head of Adults,Third Party Payments 4THIRD,470101,Purchase of Care,03/09/2019,3635153-2569360,"2,242.52",D3 CARE LTD.
Adult and Health Services,Head of Adults,Third Party Payments 4THIRD,470101,Purchase of Care,03/09/2019,3635153-2569362,"1,121.24",D3 CARE LTD.
Adult and Health Services,Head of Adults,Third Party Payments 4THIRD,470101,Purchase of Care,03/09/2019,3635153-2569363,"2,242.52",D3 CARE LTD.
Adult and Health Services,Head of Adults,Third Party Payments 4THIRD,470101,Purchase of Care,03/09/2019,3635153-2569364,"2,242.52",D3 CARE LTD.
Adult and Health Services,Head of Adults,Third Party Payments 4THIRD,470101,Purchase of Care,03/09/2019,3635153-2569365,"2,242.52",D3 CARE LTD.
Adult and Health Services,Head of Adults,Third Party Payments 4THIRD,474101,Purchase of Care,03/09/2019,3635153-2569366,"2,340.24",D3 CARE LTD.
Adult and Health Services,Head of Adults,Third Party Payments 4THIRD,470101,Purchase of Care,03/09/2019,3635153-2569368,"2,242.52",D3 CARE LTD.
Adult and Health Services,Head of Adults,Third Party Payments 4THIRD,470101,Purchase of Care,03/09/2019,3635153-2569369,"2,242.52",D3 CARE LTD.
Adult and Health Services,Head of Adults,Third Party Payments 4THIRD,474101,Purchase of Care,03/09/2019,3635153-2569371,"2,340.24",D3 CARE LTD.
Adult and Health Services,Head of Adults,Third Party Payments 4THIRD,474101,Purchase of Care,03/09/2019,3635153-2569373,"2,340.24",D3 CARE LTD.
Adult and Health Services,Head of Adults,Third Party Payments 4THIRD,470101,Purchase of Care,03/09/2019,3635153-2569375,"2,242.52",D3 CARE LTD.
Adult and Health Services,Head of Adults,Third Party Payments 4THIRD,470101,Purchase of Care,03/09/2019,3635153-2569376,"2,242.52",D3 CARE LTD.
Children and Young Peoples Services,Head of Childrens Social Care,Third Party Payments 4THIRD,440062,Other third party payments E440,03/09/2019,3635154-PIG_27675,"3,713.61",DALE CARE LTD.
Adult and Health Services,Head of Adults,Third Party Payments 4THIRD,470101,Purchase of Care,03/09/2019,3635155-2570131,"2,929.72",DEAFWAY.
Regeneration and Local Services,Environmental Services,Third Party Payments 4THIRD,430100,Rendered by Private Contractors,03/09/2019,3634926-358393,557.23,DENNIS EAGLE LTD.
Regeneration and Local Services,Environmental Services,Transport,210057,Repair and Maintenance of Vehicles,03/09/2019,3634926-DE11240889,565.04,DENNIS EAGLE LTD.
Resources BK0010,Legal & Democratic Services,Supplies and Services,338042,Services,03/09/2019,3634927-343920/INVSW750,"2,100.00",DERE STREET BARRISTERS.
Resources BK0010,Legal & Democratic Services,Supplies and Services,338042,Services,03/09/2019,3634927-344107/INVHT27,550.00,DERE STREET BARRISTERS.
Resources BK0010,Legal & Democratic Services,Supplies and Services,338042,Services,03/09/2019,3634927-344638/INVSW752,550.00,DERE STREET BARRISTERS.
Resources BK0010,Legal & Democratic Services,Supplies and Services,338042,Services,03/09/2019,3634927-348049/INVSW757,550.00,DERE STREET BARRISTERS.
Resources BK0010,Legal & Democratic Services,Supplies and Services,338042,Services,03/09/2019,3634927-348236/INVCSM429,900.00,DERE STREET BARRISTERS.
Resources BK0010,Legal & Democratic Services,Supplies and Services,338042,Services,03/09/2019,3634927-350579/INVSW768,550.00,DERE STREET BARRISTERS.
Adult and Health Services,Head of Adults,Third Party Payments 4THIRD,470101,Purchase of Care,03/09/2019,3635156-2568371,"2,242.52",DEVONSHIRE HOUSE CARE LTD.
Adult and Health Services,Head of Adults,Third Party Payments 4THIRD,470101,Purchase of Care,03/09/2019,3635156-2568372,"2,242.52",DEVONSHIRE HOUSE CARE LTD.
Adult and Health Services,Head of Adults,Third Party Payments 4THIRD,470101,Purchase of Care,03/09/2019,3635156-2568373,"2,319.80",DEVONSHIRE HOUSE CARE LTD.
Adult and Health Services,Head of Adults,Third Party Payments 4THIRD,470101,Purchase of Care,03/09/2019,3635156-2568374,"2,242.52",DEVONSHIRE HOUSE CARE LTD.
Adult and Health Services,Head of Adults,Third Party Payments 4THIRD,470101,Purchase of Care,03/09/2019,3635156-2568375,"2,242.52",DEVONSHIRE HOUSE CARE LTD.
Adult and Health Services,Head of Adults,Third Party Payments 4THIRD,470101,Purchase of Care,03/09/2019,3635156-2568376,"2,319.80",DEVONSHIRE HOUSE CARE LTD.
Adult and Health Services,Head of Adults,Third Party Payments 4THIRD,470101,Purchase of Care,03/09/2019,3635156-2568377,"2,242.52",DEVONSHIRE HOUSE CARE LTD.
Adult and Health Services,Head of Adults,Third Party Payments 4THIRD,470101,Purchase of Care,03/09/2019,3635156-2568378,"2,242.52",DEVONSHIRE HOUSE CARE LTD.
Adult and Health Services,Head of Adults,Third Party Payments 4THIRD,470101,Purchase of Care,03/09/2019,3635156-2568379,"2,242.52",DEVONSHIRE HOUSE CARE LTD.
Adult and Health Services,Head of Adults,Third Party Payments 4THIRD,470101,Purchase of Care,03/09/2019,3635156-2568380,"2,319.80",DEVONSHIRE HOUSE CARE LTD.
Adult and Health Services,Head of Adults,Third Party Payments 4THIRD,470101,Purchase of Care,03/09/2019,3635156-2568381,"1,555.36",DEVONSHIRE HOUSE CARE LTD.
Adult and Health Services,Head of Adults,Third Party Payments 4THIRD,470101,Purchase of Care,03/09/2019,3635156-2568382,"2,319.80",DEVONSHIRE HOUSE CARE LTD.
Adult and Health Services,Head of Adults,Third Party Payments 4THIRD,470101,Purchase of Care,03/09/2019,3635156-2568383,"2,242.52",DEVONSHIRE HOUSE CARE LTD.
Adult and Health Services,Head of Adults,Third Party Payments 4THIRD,470101,Purchase of Care,03/09/2019,3635156-2568384,"1,686.08",DEVONSHIRE HOUSE CARE LTD.
Adult and Health Services,Head of Adults,Third Party Payments 4THIRD,470101,Purchase of Care,03/09/2019,3635156-2568385,"2,242.52",DEVONSHIRE HOUSE CARE LTD.
Adult and Health Services,Head of Adults,Third Party Payments 4THIRD,470101,Purchase of Care,03/09/2019,3635156-2568386,"2,242.52",DEVONSHIRE HOUSE CARE LTD.
Adult and Health Services,Head of Adults,Third Party Payments 4THIRD,470101,Purchase of Care,03/09/2019,3635156-2568387,"2,242.52",DEVONSHIRE HOUSE CARE LTD.
Adult and Health Services,Head of Adults,Third Party Payments 4THIRD,471101,Purchase of Care,03/09/2019,3635157-2572174,"1,755.00",DIPTON CARE HOME LTD.
Adult and Health Services,Head of Adults,Third Party Payments 4THIRD,470101,Purchase of Care,03/09/2019,3635157-2572175,"2,369.64",DIPTON CARE HOME LTD.
Adult and Health Services,Head of Adults,Third Party Payments 4THIRD,470101,Purchase of Care,03/09/2019,3635157-2572176,"2,369.64",DIPTON CARE HOME LTD.
Adult and Health Services,Head of Adults,Third Party Payments 4THIRD,474101,Purchase of Care,03/09/2019,3635157-2572177,"2,466.24",DIPTON CARE HOME LTD.
Adult and Health Services,Head of Adults,Third Party Payments 4THIRD,470101,Purchase of Care,03/09/2019,3635157-2572179,"1,692.60",DIPTON CARE HOME LTD.
Adult and Health Services,Head of Adults,Third Party Payments 4THIRD,470101,Purchase of Care,03/09/2019,3635157-2572181,"2,369.64",DIPTON CARE HOME LTD.
Adult and Health Services,Head of Adults,Third Party Payments 4THIRD,474101,Purchase of Care,03/09/2019,3635157-2572182,"2,466.24",DIPTON CARE HOME LTD.
Adult and Health Services,Head of Adults,Third Party Payments 4THIRD,471101,Purchase of Care,03/09/2019,3635157-2572184,702.00,DIPTON CARE HOME LTD.
Adult and Health Services,Head of Adults,Third Party Payments 4THIRD,471101,Purchase of Care,03/09/2019,3635157-2572187,"1,579.50",DIPTON CARE HOME LTD.
Adult and Health Services,Head of Adults,Third Party Payments 4THIRD,471101,Purchase of Care,03/09/2019,3635157-2572188,"2,457.00",DIPTON CARE HOME LTD.
Adult and Health Services,Head of Adults,Third Party Payments 4THIRD,470101,Purchase of Care,03/09/2019,3635157-2572189,677.04,DIPTON CARE HOME LTD.
Adult and Health Services,Head of Adults,Third Party Payments 4THIRD,471101,Purchase of Care,03/09/2019,3635157-2572190,"2,457.00",DIPTON CARE HOME LTD.
Adult and Health Services,Head of Adults,Third Party Payments 4THIRD,470101,Purchase of Care,03/09/2019,3635157-2572191,"2,369.64",DIPTON CARE HOME LTD.
Adult and Health Services,Head of Adults,Third Party Payments 4THIRD,470101,Purchase of Care,03/09/2019,3635157-2572192,"2,369.64",DIPTON CARE HOME LTD.
Adult and Health Services,Head of Adults,Third Party Payments 4THIRD,471101,Purchase of Care,03/09/2019,3635157-2572193,"2,457.00",DIPTON CARE HOME LTD.
Adult and Health Services,Head of Adults,Third Party Payments 4THIRD,471101,Purchase of Care,03/09/2019,3635157-2572194,"2,457.00",DIPTON CARE HOME LTD.
Adult and Health Services,Head of Adults,Third Party Payments 4THIRD,474101,Purchase of Care,03/09/2019,3635157-2572195,"2,466.24",DIPTON CARE HOME LTD.
Adult and Health Services,Head of Adults,Third Party Payments 4THIRD,474101,Purchase of Care,03/09/2019,3635157-2572197,"2,466.24",DIPTON CARE HOME LTD.
Adult and Health Services,Head of Adults,Third Party Payments 4THIRD,471101,Purchase of Care,03/09/2019,3635157-2572199,"2,457.00",DIPTON CARE HOME LTD.
Adult and Health Services,Head of Adults,Third Party Payments 4THIRD,470101,Purchase of Care,03/09/2019,3635157-2572200,"1,438.71",DIPTON CARE HOME LTD.
Adult and Health Services,Head of Adults,Third Party Payments 4THIRD,470101,Purchase of Care,03/09/2019,3635157-2572201,"2,031.12",DIPTON CARE HOME LTD.
Adult and Health Services,Head of Adults,Third Party Payments 4THIRD,474101,Purchase of Care,03/09/2019,3635157-2572202,"1,761.60",DIPTON CARE HOME LTD.
Adult and Health Services,Head of Adults,Third Party Payments 4THIRD,470101,Purchase of Care,03/09/2019,3635157-2572204,"1,607.97",DIPTON CARE HOME LTD.
Adult and Health Services,Head of Adults,Third Party Payments 4THIRD,471101,Purchase of Care,03/09/2019,3635157-2572205,"2,457.00",DIPTON CARE HOME LTD.
Adult and Health Services,Head of Adults,Third Party Payments 4THIRD,471101,Purchase of Care,03/09/2019,3635157-2572206,"2,457.00",DIPTON CARE HOME LTD.
Adult and Health Services,Head of Adults,Third Party Payments 4THIRD,474101,Purchase of Care,03/09/2019,3635157-2572207,"2,466.24",DIPTON CARE HOME LTD.
Adult and Health Services,Head of Adults,Third Party Payments 4THIRD,474101,Purchase of Care,03/09/2019,3635157-2572210,"2,466.24",DIPTON CARE HOME LTD.
Adult and Health Services,Head of Adults,Third Party Payments 4THIRD,470101,Purchase of Care,03/09/2019,3635157-2572212,"2,369.64",DIPTON CARE HOME LTD.
Adult and Health Services,Head of Adults,Third Party Payments 4THIRD,474101,Purchase of Care,03/09/2019,3635157-2572213,"2,466.24",DIPTON CARE HOME LTD.
Adult and Health Services,Head of Adults,Third Party Payments 4THIRD,470101,Purchase of Care,03/09/2019,3635157-2572215,846.30,DIPTON CARE HOME LTD.
Adult and Health Services,Head of Adults,Third Party Payments 4THIRD,471101,Purchase of Care,03/09/2019,3635157-2572216,"2,457.00",DIPTON CARE HOME LTD.
Adult and Health Services,Head of Adults,Third Party Payments 4THIRD,474101,Purchase of Care,03/09/2019,3635157-2572217,"2,466.24",DIPTON CARE HOME LTD.
Adult and Health Services,Head of Adults,Third Party Payments 4THIRD,471101,Purchase of Care,03/09/2019,3635157-2572220,"2,983.50",DIPTON CARE HOME LTD.
Adult and Health Services,Head of Adults,Third Party Payments 4THIRD,470101,Purchase of Care,03/09/2019,3635157-2572221,"2,369.64",DIPTON CARE HOME LTD.
Adult and Health Services,Head of Adults,Third Party Payments 4THIRD,471101,Purchase of Care,03/09/2019,3635157-2572222,"2,457.00",DIPTON CARE HOME LTD.
Adult and Health Services,Head of Adults,Third Party Payments 4THIRD,471101,Purchase of Care,03/09/2019,3635157-2572223,"2,457.00",DIPTON CARE HOME LTD.
Adult and Health Services,Head of Adults,Third Party Payments 4THIRD,471101,Purchase of Care,03/09/2019,3635157-2572224,"2,457.00",DIPTON CARE HOME LTD.
Adult and Health Services,Head of Adults,Third Party Payments 4THIRD,471101,Purchase of Care,03/09/2019,3635157-2572225,"2,457.00",DIPTON CARE HOME LTD.
Adult and Health Services,Head of Adults,Third Party Payments 4THIRD,471101,Purchase of Care,03/09/2019,3635157-2572226,"2,457.00",DIPTON CARE HOME LTD.
Adult and Health Services,Head of Adults,Third Party Payments 4THIRD,470101,Purchase of Care,03/09/2019,3635157-2572227,"2,369.64",DIPTON CARE HOME LTD.
Adult and Health Services,Head of Adults,Third Party Payments 4THIRD,470101,Purchase of Care,03/09/2019,3635157-2572228,"2,369.64",DIPTON CARE HOME LTD.
Adult and Health Services,Head of Adults,Third Party Payments 4THIRD,474101,Purchase of Care,03/09/2019,3635157-2572736,"2,113.92",DIPTON CARE HOME LTD.
Adult and Health Services,Head of Adults,Third Party Payments 4THIRD,470101,Purchase of Care,03/09/2019,3635158-2571053,"1,372.88",DOVE CARE LTD.
Resources BK0010,Legal & Democratic Services,Supplies and Services,338057,Services,03/09/2019,3634928-FEBRURY2019,"2,400.00",DR CLIVE BLOXHAM.
Resources BK0010,Legal & Democratic Services,Supplies and Services,338101,Services,03/09/2019,3634930-JUNE-19U,677.60,DR SREE MUSSUNOOR.
Resources BK0010,Legal & Democratic Services,Supplies and Services,338101,Services,03/09/2019,3634931-JUNE-19D,750.00,DR SREE MUSSUNOOR.
Adult and Health Services,Head of Adults,Third Party Payments 4THIRD,474101,Purchase of Care,03/09/2019,3635159-2572369,"9,457.96",DUNLUCE HOUSE T/A BOHILL BUNGALOWS.
Adult and Health Services,Head of Adults,Third Party Payments 4THIRD,470101,Purchase of Care,03/09/2019,3635160-2571271,"2,369.64",DURHAM CARELINE LTD.
Adult and Health Services,Head of Adults,Third Party Payments 4THIRD,474101,Purchase of Care,03/09/2019,3635160-2571272,"1,233.12",DURHAM CARELINE LTD.
Adult and Health Services,Head of Adults,Third Party Payments 4THIRD,474101,Purchase of Care,03/09/2019,3635160-2571274,"3,130.00",DURHAM CARELINE LTD.
Adult and Health Services,Head of Adults,Third Party Payments 4THIRD,474101,Purchase of Care,03/09/2019,3635160-2571277,"2,466.24",DURHAM CARELINE LTD.
Adult and Health Services,Head of Adults,Third Party Payments 4THIRD,474101,Purchase of Care,03/09/2019,3635160-2571279,"1,233.12",DURHAM CARELINE LTD.
Adult and Health Services,Head of Adults,Third Party Payments 4THIRD,470101,Purchase of Care,03/09/2019,3635160-2571281,"2,369.64",DURHAM CARELINE LTD.
Adult and Health Services,Head of Adults,Third Party Payments 4THIRD,474101,Purchase of Care,03/09/2019,3635160-2571282,"2,466.24",DURHAM CARELINE LTD.
Adult and Health Services,Head of Adults,Third Party Payments 4THIRD,471101,Purchase of Care,03/09/2019,3635160-2571284,"2,457.00",DURHAM CARELINE LTD.
Adult and Health Services,Head of Adults,Third Party Payments 4THIRD,474101,Purchase of Care,03/09/2019,3635160-2571287,"1,233.12",DURHAM CARELINE LTD.
Adult and Health Services,Head of Adults,Third Party Payments 4THIRD,471101,Purchase of Care,03/09/2019,3635160-2571289,"1,228.52",DURHAM CARELINE LTD.
Adult and Health Services,Head of Adults,Third Party Payments 4THIRD,474101,Purchase of Care,03/09/2019,3635160-2571290,"3,130.00",DURHAM CARELINE LTD.
Adult and Health Services,Head of Adults,Third Party Payments 4THIRD,474101,Purchase of Care,03/09/2019,3635160-2571292,"1,233.12",DURHAM CARELINE LTD.
Adult and Health Services,Head of Adults,Third Party Payments 4THIRD,471101,Purchase of Care,03/09/2019,3635160-2571295,"2,457.00",DURHAM CARELINE LTD.
Adult and Health Services,Head of Adults,Third Party Payments 4THIRD,471101,Purchase of Care,03/09/2019,3635160-2571296,"2,457.00",DURHAM CARELINE LTD.
Adult and Health Services,Head of Adults,Third Party Payments 4THIRD,470101,Purchase of Care,03/09/2019,3635160-2571297,"2,369.64",DURHAM CARELINE LTD.
Adult and Health Services,Head of Adults,Third Party Payments 4THIRD,474101,Purchase of Care,03/09/2019,3635160-2571298,"2,466.24",DURHAM CARELINE LTD.
Adult and Health Services,Head of Adults,Third Party Payments 4THIRD,474101,Purchase of Care,03/09/2019,3635160-2571301,"1,233.12",DURHAM CARELINE LTD.
Adult and Health Services,Head of Adults,Third Party Payments 4THIRD,474101,Purchase of Care,03/09/2019,3635160-2571303,"3,130.00",DURHAM CARELINE LTD.
Adult and Health Services,Head of Adults,Third Party Payments 4THIRD,474101,Purchase of Care,03/09/2019,3635160-2571305,"2,466.24",DURHAM CARELINE LTD.
Adult and Health Services,Head of Adults,Third Party Payments 4THIRD,470101,Purchase of Care,03/09/2019,3635160-2571307,"2,369.64",DURHAM CARELINE LTD.
Adult and Health Services,Head of Adults,Third Party Payments 4THIRD,474101,Purchase of Care,03/09/2019,3635160-2571308,"5,627.36",DURHAM CARELINE LTD.
Adult and Health Services,Head of Adults,Third Party Payments 4THIRD,474101,Purchase of Care,03/09/2019,3635160-2571310,"3,185.56",DURHAM CARELINE LTD.
Adult and Health Services,Head of Adults,Third Party Payments 4THIRD,474101,Purchase of Care,03/09/2019,3635160-2571312,"3,130.00",DURHAM CARELINE LTD.
Adult and Health Services,Head of Adults,Third Party Payments 4THIRD,474101,Purchase of Care,03/09/2019,3635160-2571314,"1,233.12",DURHAM CARELINE LTD.
Adult and Health Services,Head of Adults,Third Party Payments 4THIRD,474101,Purchase of Care,03/09/2019,3635160-2571316,"2,466.24",DURHAM CARELINE LTD.
Adult and Health Services,Head of Adults,Third Party Payments 4THIRD,474101,Purchase of Care,03/09/2019,3635160-2571318,"2,466.24",DURHAM CARELINE LTD.
Adult and Health Services,Head of Adults,Third Party Payments 4THIRD,471101,Purchase of Care,03/09/2019,3635160-2571320,"2,457.00",DURHAM CARELINE LTD.
Adult and Health Services,Head of Adults,Third Party Payments 4THIRD,471101,Purchase of Care,03/09/2019,3635160-2571321,"2,457.00",DURHAM CARELINE LTD.
Adult and Health Services,Head of Adults,Third Party Payments 4THIRD,471101,Purchase of Care,03/09/2019,3635160-2571322,"2,457.00",DURHAM CARELINE LTD.
Adult and Health Services,Head of Adults,Third Party Payments 4THIRD,470101,Purchase of Care,03/09/2019,3635160-2571323,"2,369.64",DURHAM CARELINE LTD.
Adult and Health Services,Head of Adults,Third Party Payments 4THIRD,474101,Purchase of Care,03/09/2019,3635160-2571324,"1,233.12",DURHAM CARELINE LTD.
Adult and Health Services,Head of Adults,Third Party Payments 4THIRD,474101,Purchase of Care,03/09/2019,3635160-2571326,"2,466.24",DURHAM CARELINE LTD.
Adult and Health Services,Head of Adults,Third Party Payments 4THIRD,470101,Purchase of Care,03/09/2019,3635160-2571328,"2,369.64",DURHAM CARELINE LTD.
Adult and Health Services,Head of Adults,Third Party Payments 4THIRD,474101,Purchase of Care,03/09/2019,3635161-2571054,"3,130.00",DURHAM CARELINE LTD.
Adult and Health Services,Head of Adults,Third Party Payments 4THIRD,470101,Purchase of Care,03/09/2019,3635161-2571056,"3,130.00",DURHAM CARELINE LTD.
Adult and Health Services,Head of Adults,Third Party Payments 4THIRD,474101,Purchase of Care,03/09/2019,3635161-2571057,"3,130.00",DURHAM CARELINE LTD.
Adult and Health Services,Head of Adults,Third Party Payments 4THIRD,470101,Purchase of Care,03/09/2019,3635161-2571058,"5,806.02",DURHAM CARELINE LTD.
Adult and Health Services,Head of Adults,Third Party Payments 4THIRD,470101,Purchase of Care,03/09/2019,3635161-2571060,"2,860.00",DURHAM CARELINE LTD.
Adult and Health Services,Head of Adults,Third Party Payments 4THIRD,474101,Purchase of Care,03/09/2019,3635161-2571062,"4,697.14",DURHAM CARELINE LTD.
Adult and Health Services,Head of Adults,Third Party Payments 4THIRD,474101,Purchase of Care,03/09/2019,3635161-2571064,"4,896.00",DURHAM CARELINE LTD.
Adult and Health Services,Head of Adults,Third Party Payments 4THIRD,470101,Purchase of Care,03/09/2019,3635161-2571066,"4,896.00",DURHAM CARELINE LTD.
Adult and Health Services,Head of Adults,Third Party Payments 4THIRD,474101,Purchase of Care,03/09/2019,3635161-2571067,"3,041.64",DURHAM CARELINE LTD.
Adult and Health Services,Head of Adults,Third Party Payments 4THIRD,470101,Purchase of Care,03/09/2019,3635161-2571068,777.84,DURHAM CARELINE LTD.
Adult and Health Services,Head of Adults,Third Party Payments 4THIRD,474101,Purchase of Care,03/09/2019,3635161-2571070,"3,041.64",DURHAM CARELINE LTD.
Adult and Health Services,Head of Adults,Third Party Payments 4THIRD,470101,Purchase of Care,03/09/2019,3635161-2571072,"2,519.40",DURHAM CARELINE LTD.
Adult and Health Services,Head of Adults,Third Party Payments 4THIRD,470101,Purchase of Care,03/09/2019,3635161-2571074,"2,184.52",DURHAM CARELINE LTD.
Adult and Health Services,Head of Adults,Third Party Payments 4THIRD,470101,Purchase of Care,03/09/2019,3635161-2571075,"2,003.84",DURHAM CARELINE LTD.
Adult and Health Services,Head of Adults,Third Party Payments 4THIRD,470101,Purchase of Care,03/09/2019,3635161-2571076,"2,184.52",DURHAM CARELINE LTD.
Adult and Health Services,Head of Adults,Third Party Payments 4THIRD,470101,Purchase of Care,03/09/2019,3635161-2571077,"2,003.84",DURHAM CARELINE LTD.
Adult and Health Services,Head of Adults,Third Party Payments 4THIRD,474101,Purchase of Care,03/09/2019,3635161-2571078,"3,041.64",DURHAM CARELINE LTD.
Adult and Health Services,Head of Adults,Third Party Payments 4THIRD,474101,Purchase of Care,03/09/2019,3635161-2571080,"3,041.64",DURHAM CARELINE LTD.
Adult and Health Services,Head of Adults,Third Party Payments 4THIRD,474101,Purchase of Care,03/09/2019,3635161-2571082,"3,080.32",DURHAM CARELINE LTD.
Adult and Health Services,Head of Adults,Third Party Payments 4THIRD,470101,Purchase of Care,03/09/2019,3635161-2571084,"2,231.76",DURHAM CARELINE LTD.
Adult and Health Services,Head of Adults,Third Party Payments 4THIRD,470101,Purchase of Care,03/09/2019,3635161-2571086,"2,635.60",DURHAM CARELINE LTD.
Adult and Health Services,Head of Adults,Third Party Payments 4THIRD,470101,Purchase of Care,03/09/2019,3635161-2571087,"3,049.80",DURHAM CARELINE LTD.
Adult and Health Services,Head of Adults,Third Party Payments 4THIRD,474101,Purchase of Care,03/09/2019,3635162-2571204,"3,130.00",DURHAM CARELINE LTD.
Adult and Health Services,Head of Adults,Third Party Payments 4THIRD,474101,Purchase of Care,03/09/2019,3635162-2571207,"4,367.36",DURHAM CARELINE LTD.
Adult and Health Services,Head of Adults,Third Party Payments 4THIRD,470101,Purchase of Care,03/09/2019,3635162-2571209,"2,645.88",DURHAM CARELINE LTD.
Adult and Health Services,Head of Adults,Third Party Payments 4THIRD,474101,Purchase of Care,03/09/2019,3635162-2571212,"4,896.00",DURHAM CARELINE LTD.
Adult and Health Services,Head of Adults,Third Party Payments 4THIRD,474101,Purchase of Care,03/09/2019,3635162-2572807,"6,036.42",DURHAM CARELINE LTD.
Adult and Health Services,Head of Adults,Third Party Payments 4THIRD,474101,Purchase of Care,03/09/2019,3635163-2572535,"2,625.48",EAST CHESHIRE HOUSING CONSORTIUM LTD.
Adult and Health Services,Head of Adults,Third Party Payments 4THIRD,470101,Purchase of Care,03/09/2019,3635165-2569544,"2,188.00",EDEN COTTAGE CARE HOME LTD.
Dedicated Schools Grant BG0015,DSG High Needs Block,Central Support and Other Recharges,615208,Support Services,03/09/2019,3634935-RES-09-2019-004,709.98,EDEN LEARNING TRUST T/A FERRYHILL BUSINESS & ENTERPRISE COLLEGE.
Adult and Health Services,Head of Adults,Third Party Payments 4THIRD,470101,Purchase of Care,03/09/2019,3635166-2570491,"8,298.92",EDUCATION & SERVICES FOR PEOPLE WITH AUTISM (ESPA) LTD.
Adult and Health Services,Head of Adults,Third Party Payments 4THIRD,470101,Purchase of Care,03/09/2019,3635167-2570124,"6,489.92",EDUCATION & SERVICES FOR PEOPLE WITH AUTISM (ESPA) LTD.
Adult and Health Services,Head of Adults,Third Party Payments 4THIRD,470101,Purchase of Care,03/09/2019,3635167-2570125,"4,650.68",EDUCATION & SERVICES FOR PEOPLE WITH AUTISM (ESPA) LTD.
Adult and Health Services,Head of Adults,Third Party Payments 4THIRD,470101,Purchase of Care,03/09/2019,3635167-2570126,"4,658.68",EDUCATION & SERVICES FOR PEOPLE WITH AUTISM (ESPA) LTD.
Adult and Health Services,Head of Adults,Third Party Payments 4THIRD,470101,Purchase of Care,03/09/2019,3635168-2572108,"6,489.84",EDUCATION & SERVICES FOR PEOPLE WITH AUTISM (ESPA) LTD.
Adult and Health Services,Head of Adults,Third Party Payments 4THIRD,470101,Purchase of Care,03/09/2019,3635168-2572161,"5,047.92",EDUCATION & SERVICES FOR PEOPLE WITH AUTISM (ESPA) LTD.
Adult and Health Services,Head of Adults,Third Party Payments 4THIRD,470101,Purchase of Care,03/09/2019,3635169-2572109,"10,200.24",EDUCATION & SERVICES FOR PEOPLE WITH AUTISM (ESPA) LTD.
Adult and Health Services,Head of Adults,Third Party Payments 4THIRD,470101,Purchase of Care,03/09/2019,3635170-2572237,"2,369.64",ELBA CARE LTD.
Adult and Health Services,Head of Adults,Third Party Payments 4THIRD,470101,Purchase of Care,03/09/2019,3635170-2572238,"2,369.64",ELBA CARE LTD.
Adult and Health Services,Head of Adults,Third Party Payments 4THIRD,470101,Purchase of Care,03/09/2019,3635170-2572239,"2,369.64",ELBA CARE LTD.
Adult and Health Services,Head of Adults,Third Party Payments 4THIRD,474101,Purchase of Care,03/09/2019,3635170-2572241,616.56,ELBA CARE LTD.
Adult and Health Services,Head of Adults,Third Party Payments 4THIRD,474101,Purchase of Care,03/09/2019,3635170-2572243,528.48,ELBA CARE LTD.
Adult and Health Services,Head of Adults,Third Party Payments 4THIRD,471101,Purchase of Care,03/09/2019,3635170-2572245,"2,457.00",ELBA CARE LTD.
Adult and Health Services,Head of Adults,Third Party Payments 4THIRD,470101,Purchase of Care,03/09/2019,3635170-2572246,"2,369.64",ELBA CARE LTD.
Adult and Health Services,Head of Adults,Third Party Payments 4THIRD,470101,Purchase of Care,03/09/2019,3635170-2572247,"2,369.64",ELBA CARE LTD.
Adult and Health Services,Head of Adults,Third Party Payments 4THIRD,470101,Purchase of Care,03/09/2019,3635170-2572248,"1,184.82",ELBA CARE LTD.
Adult and Health Services,Head of Adults,Third Party Payments 4THIRD,470101,Purchase of Care,03/09/2019,3635170-2572250,"2,369.64",ELBA CARE LTD.
Adult and Health Services,Head of Adults,Third Party Payments 4THIRD,470101,Purchase of Care,03/09/2019,3635170-2572251,"1,438.71",ELBA CARE LTD.
Adult and Health Services,Head of Adults,Third Party Payments 4THIRD,470101,Purchase of Care,03/09/2019,3635170-2572253,"2,369.64",ELBA CARE LTD.
Adult and Health Services,Head of Adults,Third Party Payments 4THIRD,470101,Purchase of Care,03/09/2019,3635170-2572257,"2,369.64",ELBA CARE LTD.
Adult and Health Services,Head of Adults,Third Party Payments 4THIRD,470101,Purchase of Care,03/09/2019,3635170-2572258,"2,369.64",ELBA CARE LTD.
Adult and Health Services,Head of Adults,Third Party Payments 4THIRD,470101,Purchase of Care,03/09/2019,3635170-2572260,"2,369.64",ELBA CARE LTD.
Adult and Health Services,Head of Adults,Third Party Payments 4THIRD,470101,Purchase of Care,03/09/2019,3635170-2572261,"2,369.64",ELBA CARE LTD.
Adult and Health Services,Head of Adults,Third Party Payments 4THIRD,470101,Purchase of Care,03/09/2019,3635170-2572262,"2,369.64",ELBA CARE LTD.
Adult and Health Services,Head of Adults,Third Party Payments 4THIRD,470101,Purchase of Care,03/09/2019,3635170-2572263,"2,369.64",ELBA CARE LTD.
Adult and Health Services,Head of Adults,Third Party Payments 4THIRD,474101,Purchase of Care,03/09/2019,3635170-2572264,"2,466.24",ELBA CARE LTD.
Adult and Health Services,Head of Adults,Third Party Payments 4THIRD,471101,Purchase of Care,03/09/2019,3635170-2572266,"2,457.00",ELBA CARE LTD.
Adult and Health Services,Head of Adults,Third Party Payments 4THIRD,470101,Purchase of Care,03/09/2019,3635170-2572267,"2,369.64",ELBA CARE LTD.
Adult and Health Services,Head of Adults,Third Party Payments 4THIRD,470101,Purchase of Care,03/09/2019,3635170-2572268,"2,369.64",ELBA CARE LTD.
Adult and Health Services,Head of Adults,Third Party Payments 4THIRD,471101,Purchase of Care,03/09/2019,3635170-2572269,"2,457.00",ELBA CARE LTD.
Adult and Health Services,Head of Adults,Third Party Payments 4THIRD,471101,Purchase of Care,03/09/2019,3635170-2572270,"2,457.00",ELBA CARE LTD.
Adult and Health Services,Head of Adults,Third Party Payments 4THIRD,471101,Purchase of Care,03/09/2019,3635170-2572271,"2,457.00",ELBA CARE LTD.
Adult and Health Services,Head of Adults,Third Party Payments 4THIRD,470101,Purchase of Care,03/09/2019,3635170-2572272,"2,369.64",ELBA CARE LTD.
Adult and Health Services,Head of Adults,Third Party Payments 4THIRD,470101,Purchase of Care,03/09/2019,3635170-2572273,"2,369.64",ELBA CARE LTD.
Adult and Health Services,Head of Adults,Third Party Payments 4THIRD,471101,Purchase of Care,03/09/2019,3635170-2572274,"2,457.00",ELBA CARE LTD.
Adult and Health Services,Head of Adults,Third Party Payments 4THIRD,470101,Purchase of Care,03/09/2019,3635170-2572275,"2,369.64",ELBA CARE LTD.
Adult and Health Services,Head of Adults,Third Party Payments 4THIRD,470101,Purchase of Care,03/09/2019,3635170-2572684,507.78,ELBA CARE LTD.
Regeneration and Local Services,Environmental Services,Transport,210057,Repair and Maintenance of Vehicles,03/09/2019,3634937-501894,708.00,ELECTRO DIESEL NORTH EAST LTD.
Adult and Health Services,Head of Adults,Third Party Payments 4THIRD,470101,Purchase of Care,03/09/2019,3635172-2570712,"5,511.60",ELLERSHAW HOUSE LTD.
Adult and Health Services,Head of Adults,Third Party Payments 4THIRD,470101,Purchase of Care,03/09/2019,3635173-2570132,"2,677.60",ELPHA LODGE RESIDENTIAL CARE HOME  LTD.
Adult and Health Services,Head of Adults,Third Party Payments 4THIRD,471101,Purchase of Care,03/09/2019,3635174-2548355,886.28,ELYSIUM CARE LTD T/A STOCKTON LODGE CARE HOME.
Adult and Health Services,Head of Adults,Third Party Payments 4THIRD,471101,Purchase of Care,03/09/2019,3635174-2569717,"1,628.57",ELYSIUM CARE LTD T/A STOCKTON LODGE CARE HOME.
Adult and Health Services,Head of Adults,Third Party Payments 4THIRD,471101,Purchase of Care,03/09/2019,3635174-2569718,"1,628.57",ELYSIUM CARE LTD T/A STOCKTON LODGE CARE HOME.
Children and Young Peoples Services,Head of Childrens Social Care,Third Party Payments 4THIRD,440062,Other third party payments E440,03/09/2019,3635175-PIG_27668,"1,806.83",EMBRACING CARE.
Regeneration and Local Services,Environmental Services,Supplies and Services,338066,Services,03/09/2019,3634939-1014-14145,"1,240.00",ENERGY & COMPLIANCE TECHNOLOGY LTD T/A COMPLIANCE365.
Adult and Health Services,Head of Adults,Third Party Payments 4THIRD,470101,Purchase of Care,03/09/2019,3635177-2570626,"2,503.84",EOTHEN HOMES LTD.
Adult and Health Services,Head of Adults,Third Party Payments 4THIRD,471101,Purchase of Care,03/09/2019,3635178-2572415,"1,215.84",EOTHEN HOMES LTD.
Adult and Health Services,Head of Adults,Third Party Payments 4THIRD,425020,Rendered by Voluntary Organisations,03/09/2019,3635179-PIG_28506,"1,311.38",ESSENTIAL CARE & SUPPORT LTD.
Adult and Health Services,Head of Adults,Third Party Payments 4THIRD,470101,Purchase of Care,03/09/2019,3635180-2571511,"2,369.64",ESSENTIAL CARE & SUPPORT LTD.
Adult and Health Services,Head of Adults,Third Party Payments 4THIRD,471101,Purchase of Care,03/09/2019,3635180-2571512,"2,457.00",ESSENTIAL CARE & SUPPORT LTD.
Adult and Health Services,Head of Adults,Third Party Payments 4THIRD,470101,Purchase of Care,03/09/2019,3635180-2571513,"1,250.00",ESSENTIAL CARE & SUPPORT LTD.
Adult and Health Services,Head of Adults,Third Party Payments 4THIRD,470101,Purchase of Care,03/09/2019,3635180-2571514,"2,369.64",ESSENTIAL CARE & SUPPORT LTD.
Adult and Health Services,Head of Adults,Third Party Payments 4THIRD,471101,Purchase of Care,03/09/2019,3635180-2571515,"2,457.00",ESSENTIAL CARE & SUPPORT LTD.
Adult and Health Services,Head of Adults,Third Party Payments 4THIRD,470101,Purchase of Care,03/09/2019,3635180-2571517,"2,369.64",ESSENTIAL CARE & SUPPORT LTD.
Adult and Health Services,Head of Adults,Third Party Payments 4THIRD,470101,Purchase of Care,03/09/2019,3635180-2571518,840.00,ESSENTIAL CARE & SUPPORT LTD.
Adult and Health Services,Head of Adults,Third Party Payments 4THIRD,470101,Purchase of Care,03/09/2019,3635180-2571519,"2,369.64",ESSENTIAL CARE & SUPPORT LTD.
Adult and Health Services,Head of Adults,Third Party Payments 4THIRD,471101,Purchase of Care,03/09/2019,3635180-2571520,"2,457.00",ESSENTIAL CARE & SUPPORT LTD.
Adult and Health Services,Head of Adults,Third Party Payments 4THIRD,470101,Purchase of Care,03/09/2019,3635180-2571521,"2,500.00",ESSENTIAL CARE & SUPPORT LTD.
Adult and Health Services,Head of Adults,Third Party Payments 4THIRD,470101,Purchase of Care,03/09/2019,3635180-2571522,"5,040.00",ESSENTIAL CARE & SUPPORT LTD.
Adult and Health Services,Head of Adults,Third Party Payments 4THIRD,470101,Purchase of Care,03/09/2019,3635180-2571523,"2,500.00",ESSENTIAL CARE & SUPPORT LTD.
Adult and Health Services,Head of Adults,Third Party Payments 4THIRD,470101,Purchase of Care,03/09/2019,3635180-2571524,"2,369.64",ESSENTIAL CARE & SUPPORT LTD.
Adult and Health Services,Head of Adults,Third Party Payments 4THIRD,471101,Purchase of Care,03/09/2019,3635180-2571525,"2,457.00",ESSENTIAL CARE & SUPPORT LTD.
Adult and Health Services,Head of Adults,Third Party Payments 4THIRD,471101,Purchase of Care,03/09/2019,3635180-2571526,"2,457.00",ESSENTIAL CARE & SUPPORT LTD.
Adult and Health Services,Head of Adults,Third Party Payments 4THIRD,471101,Purchase of Care,03/09/2019,3635180-2571527,"1,228.48",ESSENTIAL CARE & SUPPORT LTD.
Adult and Health Services,Head of Adults,Third Party Payments 4THIRD,470101,Purchase of Care,03/09/2019,3635180-2571528,"1,250.00",ESSENTIAL CARE & SUPPORT LTD.
Adult and Health Services,Head of Adults,Third Party Payments 4THIRD,470101,Purchase of Care,03/09/2019,3635180-2571529,"1,250.00",ESSENTIAL CARE & SUPPORT LTD.
Adult and Health Services,Head of Adults,Third Party Payments 4THIRD,471101,Purchase of Care,03/09/2019,3635180-2571530,"2,457.00",ESSENTIAL CARE & SUPPORT LTD.
Adult and Health Services,Head of Adults,Third Party Payments 4THIRD,470101,Purchase of Care,03/09/2019,3635180-2571531,"2,369.64",ESSENTIAL CARE & SUPPORT LTD.
Adult and Health Services,Head of Adults,Third Party Payments 4THIRD,470101,Purchase of Care,03/09/2019,3635180-2571532,"2,369.64",ESSENTIAL CARE & SUPPORT LTD.
Adult and Health Services,Head of Adults,Third Party Payments 4THIRD,471101,Purchase of Care,03/09/2019,3635180-2571533,"2,457.00",ESSENTIAL CARE & SUPPORT LTD.
Adult and Health Services,Head of Adults,Third Party Payments 4THIRD,470101,Purchase of Care,03/09/2019,3635180-2571534,"1,390.00",ESSENTIAL CARE & SUPPORT LTD.
Adult and Health Services,Head of Adults,Third Party Payments 4THIRD,470101,Purchase of Care,03/09/2019,3635180-2571535,"2,369.64",ESSENTIAL CARE & SUPPORT LTD.
